{"text_format":"1","workbook":"xlsx","n_sheets":11,"sheets":["Prompt","C100","C101","C200","C300","C335","C400","C500","C700","C800","Enviar"],"not_rendered":{"charts":0,"images":6,"macros":1,"external_links":0,"defined_names":5,"comments":1,"pivot_tables":0},"unopened":[],"bounds":{"document_bytes":16777216,"sheet_cells":100000,"rows_first":2000,"rows_last":500,"rows_between":2000,"halvings":0,"cell_chars":16384,"cell_head_chars":4096},"cells_cut":0,"cells_raw":0,"read":"whole","date_system":"1900"}

{"sheet":"Prompt","index":0,"n_rows":79,"n_cols":4,"rows_kept":79,"cut":false,"hidden":true,"merged":[[1,3,2,6],[4,1,6,8],[43,1,44,8],[78,1,79,8],[9,1,10,8]]}
[]
[null,null,null,"¡ATENCIÓN!"]
[]
[]
[null,"Para hacer uso de las funcionalidades de esta Cédula Electrónica debe habilitar macros"]
[]
[]
[]
[]
[null,"Si utiliza Excel 2013 siga el siguiente procedimiento:"]
[]
[]
[]
[]
[]
[]
[]
[]
[]
[]
[]
[]
[]
[]
[]
[]
[]
[]
[]
[]
[]
[]
[]
[]
[]
[]
[]
[]
[]
[]
[]
[]
[]
[null,"Si utiliza Excel 2007 siga el siguiente procedimiento:"]
[]
[]
[]
[]
[]
[]
[]
[]
[]
[]
[]
[]
[]
[]
[]
[]
[]
[]
[]
[]
[]
[]
[]
[]
[]
[]
[]
[]
[]
[]
[]
[]
[]
[]
[null,"Si utiliza Excel 2000, 2002, 2003 siga el siguiente procedimiento:"]

{"sheet":"C100","index":1,"n_rows":574,"n_cols":24,"rows_kept":574,"cut":false,"hidden":false,"merged":[[426,11,427,11],[415,17,415,20],[416,17,416,20],[428,17,428,21],[439,6,439,10],[491,7,491,11],[501,11,503,11],[506,8,506,10],[507,8,507,10],[507,19,507,22],[419,11,420,11],[424,11,425,11],[452,19,452,22],[168,3,168,11],[168,14,168,22],[405,4,405,10],[406,11,407,11],[408,11,409,11],[410,11,411,11],[412,11,413,11],[415,11,416,11],[417,11,418,11],[374,8,374,9],[363,15,363,21],[269,22,272,22],[231,17,231,21],[241,4,241,9],[241,10,243,10],[241,11,243,11],[242,4,242,9],[243,4,243,9],[244,4,244,9],[193,19,193,20],[194,8,194,9],[194,10,194,11],[194,19,194,20],[195,19,195,20],[269,23,272,23],[272,18,272,19],[273,18,273,19],[274,18,274,19],[287,16,287,20],[320,6,320,10],[340,7,342,9],[340,10,342,11],[341,3,341,6],[270,6,270,10],[269,13,271,16],[269,17,271,17],[269,18,271,19],[269,20,272,20],[269,21,272,21],[196,19,196,20],[197,19,197,20],[212,20,213,22],[215,17,215,20],[195,8,195,9],[195,10,195,11],[196,5,196,6],[196,8,196,9],[196,10,196,11],[209,6,209,10],[190,3,192,6],[190,7,192,7],[190,8,192,9],[190,10,193,11],[193,8,193,9],[72,17,72,19],[72,20,72,22],[91,17,91,21],[102,18,102,22],[138,16,138,18],[139,21,139,22],[166,6,166,11],[177,6,177,11],[145,19,145,20],[146,19,146,20],[147,19,147,22],[159,14,159,17],[134,14,134,17],[134,21,134,22],[135,21,135,22],[136,21,136,22],[137,21,137,22],[138,21,138,22],[143,14,144,16],[144,19,144,20],[110,6,110,10],[123,14,123,17],[123,21,123,22],[124,21,124,22],[125,21,125,22],[126,21,126,22],[127,21,127,22],[128,21,128,22],[129,16,129,18],[129,21,129,22],[572,6,572,10],[1,7,1,19],[2,7,2,19],[3,7,3,19],[5,2,5,23],[9,2,9,23],[31,2,31,23],[37,10,37,11],[98,4,98,10],[12,14,12,22],[40,10,40,11],[36,15,37,17],[36,21,37,21],[37,19,37,20],[38,19,38,20],[39,19,39,20],[355,5,355,8],[368,6,370,7],[368,8,370,9],[368,10,370,10],[371,8,371,9],[372,8,372,9],[373,8,373,9],[2,22,4,23],[553,19,553,20],[439,17,439,21],[553,8,553,11],[551,19,551,20],[522,6,522,10],[514,15,516,17],[514,19,515,20],[514,21,515,22],[527,16,527,18],[534,15,536,17],[534,19,535,20],[534,21,535,22],[544,16,544,18],[401,17,401,21],[470,17,470,21],[257,5,257,9],[1,22,1,23],[14,7,14,8],[14,19,14,22],[14,11,14,16],[12,7,12,8],[552,19,552,20],[86,6,86,10],[40,19,40,20],[41,19,41,20],[43,4,45,5],[43,7,43,10],[44,7,44,8],[44,9,44,10],[46,17,46,19],[52,2,52,12],[61,6,61,9],[71,6,71,9],[63,17,63,19],[63,20,63,22],[143,19,143,20],[143,21,143,22]]}
[]
[null,null,null,null,null,null,null,"CENSO EDUCATIVO 2024",null,null,null,null,null,null,null,null,null,null,null,null,null,null,"CÉDULA"]
[null,null,null,null,null,null,null,"EDUCACIÓN BÁSICA REGULAR",null,null,null,null,null,null,null,null,null,null,null,null,null,null,"1A"]
[null,null,null,null,null,null,null,"INICIAL ESCOLARIZADA"]
[null,null,"Versión :","GA-1.3"]
[null,null,"INSTRUCCIONES DEL FORMATO ELECTRÓNICO "]
[]
[]
[]
[null,null,"IDENTIFICACIÓN DEL SERVICIO EDUCATIVO"]
[]
[]
[null,null,null,"1. CÓDIGO MODULAR:",null,null,null,null,null,null,null,null,null,"3. NOMBRE DEL SERVICIO:  "]
[]
[null,null,null,"2. CÓDIGO DE LOCAL EDUCATIVO:",null,null,null,null,null,null,"4. DISTRITO:  ",null,null,null,null,null,null,null,"LOCALIDAD:  "]
[]
[]
[null,null,"5. NIVEL EDUCATIVO",null,null,null,null,null,null," (Marcar con \"X\" según corresponda)",null,null,null,null,null,null,null,"6. EL SERVICIO/NIVEL EDUCATIVO"]
[null,null,null,null,null,null,null,null,null,null,null,null,null,null,null,null,null,"¿PROCEDE DE UNA CONVERSIÓN (PRONOEI)?"]
[null,null,null,"","A1 - Cuna  "]
[null,null,null,null,"a. ¿Cuenta con estudiantes del ciclo II (3 a 5 años o más) ?      ",null,null,null,null,null,null,"Si  ","",null,"No","",null,"Si  ","",null,null,null,"¿Desde qué año?"]
[]
[null,null,null,null,"A2 - Jardín   "]
[null,null,null,null,"b. ¿Cuenta con estudiantes del ciclo I (0 a 2 años)?",null,null,null,null,null,null,"Si  ","",null,"No",null,null,"No  "]
[]
[null,null,null,"","A3 - Cuna y Jardín  "]
[]
["GESTIÓN"]
[{"$f":"CONCATENATE(J29,O29,T29)","v":""},null,"Esta Institución Educativa es de Gestión : ",null,null,null,null,null,null,null," 1 - Pública de gestión directa",null,null,null,""," 2 - Pública de gestión privada",null,null,null,""," 3 - Privada"]
[]
[]
[null,null,"100. CARACTERÍSTICAS DEL SERVICIO EDUCATIVO  (Para II.EE. Públicas y Privadas)"]
[]
["Meses",null,"A. CARACTERÍSTICA DE LA ENSEÑANZA"]
["01: Enero",null,"101.A  CON RESPECTO A LAS CLASES:",null,null,null,null,null,null,null,null,null,null,"103.A. ¿CUÁNTO ES LA DURACIÓN EN MINUTOS?"]
["02: Febrero"]
["03: Marzo",null,null,"A. ¿CUÁNDO INICIARON LAS CLASES?",null,null,null,null,"Día",null,"Mes",null,null,null,null,"Espacio educativo para interacción social",null,null,"¿Tiene?","¿ Dentro Horario?",null,"Tiempo en Minutos","SI"]
["04: Abril",null,null," (Primer día en que asistieron los estudiantes)",null,null,null,null,null,"-",null,null,null,null,null,null,null,null,"Sí - No","Sí - No",null,null,"NO"]
["05: Mayo",null,null,null,null,null,null,null,null,null,null,null,null,null,1,"De los recreos",null,""]
["06: Junio",null,null,"B. ¿CUÁNDO TERMINARÁN LAS CLASES?",null,null,null,null,"Día",null,"Mes",null,null,null,2,"Del desayuno escolar",null,""]
["07: Julio",null,null,"(Último día en que asistirán los estudiantes)",null,null,null,null,null,"-",null,null,null,null,3,"Del almuerzo escolar",null,""]
["08: Agosto",null,null,null,null,null,null,null,null,null,null,null,null,null,4,"De la lonchera"]
["09: Septiembre",null,"102.A  HORARIO DE CLASES DE LOS ESTUDIANTES:",null,null,null,null,null,null,null,null,null,null,null,null,null,null,"",{"$f":"COUNTIF(S39:S42,\"SI\")+COUNTIF(S39:S42,\"NO\")","v":0}]
["10: Octubre",null,null,null,"TURNO",null,null,"Horario de clases",null,null,null,null,null,"104.A. ¿ESTE SERVICIO/NIVEL EDUCATIVO BRINDA EL SERVICIO DE ALIMENTACIÓN"]
["11: Noviembre",null,null,null,null,null,null,"Inicio",null,"Término",null,null,null,null,"QUIOSCO Y/O COMEDOR?"]
["12: Diciembre",null,null,null,null,null,{"$f":"SUM(G47:G48)","v":0},"Hora","Minutos","Hora","Minutos",null,null,null,null,null,null,"Precise si cuenta con los:"]
["01: Enero",null,null,null,1,"Mañana",{"$f":"COUNT(H47:K47)","v":0},null,null,null,null,{"$f":"IF(OR(H47=\"\",I47=\"\",J47=\"\",K47=\"\"),1,0)","v":1},null,null,"Sí","",null,"Servicios",null,null,null,"Sí - No"]
["02: Febrero",null,null,null,2,"Tarde",{"$f":"COUNT(H48:K48)","v":0},null,null,null,null,{"$f":"IF(OR(H48=\"\",I48=\"\",J48=\"\",K48=\"\"),1,0)","v":1},null,null,null,null,null,1,"Agua",null,"",""]
[null,null,null,null,null,null,null,null,null,null,null,null,null,null,null,null,null,2,"Desague",null,"",""]
[null,null,null,null,null,null,null,null,null,null,null,null,null,null,"No  ",null,null,3,"Electricidad",null,"",""]
["SI / NO",null,null,null,null,null,null,null,null,null,null,null,null,null,null,null,null,null,null,null,null,{"$f":"COUNTIF(V48:V50,\"SI\")+COUNTIF(V48:V50,\"NO\")","v":0}]
["SI"]
["NO",null,"105.A. DESDE QUE SE INICIARON LAS CLASES SIN CONTAR SÁBADOS NI DOMINGOS",null,null,null,null,null,null,null,null,null,null,"110.A. ¿CUENTA CON LOS SIGUIENTES ESPACIOS EDUCATIVOS? "]
[null,null,null,"SEGÚN LAS RAZONES PROGRAMADAS, ¿CUÁNTOS DÍAS NO HUBO CLASES?,POR:",null,null,null,null,null,null,null,null,null,null,"Marque con una “X”, una o más opciones"]
[]
[null,null,null,null,"Razones Programadas",null,null,null,null,{"$f":"SUM(K57:K62)","v":0},"N° de días",null,null,null,null,null,"Espacios internos"]
[null,null,null,null,1,"Vacaciones del año escolar",null,null,null,null,null,null,null,null,null,null,"Espacios intermedios"]
["FRECUENCIA",null,null,null,2,"Feriados nacionales oficiales (Fiestas patrias y otros)",null,null,null,null,null,null,null,null,null,null,"Espacios externos"]
["1: Semanal",null,null,null,3,"Feriados regionales o locales",null,null,null,null,null,null,null,null,null,null,"Espacios virtuales"]
["2: Quincenal",null,null,null,4,"Celebraciones de la institución educativa"]
["3: Mensual",null,null,null,5,"Jornada de reflexión",null,null,null,null,null,null,null,"111.A. EN ESTE SERVICIO/NIVEL EDUCATIVO, ¿CUÁNTAS VACANTES POR EDAD OFRECIÓ"]
["4: Bimensual",null,null,null,6,"Otras razones",null,null,null,null,null,null,null,null,"PARA EL PRESENTE PERIODO LECTIVO?"]
["5: Trimestral"]
["6: Semestral",null,"106.A. DESDE QUE SE INICIARON LAS CLASES SIN CONTAR SÁBADOS NI DOMINGOS",null,null,null,null,null,null,null,null,null,null,null,null,null,null,"Ciclo I",null,null,"Ciclo II"]
["7: No se reunen",null,null,"SEGÚN LAS RAZONES NO PROGRAMADAS, ¿CUÁNTOS DÍAS NO HUBO CLASES?, POR:",null,null,null,null,null,null,null,null,null,null,"EDADES",null,null,0,1,2,3,4,"5 y +"]
[null,null,null,null,null,null,null,null,null,null,null,null,null,null,"Turno mañana",null,{"$f":"SUM(R66:W66)","v":0}]
[null,null,null,null,"Razones Programadas",null,null,null,null,{"$f":"SUM(K68:K72)","v":0},"N° de días"]
[null,null,null,null,1,"Problemas climáticos",null,null,null,null,null,null,null,null,"Turno tarde",null,{"$f":"SUM(R68:W68)","v":0}]
[null,null,null,null,2,"Problemas de salud masivos (Epidemias)"]
[null,null,null,null,3,"Ausencia del docente",null,null,null,null,null,null,null,"112.A. EN ESTE SERVICIO/NIVEL EDUCATIVO, ¿CUÁNTOS POSTULANTES POR EDAD SE PRESENTARON"]
[null,null,null,null,4,"Huelgas/Paros",null,null,null,null,null,null,null,null,"PARA EL PRESENTE PERIODO LECTIVO?"]
[null,null,null,null,6,"Otras razones"]
[null,null,null,null,null,null,null,null,null,null,null,null,null,null,null,null,null,"Ciclo I",null,null,"Ciclo II"]
[null,null,"107.A. HASTA LA FECHA DE APLICACIÓN DEL CENSO EDUCATIVO 2024, ¿CUÁNTOS",null,null,null,null,null,null,null,null,null,null,null,"EDADES",null,null,0,1,2,3,4,"5 y +"]
[null,null,null,"DÍAS DE CLASES PERDIDOS POR RAZONES NO PROGRAMADAS SE HAN RECUPERADO?",null,null,null,null,null,null,null,null,null,null,"Turno mañana",null,{"$f":"SUM(R75:W75)","v":0}]
[]
[null,null,null,null,"Días recuperados:",null,null,null,null,null,null,null,null,null,"Turno tarde",null,{"$f":"SUM(R77:W77)","v":0}]
[]
[null,null,"108.A. ¿QUÉ ESTRATEGIA(S) SE UTILIZÓ(ARON) PARA RECUPERAR LOS DÍAS DE CLASES",null,null,null,null,null,null,null,null,null,null,"113.A  EN EL PROCESO  DE  MATRÍCULA  DEL PERIODO 2024,  LOS PADRES  DE  FAMILIA, "]
[null,null,null,"PERDIDOS POR RAZONES NO PROGRAMADAS?",null,null,null,null,null,null,null,null,null,null,"CUIDADORES(AS) O APODERADOS(AS) QUE SOLICITARON UNA O MÁS VACANTES EN ESTE "]
[null,null,null,null,null,null,null,null,null,null,null,null,null,null,"SERVICIO/NIVEL EDUCATIVO, ¿LOGRARON OBTENER EL TOTAL DE VACANTES SOLICITADAS?"]
[null,null,null,"Marque con una “X”, una o más opciones"]
[null,null,null,null,"Se implementaron horas adicionales de clases",null,null,null,null,null,null,null,null,null,null,"Sí",null,"Pase a la pregunta 115.A"]
[null,null,null,null,"Se realizaron clases los días feriados"]
[null,null,null,null,"Se desarrollaron clases durante las vacaciones escolares",null,null,null,null,null,null,null,null,null,null,"No",null,"¿Por qué no lograron una ó más vacante(s) ?"]
[null,null,null,null,"Se dictaron clases los días sábados/domingos",null,null,null,null,null,null,null,null,null,null,null,null,"Marque con un aspa “X” una opcion"]
[null,null,null,null,"Otro","Especificar"]
[]
[null,null,"109.A. ¿CUENTA CON ESPACIO FÍSICO PARA IMPLEMENTAR MÁS AULAS, CONSIDERANDO",null,null,null,null,null,null,null,null,null,null,null,null,null,"No hay capacidad para recibirlos"]
[null,null,null,"LAS QUE TIENE ACTUALMENTE?",null,null,null,null,null,null,null,null,null,null,null,null,"Hay capacidad, pero existen aulas con mucho riesgo"]
[null,null,null,null,null,null,null,null,null,null,null,null,null,null,null,null,"Prefiero tener una carga docente baja, para un mejor aprendizaje"]
[null,null,null,"Sí","",null,null,"No  ",null,null,null,null,null,null,null,null,"Otro"]
[]
[]
[null,null,"114.A. ¿QUÉ CRITERIOS DE PRIORIZACIÓN TUVIERON EN CUENTA PARA LA MATRÍCULA DE LOS",null,null,null,null,null,null,null,null,null,null,"119.A  EN LOS ÚLTIMOS TRES MESES, ¿SE COORDINÓ U OFRECIÓ ALGÚN PROGRAMA"]
[null,null,null,"ESTUDIANTES QUE SOLICITARON UNA VACANTE EN ESTE SERVICIO/NIVEL EDUCATIVO?",null,null,null,null,null,null,null,null,null,null,"O SERVICIO, COMO?:"]
[null,null,null,"Seleccione  \"SI\" o \"NO\", según corresponda por cada criterio"]
[null,null,null,null,null,null,null,null,null,null,null,null,null,null,null,null,"Programa Qali Warma"]
[null,null,null,"NRO.","CRITERIOS",null,null,null,null,null,null," SI - NO",null,null,null,null,"Campaña de vacunación"]
[null,null,{"$f":"COUNTIF(L100:L111,\"NO\")","v":0},1,"Cercanía del lugar de residencia del estudiante a la I.E.",null,null,null,null,null,null,null,null,null,null,null,"Control de crecimiento y desarrollo"]
[null,null,null,2,"Cercanía del trabajo de los padres o apoderados del estudiante a la I.E.",null,null,null,null,null,null,null,null,null,null,null,"SAANEE"]
[null,null,null,3,"Hermanos (as) estudiando en la misma I.E.",null,null,null,null,null,null,null,null,null,null,null,"Servicio de Apoyo Educativo Virtual (SAEV)"]
[null,null,null,4,"Hijos (as) de ex alumnos (as)",null,null,null,null,null,null,null,null,null,null,null,"Otro  -  especifique",null,""]
[null,null,null,5,"Niños (as) con Necesidades Educativas Especiales (NEE)",null,null,null,null,null,null,null,null,null,null,"","Ninguno"]
[null,null,null,6,"Estado civil de los padres"]
[null,null,null,7,"Record de rendimiento académico del estudiante",null,null,null,null,null,null,null,null,"120.A. ESTE SERVICIO/NIVEL EDUCATIVO, ¿CUENTA CON UN PLAN APROBADO DE"]
[null,null,null,8,"Documentos que sustenten solvencia económica de los padres o apoderados",null,null,null,null,null,null,null,null,null,"LUCHA CONTRA LA ANEMIA?"]
[null,null,null,9,"Orden de llegada de los documentos de inscripción del estudiante"]
[null,null,null,10,"Que los estudiantes cuenten con documento de identidad",null,null,null,null,null,null,null,null,null,"Sí",null," No  "]
[null,null,{"$f":"COUNTIF(L113:L167,\"NO\")","v":0},11,"Que el estudiante haya rendido una evaluación de ingreso previa a matrícula"]
[null,null,null,12,"Otros",null,null,null,null,null,null,null,null,null,null,null,"¿Está incorporado en los documentos de gestión?"]
[null,null,null,null,null,null,null,null,null,null,null,{"$f":"COUNTIF(L100:L111,\"SI\") + COUNTIF(L100:L111,\"NO\")","v":0},null,null,null,null,"Sí  ",null,null,"No"]
[]
[null,null,"115.A. ¿REALIZÓ LA RESERVA COMO MÍNIMO DE (02) VACANTES POR CADA AULA PARA ESTUDIANTES",null,null,null,null,null,null,null,null,null,null,"121.A. DURANTE EL AÑO 2023, ¿HA COORDINADO CON ALGUNA INSTITUCIÓN PARA"]
[null,null,null,"CON NECESIDADES EDUCATIVAS ESPECIALES ASOCIADA A DISCAPACIDAD LEVE O MODERADA?",null,null,null,null,null,null,null,null,null,null,"REALIZAR ACTIVIDADES RELACIONADAS A LA LUCHA CONTRA LA ANEMIA?"]
[]
[null,null,null,"Sí",null,"No  ","",null,null,null,null,null,null,null,"Sí","","No  ","",null,"No sabe  "]
[]
[null,null,null,null,null,null,null,null,null,null,null,null,null,null,null,null,null,"  Pase a la pregunta 123.A"]
[null,null,"116.A  ¿HA RECIBIDO MATERIALES FORMATIVOS O INFORMATIVOS , FÍSICOS O DIGITALES"]
[null,null,null,"SOBRE LOS INSTRUMENTOS DE GESTIÓN?",null,null,null,null,null,null,null,null,null,"122.A  INDIQUE USTED, ¿CUÁLES DE LAS SIGUIENTES INSTITUCIONES ORGANIZARON "]
[null,null,null,null,null,null,null,null,null,null,null,null,null,null,"ALGUNA ACTIVIDAD RELACIONADA A LA LUCHA CONTRA LA ANEMIA?"]
[null,null,null,"Marque con una “X”, una o más opciones"]
[null,null,null,null,"He recibido materiales y/o formación a través de la UGEL.",null,null,null,null,null,null,null,null,null,"Entidad que Organizó",null,null,null,{"$f":"COUNTIF(T125:U130,\"X\")","v":0},"SI","NO","Fecha (dd-mm-aaaa)"]
[null,null,null,null,"He recibido materiales y/o formación a través de la DRE.",null,null,null,null,null,null,null,null,null,1,"Servicio / Nivel Educativo",null,null,null,"","",""]
[null,null,null,null,"He recibido materiales y/o formación a través de los programas formativos …",null,null,null,null,null,null,null,null,null,2,"UGEL/DRE",null,null,null,"","",""]
[null,null,null,null,"He recibido materiales y/o formación a través de páginas web oficiales del Minedu…",null,null,null,null,null,null,null,null,null,3,"Establecimiento de salud",null,null,null,"","",""]
[null,null,null,null,"He recibido materiales y/o formación a través de mis colegas o redes profesionales",null,null,null,null,null,null,null,null,null,4,"Municipalidad",null,null,null,"","",""]
[null,null,null,null,"No he recibido materiales y/o información sobre los Instrumentos de Gestión",null,null,null,null,null,null,null,null,null,5,"Organización No Gubernamental (ONG)",null,null,null,"","",""]
[null,null,null,null,null,null,null,null,null,null,null,null,null,null,6,"Otro",null,null,null,"","",""]
[]
[null,null,"117.A. ¿SE HA ELABORADO EL PLAN ANUAL DE TRABAJO (PAT) 2024?",null,null,null,null,null,null,null,null,null,null,"123.A  DURANTE EL AÑO 2022 ¿QUÉ ACTIVIDADES CON FAMILIAS SE HAN REALIZADO"]
[null,null,null,null,null,null,null,null,null,null,null,null,null,null,"DESDE ESTE SERVICIO/NIVEL EDUCATIVO?"]
[null,null,null,"Sí",null,"No  ",""]
[null,null,null,null,null,null,null,null,null,null,null,null,null,null,"Actividades",null,null,null,{"$f":"COUNTIF(T136:U140,\"X\")","v":0}," SI"," NO","Cantidad de …"]
[null,null,null,null,null,"¿Han sido incorporadas las actividades relacionadas con la",null,null,null,null,null,null,null,null,1,"Encuentros y jornadas",null,null,null,"","",""]
[null,null,null,null,null,"Tutoría, orientación educativa y convivencia escolar?",null,null,null,null,null,null,null,null,2,"Talleres",null,null,null,"","",""]
[null,null,null,null,null,null,null,null,null,null,null,null,null,null,3,"Reuniones",null,null,null,"","",""]
[null,null,null,null,null,"Sí  ",null,null,"No  ","",null,null,null,null,4,"Otros",null,null,null,"","",""]
[null,null,null,null,null,null,null,null,null,null,null,null,null,null,5,"Ninguna"]
[]
[null,null,"118.A. ESTE SERVICIO/NIVEL EDUCATIVO, ¿CUENTA CON UN PLAN APROBADO",null,null,null,null,null,null,null,null,null,null,"124.A  EL SERVICIO/NIVEL EDUCATIVO, ¿TIENE PRACTICANTES DE UNIVERSIDADES O INSTITUTOS ?"]
[null,null,null,"DE GESTIÓN DE RIESGO DE DESASTRES?"]
[null,null,null,null,null,null,null,null,null,null,null,null,null,null,"Entidad de Procedencia",null,null,null,"Marcar","Nro. de",null,"Asistencia en nro. de:"]
[null,null,null,"Sí",null,null,null,"No  ","",null,null,null,null,null,null,null,null,{"$f":"COUNTIF(S146:S148,\"X\")","v":0},"\"X\"","Practicantes",null,"Dias","Meses"]
[null,null,null,null,null,null,null,null,null,null,null,null,null,null,1,"de Universidad"]
[null,null,null,null,null,"¿Qué fase contempla?",null,null,null,null,null,null,null,null,2,"de Instituto"]
[null,null,null,null,null,null,null,null,null,null,null,null,null,null,3,"Ninguno"]
[null,null,null,null,"Marque con una “X”, una o más opciones"]
[null,null,null,null,null,"Fase de soporte socioemocional",null,null,null,null,null,null,null,"125.A. ESTE SERVICIO/NIVEL EDUCATIVO, ¿SE ENCUENTRA EN EL ÁMBITO DE ALGÚN"]
[null,null,null,null,null,"Fase de actividades lúdicas",null,null,null,null,null,null,null,null,"ESTABLECIMIENTO DE SALUD?"]
[null,null,null,null,null,"Fase de aplicación del currículo"]
[null,null,null,null,null,null,null,null,null,null,null,null,null,null,"Sí",null,"No  ","",null,null,"Pase a la pregunta 127.A"]
[]
[]
[null,null,"126.A. ESTE SERVICIO/NIVEL EDUCATIVO, ¿REALIZA COORDINACIONES Y/O ACCIONES",null,null,null,null,null,null,null,null,null,null,"128.A. ¿EL SERVICIO/NIVEL EDUCATIVO, HA DESARROLLADO UNA O ALGUNAS DE"]
[null,null,null,"DE ARTICULACIÓN CON EL ESTABLECIMIENTO DE SALUD?",null,null,null,null,null,null,null,null,null,null,"LAS ACTIVIDADES PROPUESTAS PARA LA IMPLEMENTACIÓN DE LA EIT?"]
[null,null,null,null,null,null,null,null,null,null,null,null,null,null,"Educación Intercultural para Todos y Todas"]
[null,null,null,"Sí",null,null,null,"No  ",""]
[null,null,null,null,null,null,null,null,null,null,null,null,null,null,"Activivades EIT",null,null,null,null,null,{"$f":"COUNTIF(V161:V163,\"SI\")+COUNTIF(V161:V163,\"NO\")","v":0}," SI-NO"]
[null,null,null,null,null,"¿Qué tipo de coordinaciones y/o acciones realiza?",null,null,null,null,null,null,null,null,1,"Descubriendo nuevos orígenes"]
[null,null,null,null,"Marque con una “X”, una o más opciones",null,null,null,null,null,null,null,null,null,2,"Encuentro con nuestra diversidad"]
[null,null,null,null,null,"Salud física de estudiantes",null,null,null,null,null,null,null,null,3,"Feria de la diversidad"]
[null,null,null,null,null,"Salud física de docentes"]
[null,null,null,null,null,"Salud mental del estudiante"]
[null,null,null,null,null,"Salud mental del docente"]
[null,null,null,null,null,"Otros      ",null,null,null,null,null,null,null,"129.A. ¿CUÁNTAS INTERVENCIONES O CAMBIOS SIGNIFICATIVOS, EN LOS QUE HAYA"]
[null,null,null,null,null,null,null,null,null,null,null,null,null,null,"INTERVENIDO LA COOPERACIÓN INTERNACIONAL, HA EXPERIMENTADO SU SERVICIO/NIVEL"]
[null,null,"127.A.","EN ESTE SERVICIO/NIVEL EDUCATIVO, DURANTE EL AÑO 2023 Y HASTA LA FECHA DE LA APLICACIÓN DEL CENSO EDUCATIVO 2024, ¿SE HAN REALIZADO ACCIONES PARA ATENDER SITUACIONES DE INTERRUPCIÓN DE ESTUDIOS DE LOS ESTUDIANTES?",null,null,null,null,null,null,null,null,null,null,"EDUCATIVO EN EL ÚLTIMO AÑO, CON EL OBJETIVO DE MEJORAR LA CALIDAD EDUCATIVA Y/O EN EL FUNCIONAMIENTO INSTITUCIONAL?"]
[null,null,null,"Sí",null,null,null,"No  ",""]
[null,null,null,null,null,null,null,null,null,null,null,null,null,null,"Cantidad de intervenciones o cambios significativos:"]
[null,null,null,null,null,"¿Qué acciones se realizaron?"]
[null,null,null,null,"Marque con una “X”, una o más opciones"]
[null,null,null,null,null,"Seguimiento y visitas a estudiantes en riesgo de abandono"]
[null,null,null,null,null,"Orientaciones a las familias sobre la continuidad en la IE"]
[null,null,null,null,null,"Flexibilización de la atención educativa brindada en la IE"]
[null,null,null,null,null,"Orientación a los docentes para atender a los estudiantes en riesgo"]
[null,null,null,null,null,"Otros      "]
[]
[]
[null,null,"B. TUTORÍA , ORIENTACIÓN EDUCATIVA Y CONVIVENCIA ESCOLAR"]
[null,null,"101.B  EN ESTE SERVICIO/NIVEL EDUCATIVO ¿SE DESARROLLAN PROGRAMAS QUE PROMUEVAN LA ÉTICA",null,null,null,null,null,null,null,null,null,null,"108.B. ESTE SERVICIO/NIVEL EDUCATIVO, ¿EN QUE FECHAS REALIZÓ LAS TRES ACTIVIDADES?"]
[null,null,null,"INTEGRIDAD Y VALORES?"]
[]
[null,null,null,"Sí",null," No  ","",null,null,null,null,null,null,null,null,null,null,null,{"$f":"SUM(P186:P188)","v":3},"Día","Mes","Año"]
[null,null,null,null,null,null,null,null,null,null,null,null,null,null,null,{"$f":"IF(OR(T186=\"\",U186=\"\",V186=\"\"),1,0)","v":1},"Actividad N° 01",null,{"$f":"SUM(T186:V186)","v":0},null,null,null,{"$f":"IF(S186>0,CONCATENATE(T186,\"-\",U186,\"-\",V186),\"\")","v":""}]
[null,null,"102.B   INDIQUE,  ¿CON CUALES DE LOS SIGUIENTES COMITÉS CUENTA ESTE SERVICIO NIVEL EDUCATIVO Y ",null,null,null,null,null,null,null,null,null,null,null,null,{"$f":"IF(OR(T187=\"\",U187=\"\",V187=\"\"),1,0)","v":1},"Actividad N° 02",null,{"$f":"SUM(T187:V187)","v":0},null,null,null,{"$f":"IF(S187>0,CONCATENATE(T187,\"-\",U187,\"-\",V187),\"\")","v":""}]
[null,null,null,"CON QUE FRECUENCIA SE REUNEN?",null,null,null,null,null,null,null,null,null,null,null,{"$f":"IF(OR(T188=\"\",U188=\"\",V188=\"\"),1,0)","v":1},"Actividad N° 03",null,{"$f":"SUM(T188:V188)","v":0},null,null,null,{"$f":"IF(S188>0,CONCATENATE(T188,\"-\",U188,\"-\",V188),\"\")","v":""}]
[]
[null,null,null,"(Selecciones SI o No en la o las alternativas que correspondan)",null,null,null,null,null,null,null,null,null,"109.B. EN ESTE SERVICIO/NIVEL EDUCATIVO, ¿QUIÉNES FUERON LOS PARTICIPANTES"]
[null,null,null,"Detalle de los comités en el  Servicio/Nivel Educativo",null,null,null,"Cuenta con este comité","¿Está conformado mediante \n (RD)?",null,"Frecuencia de las reuniones",null,null,null,"Y LA CANTIDAD DEL PÚBLICO OBJETIVO EN LAS ACTIVIDADES QUE REALIZÓ?"]
[]
[null,null,null,null,null,null,null,null,null,null,null,null,null,null,null,null,null,null,null,"Cantidad de participantes"]
[null,null,null,null,null,null,{"$f":"COUNTIF(H195:H197,\"SI\")+COUNTIF(H195:H197,\"NO\")","v":0},"SI - NO","SI - NO",null,null,null,null,null,null,null,null,null,{"$f":"SUM(T195:W198)","v":0},"Actividad\nN° 01",null,"Actividad\nN° 02","Actividad\nN° 03"]
[null,null,null,1,"Comité de Tutoría",null,null,null,null,null,null,null,"",null,"01","Docentes",null,null,{"$f":"SUM(T195:W195)","v":0}]
[null,null,null,2,"Comité de Gestión del Bienestar",null,null,null,null,null,null,null,null,null,"02","Estudiantes",null,null,{"$f":"SUM(T196:W196)","v":0}]
[null,null,null,3,"Otros",null,null,null,null,null,null,null,"",null,"03","Familia",null,null,{"$f":"SUM(T197:W197)","v":0}]
[null,null,null,null,null,null,null,null,null,null,null,null,null,null,"04","Personal Administrativo",null,null,{"$f":"SUM(T198:W198)","v":0}]
[null,null,"103.B. SOLO SI MARCO QUE CUENTA CON “COMITE DE GESTIÓN DEL BIENESTAR”,"]
[null,null,null,"DE LOS SIGUIENTES ACTORES, ¿QUIÉNES LO CONFORMAN?",null,null,null,null,null,null,null,null,null,"110.B. ACTUALMENTE LOS DOCENTES, ¿INCORPORAN EN LA PLANIFICACIÓN ANUAL DE AULA"]
[null,null,null,"Marque con una “X”, una o más opciones",null,null,null,null,null,null,null,null,null,null,"LAS ACTIVIDADES RELACIONADAS CON LA TUTORÍA Y ORIENTACIÓN EDUCATIVA?"]
[null,null,null,null,null,null,null,null,null,null,null,null,null,null,"Marque con una “X”, una opción"]
[null,null,null,null,"Director/a de la IIEE"]
[null,null,null,null,"El/la coordinador/a de tutoría",null,null,null,null,null,null,null,null,null,null,"Sí, todos los docentes"]
[null,null,null,null,"El/la responsable de convivencia",null,null,null,null,null,null,null,null,null,null,"Sí, algunos docentes"]
[null,null,null,null,"El/la responsable de inclusión",null,null,null,null,null,null,null,null,null,null,"Ninguno"]
[null,null,null,null,"Un/a (1) representante de los padres y madres de familia, tutores legales o apoderados/as."]
[null,null,null,null,"Un/a (1) representante de las y los estudiantes",null,null,null,null,null,null,null,null,"111.B. ESTE SERVICIO/NIVEL EDUCATIVO, ¿RECIBE ASISTENCIA TÉCNICA SOBRE"]
[null,null,null,null,"Un/a (1) psicólogo, cuando exista el cargo en la IIEE",null,null,null,null,null,null,null,null,null,"CONVIVENCIA ESCOLAR, LA PREVENCIÓN Y ATENCIÓN DE LA VIOLENCIA ESCOLAR?"]
[null,null,null,null,"Otros",null,""]
[null,null,null,null,null,null,null,null,null,null,null,null,null,null,"Sí",null," No  ",null,null,null,"Pase a la pregunta 113.B"]
[null,null,"104.B  EL SERVICIO/NIVEL EDUCATIVO, ¿CUENTA CON PLAN DE TUTORÍA, ORIENTACIÓN EDUCATIVA Y "]
[null,null,null,"CONVIVENCIA ESCOLAR?",null,null,null,null,null,null,null,null,null,null,null,null,null,null,null,null,"¿Cantidad de\nveces en el año?"]
[]
[null,null,null,"Sí",null," No  ","",null,null,"Pase a la pregunta 106.B",null,null,null,null,null,null,"Especialista de convivencia de la UGEL"]
[null,null,null,null,null,null,null,null,null,null,null,null,null,null,null,null,"Otro actor"]
[null,null,"105.B  ¿SE HA ACTUALIZADO EL PLAN DE TUTORÍA, CON RELACIÓN A LO ELABORADO  EN EL AÑO 2023?"]
[null,null,null,""]
[null,null,null,"Sí",null," No  ","",null,null,null,null,null,null,"112.B. EN ESTE SERVICIO/NIVEL EDUCATIVO, ¿QUÉ TEMAS HAN SIDO ABORDADOS"]
[{"$f":"CONCATENATE(E225,E234)","v":""},null,null,null,null,null,null,null,null,null,null,null,null,null,"EN LA ASISTENCIA TÉCNICA?"]
[{"$f":"CONCATENATE(G225,G234)","v":""},null,"106.B. ESTE SERVICIO/NIVEL EDUCATIVO, ¿INCLUYE ACTIVIDADES DEL PLAN DE TUTORÍA,",null,null,null,null,null,null,null,null,null,null,null,"Marque con una “X”, una o más opciones"]
[null,null,null,"ORIENTACIÓN EDUCATIVA Y CONVIVENCIA ESCOLAR RELACIONADAS A LA PROMOCIÓN DE LA"]
[null,null,null,"CONVIVENCIA ESCOLAR, LA PREVENCIÓN Y LA ATENCIÓN DE LA VIOLENCIA ESCOLAR?",null,null,null,null,null,null,null,null,null,null,"","Disciplina con enfoque de derechos (sin maltrato ni humillación) y medidas correctivas en aula"]
[null,null,null,null,null,null,null,null,null,null,null,null,null,null,"","Normas de convivencia concertadas en la escuela"]
["SI",null,null,"Sí",null," No  ","",null,null,"Pase a la pregunta 110.B",null,null,null,null,"","Habilidades socioemocionales en las/los docentes y escolares"]
["NO",null,null,null,null,null,null,null,null,null,null,null,null,null,"","Participación estudiantil para la prevención de la violencia"]
[null,null,null,null,null,"¿Qué cantidad realizó?",null,null,null,null,null,null,null,null,"","Educación Sexual Integral para la prevención de la violencia"]
[null,null,null,null,null,null,null,null,null,null,null,null,null,null,"","Tipos de violencia, señales de alerta y cultura de reporte"]
[null,null,"107.B. ESTE SERVICIO/NIVEL EDUCATIVO, ¿IMPLEMENTA AL MENOS TRES ACTIVIDADES",null,null,null,null,null,null,null,null,null,null,null,"","Protocolos de atención a la violencia hacia niñas, niños y adolescentes"]
[null,null,null,"DEL PLAN DE TUTORÍA, ORIENTACIÓN EDUCATIVA Y CONVIVENCIA ESCOLAR RELACIONADAS",null,null,null,null,null,null,null,null,null,null,"","Orientaciones para prevención de la violencia"]
[null,null,null,"A LA PROMOCIÓN DE LA CONVIVENCIA ESCOLAR, LA PREVENCIÓN Y LA ATENCIÓN DE LA",null,null,null,null,null,null,null,null,null,null,"","Promoción de la convivencia"]
[null,null,null,"VIOLENCIA ESCOLAR?NCIÓN DE LA VIOLENCIA ESCOLAR?",null,null,null,null,null,null,null,null,null,null,"","Otros",null,""]
[]
[null,null,null,"Sí",null," No  ","",null,null,"Pase a la pregunta 110.B"]
[]
[]
[null,null,"113.B. DE LAS SIGUIENTES ACCIONES, ¿CUÁLES SE HAN IMPLEMENTADO EN ESTE SERVICIO/NIVEL",null,null,null,null,null,null,null,null,null,null,"117.B. ESTE SERVICIO/NIVEL EDUCATIVO, ¿CUENTA CON AL MENOS UNA/UN"]
[null,null,null,"EDUCATIVO, DURANTE EL AÑO 2024, SEGÚN LAS NECESIDADES DE LOS ESTUDIANTES?",null,null,null,null,null,null,null,null,null,null,"RESPONSABLE DE CONVIVENCIA ESCOLAR ASIGNADO PARA EL PRESENTE AÑO?"]
[]
[null,null,null,"Seleccione “Si” o “No” según corresponda para cada tema",null,null,null,null,null,null,null,null,null,null,"Sí",null," No  ",""]
[]
[null,null,null,null,null,null,null,null,null,null,"¿Ha sido impemen- tado?","¿Ha recibido asistencia técnica?",null,null,null,null,"¿Se encuentra registrado en el portal SíseVe?"]
[null,null,null,"NRO.","Acciones"]
[null,null,null,null,null,null,null,null,null,null,null,null,null,null,null,null,"Sí  ",null,null,"No",""]
[null,null,null,null,{"$f":"COUNTIF(K246:K258,\"SI\")","v":0},null,null,null,null,null,"SI/NO","SI/NO"]
[null,null,{"$f":"COUNTIF(K246:K258,\"NO\")","v":0},"01","Prevención de la violencia familiar"]
[null,null,null,"02","Desarrollo de las competencias parentales",null,null,null,null,null,null,null,null,"118.B  EL SERVICIO/NIVEL EDUCATIVO, ¿CUENTA CON LIBRO DE REGISTRO DE INCIDENCIAS "]
[null,null,null,"03","Promoción de la autonomía y de las rutinas",null,null,null,null,null,null,null,null,null,"SOBRE VIOLENCIA Y ACOSO ESCOLAR EN EL MARCO DE LA LEY 29719?"]
[null,null,null,"04","Pautas de crianza"]
[null,null,null,"05","Importancia de los cuidados",null,null,null,null,null,null,null,null,null,"Sí",null," No  ",null,null,null,"Pase a la pregunta 120.B"]
[null,null,null,"06","Alimentación responsiva"]
[null,null,null,"07","Importancia de las interacciones",null,null,null,null,null,null,null,null,null,null,null,"¿El libro de registro se encuentra en un lugar visible?"]
[null,null,null,"08","Importancia del juego"]
[null,null,null,"09","¿Cómo aprenden las niñas y niños de inicial?",null,null,null,null,null,null,null,null,null,null,null,"Sí  ","",null,"No"]
[null,null,null,"10","Prevención de la violencia sexual"]
[null,null,null,"11","Desarrollo de las habilidades socio emocionales"]
[null,null,null,"12","Educación Sexual Integral, según RVM N° 169-2021-MINEDU",null,null,null,null,null,null,null,null,"119.B. EN ESTE SERVICIO/NIVEL EDUCATIVO, EN EL AÑO 2023, ¿SE HIZO USO DEL"]
[null,null,null,"13","Otro",null,null,null,null,null,null,null,null,null,"LIBRO DE REGISTRO DE INCIDENCIAS?"]
[null,null,null,null,null,null,null,null,null,null,{"$f":"COUNTIF(K246:K258,\"SI\")+COUNTIF(K246:K258,\"NO\")","v":0},{"$f":"COUNTIF(L246:L258,\"SI\")+COUNTIF(L246:L258,\"NO\")","v":0}]
[null,null,null,null,null,null,null,null,null,null,null,null,null,null,"Sí",null," No  "]
[]
[null,null,"114.B. EN ESTE SERVICIO/NIVEL EDUCATIVO, ¿QUÉ ESTRATEGIAS DE TUTORÍA Y",null,null,null,null,null,null,null,null,null,null,null,null,null,"¿Cuántas incidencias se registraron en el año 2023?"]
[null,null,null,"ORIENTACIÓN EDUCATIVA SE VIENE IMPLEMENTANDO DE MANERA PERMANENTE?"]
[null,null,null,"Marque con una “X”, una o más opciones",null,null,null,null,null,null,null,null,null,null,null,null,"Anote la fecha en la que el Servicio/Nivel",null,null,null,"DÍA","MES","AÑO"]
[null,null,null,null,null,null,null,null,null,null,null,null,null,null,null,null,"registró la última incidencia de violencia."]
[null,null,null,null,"Tutoría Individual",null,null,null,null,null,null,null,null,null,null,null,null,null,null,null,null,{"$f":"IF(P260<>\"\",CONCATENATE(U265,\"-\",V265,\"-\",W265),\"\")","v":""}]
[null,null,null,null,"Tutoría grupal"]
[null,null,null,null,"Participación estudiantil",null,null,null,null,null,null,null,null,"120.B. ESTE SERVICIO/NIVEL EDUCATIVO, REALIZA ACTIVIDADES PARA:"]
[null,null,null,null,"Trabajo con las familias y la comunidad"]
[null,null,null,null,"Orientación Educativa permanente",null,null,null,null,null,null,null,null,"Detalle de los comités en el  Servicio/Nivel Educativo",null,null,null,"SI - NO","¿Cuenta con\nmedios de\nverificación?",null,"Informe de actividades","Fotografias","Videos","Otros"]
[null,null,null,null,"Otro",null,""]
[null,null,null,"","Ninguno"]
[null,null,null,null,null,null,null,null,null,null,null,null,null,null,null,null,null,null,"SI - NO"]
[null,null,null,null,null,null,null,null,null,null,null,null,null,"Convivencia escolar democrática"]
[null,null,"115.B. EL SERVICIO/NIVEL EDUCATIVO, ¿CUENTA CON NORMAS DE CONVIVENCIA",null,null,null,null,null,null,null,null,null,null,"Prevención de la violencia contra niñas o niños"]
[null,null,null,"ESCOLAR ACTUALIZADAS PARA EL PRESENTE AÑO?",null,null,null,null,null,null,null,null,null,null,null,null,null,{"$f":"COUNTIF(R274:R275,\"SI\")+COUNTIF(R274:R275,\"NO\")","v":0}]
[]
[null,null,null,"Sí",null," No  ","",null,null,"Pase a la pregunta 118.B",null,null,null,"121.B. SOLO SI MARCO QUE REALIZA “LA PREVENCIÓN DE LA VIOLENCIA CONTRA NIÑAS(OS) Y"]
[null,null,null,null,null,null,null,null,null,null,null,null,null,null,"ADOLESCENTES”, ¿CUÁLES SON LAS ACTIVIDADES QUE REALIZA ESTE SERVICIO/NIVEL EDUCATIVO?"]
[null,null,null,null,null,"¿Están incorporadas al reglamento interno?",null,null,null,null,null,null,null,null,"Marque con una “X”, una o más opciones"]
[]
[null,null,null,null,null,"Sí  ",null,null,"No","",null,null,null,null,null,"Gestión de talleres o reuniones con estudiantes."]
[null,null,null,null,null,null,null,null,null,null,null,null,null,null,null,"Capacitación a docentes para prevenir y/o atender casos de riesgo."]
[null,null,null,null,null,null,null,null,null,null,null,null,null,null,null,"Envío de orientaciones a apoderados/as."]
[null,null,"116.B. ¿LAS NORMAS DE CONVIVENCIA ESCOLAR HAN SIDO CONSTRUIDAS CON LA PARTICIPACIÓN",null,null,null,null,null,null,null,null,null,null,null,null,"Gestión de talleres o reuniones con apoderados/as."]
[null,null,null,"DE REPRESENTANTES DE LAS/LOS ESTUDIANTES?",null,null,null,null,null,null,null,null,null,null,null,"Gestión de estrategias en conjunto con otras organizaciones."]
[null,null,null,null,null,null,null,null,null,null,null,null,null,null,null,"Monitoreo de situación emocional y familiar de estudiantes."]
[null,null,null,"Sí",null," No  ","",null,null,null,null,null,null,null,null,"Otro",""]
[]
[]
[]
[]
[]
[]
[]
[]
[]
[]
[]
[]
[null,null,"122.B  USTED, SEÑOR(A) DIRECTOR(A), ¿CONOCE EL PORTAL SÍSEVE?",null,null,null,null,null,null,null,null,null,null,"126.B  ¿EL SERVICIO/NIVEL EDUCATIVO HA REALIZADO ALGUNA ACTIVIDAD COORDINADA"]
[null,null,null,null,null,null,null,null,null,null,null,null,null,null,"CON ALGUNO DE LOS ALIADOS ESTRATÉGICOS?"]
[null,null,null," Sí",null," No  ","",null,null,"Pase a la pregunta 125.B"]
[null,null,null,null,null,null,null,null,null,null,null,null,null,null," Sí",null," No  "]
[null,null,null,null,null,"¿Ha sido capacitado por algún integrante de la UGEL/DRE"]
[null,null,null,null,null,"en el uso del Portal SíseVe? ",null,null,null,null,null,null,null,"127.B  SEÑOR(A) DIRECTOR(A,) ¿EMPLEA USTED HERRAMIENTAS DE CONSULTA PARA"]
[null,null,null,null,null," Sí   ",null,null," No  ","",null,null,null,null,"VERIFICAR LA SITUACIÓN DEL PERSONAL DE ESTE SERVICIO/NIVEL EDUCATIVO, TAL COMO"]
[null,null,null,null,null,null,null,null,null,null,null,null,null,null,"EL REGISTRO NACIONAL DE SANCIONES CONTRA SERVIDORES CIVILES – RNSSC?"]
[null,null,null,null,""]
[null,null,"123.B. ESTE SERVICIO/NIVEL EDUCATIVO, ¿SE ENCUENTRA AFILIADO AL SÍSEVE?",null,null,null,null,null,null,null,null,null,null,null," Sí",null," No  ",""]
[]
[null,null,null,"Sí","","¿Cuántos casos han sido reportados?",null,null,null,null,null,null,null,"128.B  SEÑOR(A) DIRECTOR(A) ¿CONOCE USTED QUE PUEDE PRESENTAR DENUNCIAS SOBRE"]
[null,null,null,null,null,null,null,null,null,null,null,null,null,null,"POSIBLE ACTOS DE SOBORNO DE MANERA ANÓNIMA, CON LA FINALIDAD DE PROTEGER"]
[null,null,null,null,null,null,null,null,null,null,null,null,null,null,"SU IDENTIDAD?"]
[null,null,null,"No",null,"¿Porque razón el servicio y/o nivel educativo no está afiliado al SÍSEVE?"]
[null,null,null,null,null,null,null,null,null,null,null,null,null,null," Sí",""," No  "]
[null,null,null,null,null,"Marque con una “X”, una opción"]
[null,null,null,null,null,"Por falta de internet",null,null,null,null,null,null,null,"129.B  SEÑOR(A) DIRECTOR(A) ¿TIENE CONOCIMIENTO QUE LOS HECHOS DE VIOLENCIA,"]
[null,null,null,null,null,"Lo conoce y no le parece importante afiliarse",null,null,null,null,null,null,null,null,"ADEMÁS DE SER REPORTADOS EN EL PORTAL DEL SÍSEVE, DEBEN SER REPORTADOS"]
[null,null,null,null,null,"Le parece importante, pero no lo ve necesario para su I.E.",null,null,null,null,null,null,null,null,"A LA UGEL?"]
[null,null,null,null,null,"Otro",""]
[null,null,null,null,"",null,null,null,null,null,null,null,null,null," Sí",""," No  "]
[null,null,null,null,""]
[null,null,"124.B. EN ESTE SERVICIO/NIVEL EDUCATIVO, EN EL AÑO 2023, ¿USTED HA REPORTADO",null,null,null,null,null,null,null,null,null,null,"130.B  SEÑOR(A) DIRECTOR(A) ¿CONOCE USTED EN QUE CASOS TIENE COMPETENCIA PARA"]
[null,null,null,"ALGÚN HECHO DE VIOLENCIA EN EL PORTAL SÍSEVE?",null,null,null,null,null,null,null,null,null,null,"INVESTIGAR UNA DENUNCIA QUE HAYA SIDO PRESENTADA EN CONTRA DE PROFESORES,"]
[null,null,null,"Sistema Especializado en Reporte de casos sobre Violencia Escolar",null,null,null,null,null,null,null,null,null,null,"PERSONAL JERÁRQUICO Y SUBDIRECTOR DE ESTE SERVICIO/NIVEL EDUCATIVO QUE DIRIGE?\n"]
[null,null,null,null,""]
[null,null,null,null,null,"  Para el año 2023",null,null,null,null,null,null,null,null," Sí",""," No  "]
[null,null,null," Sí","","¿Cuántos casos fueron reportados?"]
[null,null,null,null,null,null,null,null,null,null,null,null,null,"131.B  SEÑOR(A) DIRECTOR(A), DURANTE EL PRESENTE AÑO, ¿HA RECIBIDO DENUNCIAS"]
[null,null,null,"No",null,null,null,null,null,null,null,null,null,null,"CONTRA EL PERSONAL DOCENTE DE ESTE SERVICIO/NIVEL EDUCATIVO?"]
[]
[null,null,null,null,"",null,null,null,null,null,null,null,null,null," Sí",null," No  ",null,null,null,"Pase a la pregunta 133.B"]
[null,null,"125.B. ESTE SERVICIO/NIVEL EDUCATIVO, ¿CUENTA CON UN MAPA O DIRECTORIO"]
[null,null,null,"DE ALIADOS ESTRATÉGICOS?",null,null,null,null,null,null,null,null,null,null,null,null,null,"¿Cuántas?"]
[]
[null,null,null," Sí",null," No  ",null,null,"Pase a la pregunta 127.B",null,null,null,null,"132.B  SOBRE LA ATENCIÓN A LAS DENUNCIAS RECIBIDAS CONTRA EL PERSONAL DOCENTE"]
[null,null,null,null,null,null,null,null,null,null,null,null,null,null,"EN EL PRESENTE AÑO, INDIQUE USTED:"]
[]
[null,null,null,"En caso de que cuente con un mapa o directorio de aliados estratégicos",null,null,null,null,null,null,null,null,null,null,null,"A.   ¿ CUÁNTAS DERIVÓ A LA CPPADD ?"]
[null,null,null,null,null,null,null,"Prevención y\natención de casos\nde violencia escolar",null,null,"Promover el bienestar socioemocinal de los estudiantes",null,null,null,null,"B.   ¿CUÁNTAS ASUMIÓ LA INVESTIGACIÓN"]
[null,null,null,"Aliados estratégicos",null,null,null,null,null,null,null,null,null,null,null,"        POR SER DE SU COMPETENCIA?"]
[]
["01",null,null,"DEMUNA",null,null,null,null,null,null,null,{"$f":"CONCATENATE(J344,K344)","v":""},null,"133.B  SEÑOR(A) DIRECTOR(A), DURANTE EL PRESENTE AÑO, ¿USTED HA SIDO OBJETO DE DENUNCIAS"]
["02",null,null,"Defensoría del pueblo",null,null,null,null,null,null,null,{"$f":"CONCATENATE(J345,K345)","v":""},null,null,"POR ADOPTAR MEDIDAS EN PROTECCIÓN DEL ESTUDIANTE O DENUNCIAS DE CORRUPCIÓN?"]
["03",null,null,"Centro de emergencia Mujer (CEM)",null,null,null,null,null,null,null,{"$f":"CONCATENATE(J346,K346)","v":""}]
["04",null,null,"Centro o posta de salud",null,null,null,null,null,null,null,"",null,null," Sí",null," No  "]
["05",null,null,"Iglesia",null,null,null,null,null,null,null,""]
["06",null,null,"Comisaría",null,null,null,null,null,null,null,"",null,null,null,null,null,"¿Cuántas?"]
["07",null,null,"Centro de Salud Mental Comunitario (CSMC)",null,null,null,null,null,null,null,""]
["08",null,null,"Centro o posta de salud",null,null,null,null,null,null,null,"",null,"134.B  SEÑOR(A) DIRECTOR(A), EN ESTE SERVICIO/NIVEL EDUCATIVO, ¿SE TIENEN IMPLEMENTADAS"]
["09",null,null,"Municipalidad",null,null,null,null,null,null,null,"",null,null,"MEDIDAS DE SEGURIDAD PARA EL TRATAMIENTO DE LOS DATOS PERSONALES QUE"]
["10",null,null,"Gobierno regional",null,null,null,null,null,null,null,"",null,null,"ADMINISTRAN?"]
["11",null,null,"Universidad",null,null,null,null,null,null,null,"",null,null,"(Ya sea de alumnos, profesores, personal administrativo o terceros. En cumplimiento de la"]
["12",null,null,"ONG",null,null,null,null,null,null,null,"",null,null," ley N° 29733 y su reglamento)"]
["13",null,null,"Otro",null,null,null,null,null,null,null,{"$f":"CONCATENATE(J356,K356)","v":""}]
[null,null,null,null,null,null,null,null,null,null,{"$f":"COUNTIF(J344:K356,\"SI\")+COUNTIF(J344:K356,\"NO\")","v":0},null,null,null," Sí",null," No  ",""]
[]
[]
[null,null,"135.B. USTED SEÑOR(A) DIRECTOR(A), ¿TIENE AULA A CARGO U HORAS LECTIVAS",null,null,null,null,null,null,null,null,null,null,"138.B. EN ESTE SERVICIO/NIVEL EDUCATIVO, ¿SE HA EXPERIMENTADO ALGUNA DE LAS"]
[null,null,null,"PARA EL PRESENTE AÑO?",null,null,null,null,null,null,null,null,null,null,"SIGUIENTES DIFICULTADES RELACIONADAS A QUE EL DIRECTOR(A) TENGA AULA A CARGO?"]
[null,null,null,null,null,null,null,null,null,null,null,null,null,null,"Seleccione “Si” o “No” según corresponda en cada acción"]
[null,null,null," Sí",null," No  ",null,null,null,"Pase a la pregunta 139.B"]
[null,null,null,null,null,null,null,null,null,null,null,null,null,null,"NRO.","ACCIONES",null,null,null,null,null,null," SI - NO"]
[null,null,"136.B. SEÑOR DIRECTOR, ¿EN QUÉ NIVEL EDUCATIVO TIENE ASIGNADA EL AULA U",null,null,null,null,null,null,null,null,null,null,null,1,"Se dificulta realizar el monitoreo a la práctica pedagógica."]
[null,null,null,"HORAS Y LA ESPECIALIDAD QUE HA ESTUDIADO?",null,null,null,null,null,null,null,null,null,null,2,"Se dificulta realizar gestiones con aliados para la mejora de la IE."]
[null,null,null,null,null,null,null,null,null,null,null,null,null,null,3,"Se dificulta la gestión de la convivencia escolar."]
[null,null,null,null,"Selecciones SI o No en la o las alternativas que correspondan",null,null,null,null,null,null,null,null,null,4,"Se interrumpe las clases para atender funciones de dirección."]
[null,null,null,null,null,null,null,null,"Asignada el\naula u horas",null,"Especialidad que ha estudiado",null,null,null,5,"Se debe dejar solos a los niños en el aula para atender tareas de la …"]
[null,null,null,null,null,"NIVEL",null,null,null,null,null,null,null,null,6,"Se experimenta sobrecarga laboral, se debe laborar fuera del horario."]
[null,null,null,null,null,null,null,null,null,null,null,null,null,null,7,"Se experimenta problemas de salud"]
[null,null,null,null,null,null,null,{"$f":"COUNTIF(I373:K375,\"SI\")+COUNTIF(I373:K375,\"NO\")","v":0},"SI - NO",null,"SI - NO",null,null,null,8,"Se experimenta malestar psicosocial, estrés o agotamiento laboral."]
[null,null,null,null,1,"Inicial",null,null,"",null,"",null,null,null,9,"Se experimenta problemas personales, pasar menos tiempo con la ..."]
[null,null,null,null,2,"Primaria",null,null,"",null,""]
[null,null,null,null,3,"Secundaria",null,null,"",null,"",null,null,"139.B. EN SU OPINIÓN, SI A UN DIRECTOR(A) SE LE QUIERE ASIGNAR AULA A CARGO ¿CUÁNTAS"]
[null,null,null,null,null,null,null,null,null,null,null,null,null,null,"SECCIONES COMO MÁXIMO DEBERÍA TENER PARA QUE SU DESEMPEÑO NO SE VEA AFECTADO?"]
[null,null,"137.B. ¿CUÁL DE LAS SIGUIENTES AFIRMACIONES CONSIDERA QUE EXPRESA MEJOR",null,null,null,null,null,null,null,null,null,null,null,"Marque con una “X”, solo una opción"]
[null,null,null,"SU OPINIÓN RESPECTO A QUE EL DIRECTOR(A) DE ESTE SERVICIO/NIVEL EDUCATIVO"]
[null,null,null,"TENGA ASIGNADA AULA A CARGO U HORAS LECTIVAS?",null,null,null,null,null,null,null,null,null,null,null,null,"1 sección",null,null,null,"5 secciones"]
[null,null,null,"Marque con una “X”, solo una opción",null,null,null,null,null,null,null,null,null,null,null,null,"2 secciones",null,null,null,"6 secciones"]
[null,null,null,null,null,null,null,null,null,null,null,null,null,null,null,null,"3 secciones",null,null,null,"7 secciones"]
[null,null,null,null,"Es beneficiosa para el cumplimiento de mis funciones como director de IE.",null,null,null,null,null,null,null,null,null,null,null,"4 secciones",null,null,null,"Ninguna"]
[null,null,null,null,"Es indiferente para el cumplimiento de mis funciones como director de IE."]
[null,null,null,null,"Es perjudicial para el cumplimiento de mis funciones como director de IE",null,null,null,null,null,null,null,null,"140.B. DE LAS ACTIVIDADES QUE REALIZA CON FAMILIAS Y COMUNIDAD, ¿POR LO MENOS UNA"]
[null,null,null,null,null,null,null,null,null,null,null,null,null,null,"DE ELLAS TIENE COMO EJE PRINCIPAL LA EDUCACIÓN SEXUAL INTEGRAL (ESI)?"]
[]
[null,null,null,null,null,null,null,null,null,null,null,null,null,null," Sí",null," No  ",""]
[]
[]
[null,null,"C. ACOMPAÑAMIENTO Y SOPORTE PEDAGÓGICO"]
[null,null,"101.C  DESDE EL INICIO DEL AÑO ESCOLAR 2021 HASTA LA FECHA DE REPORTE DEL CENSO EDUCATIVO",null,null,null,null,null,null,null,null,null,null,"103. C. ¿UTILIZAN LA ESTRATEGIA DE “LA ASAMBLEA”?"]
[null,null,null,"EL SERVICIO/NIVEL EDUCATIVO, ¿HA RECIBIDO COMUNICACIÓN O PARTICIPACIÓN PRESENCIAL",null,null,null,null,null,null,null,null,null,null,"(De acuerdo a lo establecido en las Rutas del Aprendizaje 2015 del Área Personal Social – ciclo II)"]
[null,null,null,"O VIRTUAL/REMOTA DEL ESPECIALISTA PEDAGÓGICO DE LA UGEL, CON LA FINALIDAD DE"]
[null,null,null,"BRINDAR ASISTENCIA TÉCNICA?",null,null,null,null,null,null,null,null,null,null," Sí",null,null," No  ",""]
[]
[null,null,null,"Sí",null,null,"¿Cuántas veces?"]
[null,null,null,null,null,null,null,null,"Presencial:",null,null,null,null,null,null,"¿Con qué fin la utilizan?"]
[null,null,null,null,null,null,null,null,"Virtual/Remota:",null,null,null,null,null,null,"Marque con una  “X” una o más opciones"]
[null,null,null,null,null,null,null,null,null,null,null,null,null,null,null,null,"Para resolver las dificultades del aula"]
[null,null,null," No  ",null,null,"Pase a la pregunta 103.C",null,null,null,null,null,null,null,null,null,"Para organizar las actividades que las niñas y niños proponen"]
[null,null,null,null,null,null,null,null,null,null,null,null,null,null,null,null,"Para tratar algún tema que afecte al grupo"]
[null,null,"102.C  ¿CUÁLES DE LAS SIGUIENTES ACCIONES HA REALIZADO EL ESPECIALISTA PEDAGÓGICO AL",null,null,null,null,null,null,null,null,null,null,null,null,null,"Otros",""]
[null,null,null,"MOMENTO DE BRINDAR LA ASISTENCIA TÉCNICA AL SERVICIO/NIVEL EDUCATIVO?"]
[null,null,null,"Seleccione “Si” o “No” según corresponda en cada acción",null,null,null,null,null,null,null,null,null,"104.C. DURANTE EL AÑO 2023 Y HASTA LA FECHA DE APLICACIÓN DEL CENSO EDUCATIVO"]
[null,null,null,null,null,null,null,null,null,null,null,null,null,null,"2024, EL SERVICIO/NIVEL EDUCATIVO, ¿HA RECIBIDO ALGÚN TIPO DE ACOMPAÑA"]
[null,null,null,"NRO.","ACCIONES",null,null,null,null,null,null," SI - NO",null,null,"DIRIGIDO AL DIRECTIVO"]
[null,null,{"$f":"COUNTIF(L407:L428,\"NO\")","v":0},1,"Pregunto sobre las necesidades y demandas pedagógicas del"]
[null,null,null,null,"servicio/nivel educativo",null,null,null,null,null,null,null,null,null,"Sí",null," No  ","",null,null,"Pase a la pregunta 106.C"]
[null,null,null,2,"Observó alguna sesión o actividades de aprendizaje, ya sea de"]
[null,null,null,null,"manera presencial o virtual/remota (por lo menos una vez)",null,null,null,null,null,null,null,null,null,null,null,"¿Que Institución le brindó el acompañamiento?"]
[null,null,null,3,"Sostuvó un clima de confianza y proximidad durante sus acciones",null,null,null,null,null,null,null,null,null,null,null,"Marque con una “X” una o más opciones"]
[null,null,null,null,"de asistencia técnica con este servicio/ nivel educativo"]
[null,null,null,4,"Generó algún espacio para que el director(a) del servicio/nivel",null,null,null,null,null,null,null,null,null,"Nro.","Institución",null,null,null,null,{"$f":"COUNTIF(T414:T417,\"SI\") + COUNTIF(T414:T417,\"NO\")","v":0},"GESTIÓN"]
[null,null,null,null,"educativo autoevalúe su práctica",null,null,null,null,null,null,null,null,null,1,"DRE"]
[null,null,null,5,"Escuchó y respondió las dudas y consultas realizadas por usted",null,null,null,null,null,null,null,null,null,2,"UGEL"]
[null,null,null,6,"Las orientaciones brindadas atendieron las necesidades y",null,null,null,null,null,null,null,null,null,3,"MINEDU"]
[null,null,null,null,"demandas señaladas",null,null,null,null,null,null,null,null,null,4,"Otros"]
[null,null,null,7,"Brindó orientaciones para la mejora de las prácticas pedagógicas",null,null,null,null,null,null,null,null,null,null,null,null,null,null,null,null,{"$f":"CONCATENATE(V414,V415)","v":""}]
[null,null,null,null,"y de gestión acorde al enfoque por competencias.",null,null,null,null,null,null,null,null,null,null,"“Sólo si marco DRE o UGEL”"]
[null,null,null,8,"Sugirió estrategias pedagógicas contextualizadas para mejorar las",null,null,null,null,null,null,null,null,null,null,"¿Sobre qué temas recibió acompañamiento como director por parte de la DRE/UGEL?"]
[null,null,null,null,"prácticas docentes",null,null,null,null,null,null,null,null,null,null,"Marque con una “X”, una o más opciones"]
[null,null,null,9,"Dio a conocer las fortalezas del servicio / nivel educativo"]
[null,null,null,10,"Durante las orientaciones utiliza alguna herramienta curricular o fascículos",null,null,null,null,null,null,null,null,null,null,"Liderazgo directivo"]
[null,null,null,11,"Se asumieron compromisos y/o acuerdos para la mejora",null,null,null,null,null,null,null,null,null,null,"Temas administrativos"]
[null,null,null,12,"Brindó orientaciones y/o acompañamientos periódicos para la",null,null,null,null,null,null,null,null,null,null,"Temas estratégicos"]
[null,null,null,null,"Implementación de la metodología CAP en la IE.",null,null,null,null,null,null,null,null,null,null,"Temas pedagógicos"]
[null,null,null,13,"Brindó orientaciones y/o acompañamientos periódicos para la Implement.",null,null,null,null,null,null,null,null,null,null,"Temas comunitarios"]
[null,null,null,null,"de la metod.Círculo de Interaprendizaje de Directivo (CID)",null,null,null,null,null,null,null,null,null,null,"Círculo de Interaprendizaje de Directivos (CID)"]
[null,null,null,null,null,null,null,null,null,null,null,{"$f":"COUNTIF(L407:L428,\"SI\")+COUNTIF(L407:L428,\"NO\")","v":0},null,null,null,"Otros",null,""]
[]
[]
[null,null,"105.C. EN EL CASO DE QUE SU RESPUESTA DE LA PREGUNTA ANTERIOR, SEA DRE/UGEL,",null,null,null,null,null,null,null,null,null,null,"111.C  EL SERVICIO/NIVEL EDUCATIVO, ¿ DESARROLLA LAS SIGUIENTES ESTRATEGIAS"]
[null,null,null,"INDIQUE : ¿QUÉ TIPO DE ACOMPAÑAMIENTO HA RECIBIDO DE LA DRE/UGEL?",null,null,null,null,null,null,null,null,null,null,"DE ACOMPAÑAMIENTO ?"]
[null,null,null,"Marque con una “X”, una o más opciones",null,null,null,null,null,null,null,null,null,null,null,null,null,null,null,null,"¿Cuántos?"]
[null,null,null,null,null,null,null,null,null,null,null,null,null,null,"Marque con una “X”, una o más opciones",null,null,null,null,null,"Marque con una  “X” una opción"]
[null,null,null,null,"Mentoría a directivos/Coaching",null,null,null,null,null,null,null,null,null,null,null,null,null,null,null,null,"de 1 a 4 por área"]
[null,null,null,null,"Asistencia técnica para implementar (CID)",null,null,null,null,null,null,null,null,null,null,"Visita en aula",null,null,null,null,"","de 4 a 8 por área"]
[null,null,null,null,"Webinar",null,null,null,null,null,null,null,null,null,null,"Grupos de Interaprendizaje (GIA)",null,null,null,null,"","Más de 8 por área"]
[null,null,null,null,"Talleres",null,null,null,null,null,null,null,null,null,null,"Talleres"]
[null,null,null,null,"Otros - Especificar",null,"",null,null,null,null,null,null,null,null,"Otros","Especificar",""]
[]
[null,null,"106.C. DURANTE EL AÑO 2023, EL EQUIPO DIRECTIVO DE ESTE SERVICIO/NIVEL EDUCATIVO",null,null,null,null,null,null,null,null,null,null,"112.C. EL SERVICIO/NIVEL EDUCATIVO, ¿REALIZA ACTIVIDADES CON FAMILIAS Y COMUNIDAD"]
[null,null,null,"¿HA REALIZADO EL MONITOREO A LA PRÁCTICA PEDAGÓGICA DE LOS DOCENTES?",null,null,null,null,null,null,null,null,null,null,"QUE AYUDEN A LA PROMOCIÓN DE UN AMBIENTE INSTITUCIONAL FAVORABLE PARA"]
[null,null,null,null,null,null,null,null,null,null,null,null,null,null,"LA ATENCIÓN DE LA DIVERSIDAD?"]
[null,null,null," Sí",null,null," No  ","",null,null,"Pase a la pregunta 108.C"]
[null,null,null,null,null,null,null,null,null,null,null,null,null,null," Sí",null,null,"¿Qué actividades realiza?"]
[]
[null,null,null,null,"¿Con qué frecuencia monitorea a cada docente durante el año escolar?",null,null,null,null,null,null,null,null,null,null,null,null,"Marque con una “X”, una o más  opciónes"]
[null,null,null,null,"Marque con una “X” una opción",null,null,null,null,null,null,null,null,null,null,null,null,null,"Acompañamiento en el proceso de aprendizaje"]
[null,null,null,null,null,"Al menos 1 vez al año",null,null,null,null,null,null,null,null,null,null,null,null,"Actividades que fortalecen las competencias parentales"]
[null,null,null,null,null,"2 veces al año",null,null,null,null,null,null,null,null,null,null,null,null,"Vínculos afectivos con hijos e hijas"]
[null,null,null,null,"","3 vces al año",null,null,null,null,null,null,null,null,null,null,null,null,"Jornadas con madres y padres"]
[null,null,null,null,"","4 veces 2 veces al año",null,null,null,null,null,null,null,null,null,null,null,null,"Otro",""]
[]
[null,null,null,null,null,null,null,null,null,null,null,null,null,null," No  ",""]
[null,null,null,{"$f":"CONCATENATE(E452,E453)","v":""},"En caso haya señalado \"3 veces al año\" o “4 veces al año o más”, indique el motivo"]
[null,null,null,null,"","El monitoreo es una actividad obligatoria.",null,null,null,null,null,null,null,"113.C. DURANTE EL AÑO 2023, ¿SE REALIZÓ EL INFORME DEL PROGRESO DE LOS"]
[null,null,null,null,"","En clases me enseñaron que es necesario el monitoreo.",null,null,null,null,null,null,null,null,"ESTUDIANTES A LOS PADRES DE FAMILIA?"]
[null,null,null,null,"","El monitoreo permite dialogar sobre la práctica docente"]
[null,null,null,null,null,"y fortalece el logro de aprendizajes",null,null,null,null,null,null,null,null," Sí",null," No  ","",null,null,"Pase a la pregunta 115.C"]
[]
[null,null,"107.C. DURANTE EL AÑO 2023, EN PROMEDIO, ¿CUÁNTAS REUNIONES POR SEMANA DE TRABAJO",null,null,null,null,null,null,null,null,null,null,null,null,null,null,"¿Cuántas?"]
[null,null,null,"COLEGIADO O FORMACIÓN REALIZÓ CON EL PERSONAL DE ESTE SERVICIO/NIVEL EDUCATIVO?"]
[null,null,null,null,null,null,null,null,null,null,null,null,null,"114.C ¿CÓMO SE REALIZÓ EL INFORME DEL PROGRESO DE LOS ESTUDIANTES A LOS PADRES DE"]
[null,null,null,null,"Promedio de reuniones por semana",null,null,null,null,null,null,null,null,null,"FAMILIA EN EL AÑO 2023?"]
[null,null,null,null,null,null,null,null,null,null,null,null,null,null,"Marque con una \"X\", solo una opción"]
[null,null,"108.C. DURANTE EL ÚLTIMO MES, EN PROMEDIO, ¿CUÁNTAS HORAS SEMANALES, ADICIONALES A"]
[null,null,null,"SU JORNADA LABORAL, USTED CONSIDERA QUE HA DESTINADO PARA REALIZAR ACTIVIDADES",null,null,null,null,null,null,null,null,null,null,null,"Individual - (Informe de cada estudiante a cada PPFF)"]
[null,null,null,"RELACIONADAS A SU TRABAJO COMO DIRECTOR?",null,null,null,null,null,null,null,null,null,null,null,"Pequeños grupos - (Informe en grupos de 2 hasta 10 estudiantes)"]
[null,null,null,null,null,null,null,null,null,null,null,null,null,null,null,"Grupal - (Informe en grupos de 11 a más estudiantes)"]
[null,null,null,null,"Horas Semanales adicionales",null,null,null,null,null,null,null,null,null,"","Otros",null,""]
[]
[null,null,"109.C  EN EL PRESENTE AÑO, EL PERSONAL DIRECTIVO DE ESTE SERVICIO/NIVEL EDUCATIVO",null,null,null,null,null,null,null,null,null,null,"115.C. USTED SEÑOR(A) DIRECTOR(A), ¿HA VISITADO EL PORTAL WEB PARA DIRECTIVOS EN"]
[null,null,null,"¿BRINDA SOPORTE Y APOYO A LOS DOCENTES EN TORNO A SU DESEMPEÑO EN EL MARCO",null,null,null,null,null,null,null,null,null,null,"LOS ÚLTIMOS TRES MESES?",null,null,"(https://directivos.minedu.gob.pe/)"]
[null,null,null,"DEL ACOMPAÑAMIENTO PEDAGÓGICO Y ESPACIOS DE TRABAJO COLEGIADO?"]
[null,null,null,null,null,null,null,null,null,null,null,null,null,null,"Sí",null," No  ",""]
[null,null,null,"Sí",null,null," No  ","",null,null,"Pase a la pregunta 111.C"]
[null,null,null,null,null,null,null,null,null,null,null,null,null,null,null,null,"¿La información encontrada en el portal web para directivos"]
[null,null,"110.C  ¿QUÉ TEMAS HAN SIDO ABORDADOS MAYORITARIAMENTE POR EL EQUIPO DIRECTIVO DURANTE",null,null,null,null,null,null,null,null,null,null,null,null,null,"le resultó de utilidad?"]
[null,null,null,"LAS SESIONES DE SOPORTE Y APOYO A LOS DOCENTES EN EL MARCO DEL ACOMPAÑAMIENTO"]
[null,null,null,"PEDAGÓGICO Y ESPACIOS DE TRABAJO COLEGIADO?",null,null,null,null,null,null,null,null,null,null,null,null,"Sí  ",null,null,"No",""]
[]
[null,null,null,null,"Marque con una  “X” una o más opciones"]
[null,null,null,null,null,"Planificación curricular",null,null,null,null,null,null,null,"116.C. EL PERSONAL DE ESTE SERVICIO/NIVEL EDUCATIVO, ¿HA RECIBIDO ALGÚN TIPO DE SOPORTE"]
[null,null,null,null,null,"Conducción de los aprendizajes",null,null,null,null,null,null,null,null,"O ACOMPAÑAMIENTO SOCIOAFECTIVO DE PARTE DE EQUIPOS DE UGEL/DRE/GRE/MINEDU?"]
[null,null,null,null,null,"Como brindar acompañamiento socioafectivo y cognitivo"]
[null,null,null,null,null,"Uso de los recursos y materiales educativos para atender la diversidad",null,null,null,null,null,null,null,null,"Sí",null," No  ",""]
[null,null,null,null,null,"Evaluación formativa y retroalimentación"]
[null,null,null,null,null,"Fortalecimiento del uso de TIC",null,null,null,null,null,null,null,"117.C ¿EL SERVICIO/NIVEL EDUCATIVO HA INCORPORADO/IMPLEMENTADO PROCESOS"]
[null,null,null,null,null,"Competencia de las áreas curriculares",null,null,null,null,null,null,null,null,"DE ENSEÑANZA Y APRENDIZAJE HÍBRIDO?"]
[null,null,null,null,null,"Conclusiones descriptivas"]
[null,null,null,null,null,"Otros temas",null,"",null,null,null,null,null,null,"Sí",null," No  ",""]
[]
[]
[null,null,"118.C. SEÑOR(A) DIRECTOR(A), DURANTE EL AÑO 2023 Y HASTA LA APLICACIÓN DEL",null,null,null,null,null,null,null,null,null,null,"122.C. SEÑOR(A) DIRECTOR (A), ¿EN ESTE SERVICIO/NIVEL EDUCATIVO HA GESTIONADO"]
[null,null,null,"CENSO EDUCATIVO 2024, ¿USTED HA RECIBIDO ALGÚN TIPO DE ASISTENCIA PEDAGÓGICA?",null,null,null,null,null,null,null,null,null,null,"ALGÚN TIPO DE ACCIÓN FORMATIVA PARA ATENDER DICHAS NECESIDADES"]
[null,null,null,null,null,null,null,null,null,null,null,null,null,null,"DEL PERSONAL DOCENTE DE ESTE SERVICIO/NIVEL EDUCATIVO?"]
[null,null,null," Sí",null," No  ","",null,null,"Pase a la pregunta 120.C"]
[null,null,null,null,null,null,null,null,null,null,null,null,null,null,"Sí",null," No  ",""]
[null,null,null,null,null,null,"Marque con una “X”, una o más opciones"]
[]
[null,null,null,null,null,null,null,null,null,null,null,"Tipo de acompaña- miento",null,null,null,null,"¿Qué tipo de acciones formativas gestionó para atender dichas"]
[null,null,null,null,null,null,"Nro.",null,"Institución",null,{"$f":"COUNTIF(L505:L508,\"X\")","v":0},null,null,null,null,null,"necesidades del personal docente de este Servicio/Nivel Educativo?"]
[]
[null,null,null,null,null,null,1,"DRE",null,null,null,null,null,null,null,null,null,"Marque con una “X”, una o más opciones"]
[null,null,null,null,null,null,2,"UGEL",null,null,null,null,null,null,null,null,null,null,"Cursos virtuales"]
[null,null,null,null,null,null,3,"MINEDU",null,null,null,null,null,null,null,null,null,null,"Programas formativos"]
[null,null,null,null,null,null,4,"Otros",null,null,null,null,null,null,null,null,null,null,"Otros",""]
[]
[null,null,"119.C. ¿QUÉ TEMÁTICAS SE HAN ABORDADO EN LAS ASISTENCIAS PEDAGÓGICAS"]
[null,null,null,"QUE HA RECIBIDO POR PARTE DE LOS ESPECIALISTAS DE DRE/UGEL?",null,null,null,null,null,null,null,null,null,"123.C. EN LOS ÚLTIMOS DOCE (12) MESES, ¿ESTE SERVICIO/NIVEL EDUCATIVO CONTÓ"]
[null,null,null,null,null,null,null,null,null,null,null,null,null,null,"CON ALGÚN PROYECTO DE INNOVACIÓN EDUCATIVA O BUENA PRÁCTICA"]
[null,null,null,"Marque con una  “X” una o más opciones",null,null,null,null,null,null,null,null,null,null,"PEDAGÓGICA ENMARCADOS EN ALGUNA DE LAS SIGUIENTES TEMÁTICAS/EJES?"]
[]
[null,null,null,null,null,"Planificación curricular",null,null,null,null,null,null,null,null,null,"Temática / Eje",null,null,null,"Innovación educativa",null,"Buena práctica pedagógica"]
[null,null,null,null,null,"Metodología y estrategias didácticas"]
[null,null,null,null,null,"Retroalimentación, criterios e instrumentos de evaluación",null,null,null,null,null,null,null,null,null,null,null,null,null,"SI","NO","SI","NO"]
[null,null,null,null,null,"Soporte emocional",null,null,null,null,null,null,null,{"$f":"CONCATENATE(T518,U518,V518,W518)","v":""},"01","Gestión escolar",null,null,null,null,null,null,null,{"$f":"CONCATENATE(T518,U518,V518,W518)","v":""}]
[null,null,null,null,null,"Experiencias pedagógicas innovadoras",null,null,null,null,null,null,null,{"$f":"CONCATENATE(T519,U519,V519,W519)","v":""},"02","Mejoramiento del Servicio Educativo",null,null,null,null,null,null,null,{"$f":"CONCATENATE(T519,U519,V519,W519)","v":""}]
[null,null,null,null,null,"Acompañamiento pedagógico",null,null,null,null,null,null,null,"","03","Humanidades",null,null,null,null,null,null,null,""]
[null,null,null,null,null,"Implementación de Refuerzo Escolar",null,null,null,null,null,null,null,"","04","Ciencias",null,null,null,null,null,null,null,""]
[null,null,null,null,null,"Atención Diferenciada",null,null,null,null,null,null,null,"","05","Medio ambiente",null,null,null,null,null,null,null,""]
[null,null,null,null,null,"Otros","",null,null,null,null,null,null,"","06","Violencia escolar (Bullying, acoso)",null,null,null,null,null,null,null,""]
[null,null,null,null,"","Ninguna",null,null,null,null,null,null,null,"","07","Emprendimientos, productivos",null,null,null,null,null,null,null,""]
[null,null,null,null,null,null,null,null,null,null,null,null,null,"","08","Inclusión",null,null,null,null,null,null,null,""]
[null,null,"120.C. SEÑOR(A) DIRECTOR(A), ¿UD. CONOCE EL SISTEMA INTEGRADO DE FORMACIÓN",null,null,null,null,null,null,null,null,null,null,"","09","Nuevas tecnologías",null,null,null,null,null,null,null,""]
[null,null,null,"DOCENTE EN SERVICIO (SIFODS)?",null,null,null,null,null,null,null,null,null,"","10","Vida activa y saludable",null,null,null,null,null,null,null,""]
[null,null,null,null,null,null,null,null,null,null,null,null,null,"","11","Otro",null,null,null,null,null,null,null,""]
[null,null,null,"Sí",null," No  ","",null,null,null,null,null,null,null,null,null,null,null,null,null,{"$f":"COUNTIF(T518:U528,\"X\")","v":0},null,{"$f":"COUNTIF(V518:W528,\"X\")","v":0}]
[]
[null,null,null,null,null,null,"¿Qué módulo(s) ha utilizado del SIFODS?",null,null,null,null,null,null,"124.C. EN LOS ÚLTIMOS DOCE (12) MESES, ¿HA CONTADO CON ALIADOS ESTRATÉGICOS"]
[null,null,null,null,null,null,"Marque con una “X”, una o más opciones",null,null,null,null,null,null,null,"QUE LE HAN BENEFICIADO CON ALGÚN INCENTIVO ECONÓMICO PARA LA IMPLEMENTACIÓN"]
[null,null,null,null,null,null,null,null,null,null,null,null,null,null,"Y/O SOSTENIBILIDAD DE SU INNOVACIÓN O BUENA PRÁCTICA PEDAGÓGICA?"]
[null,null,null,null,null,null,null,"File Docente"]
[null,null,null,null,null,null,null,"Docente al Día",null,null,null,null,null,null,null,"Aliados Estratégicos",null,null,null,"Innovación Educativa",null,"Buena práctica pedagógica"]
[null,null,null,null,null,null,null,"Portafolio de la Oferta Formativa"]
[null,null,null,null,null,null,null,"Centro de Recursos",null,null,null,null,null,null,null,null,null,null,null,"SI","NO","SI","NO"]
[null,null,null,null,null,null,null,"Guías docentes AeC",null,null,null,null,null,{"$f":"CONCATENATE(T538,U538,V538,W538)","v":""},"01","Gobierno regional",null,null,null,null,null,null,null,{"$f":"CONCATENATE(T538,U538,V538,W538)","v":""}]
[null,null,null,null,null,null,null,"Asistencia Virtual Docente",null,null,null,null,null,"","02","DRE/UGEL",null,null,null,null,null,null,null,{"$f":"CONCATENATE(T539,U539,V539,W539)","v":""}]
[null,null,null,null,null,null,null,"Comunidades",null,null,null,null,null,"","03","Gobierno local",null,null,null,null,null,null,null,{"$f":"CONCATENATE(T540,U540,V540,W540)","v":""}]
[null,null,null,null,null,null,null,"Entorno Personal",null,null,null,null,null,"","04","Aliados privados",null,null,null,null,null,null,null,""]
[null,null,null,null,null,null,null,null,null,null,null,null,null,"","05","MINEDU-FONDEP",null,null,null,null,null,null,null,""]
[null,null,"121.C. SEÑOR(A) DIRECTOR(A), ¿CÓMO HA IDENTIFICADO LAS NECESIDADES FORMATIVAS",null,null,null,null,null,null,null,null,null,null,"","06","Padres y madres de familia",null,null,null,null,null,null,null,""]
[null,null,null,"PARA EL PERSONAL DOCENTE DE ESTE SERVICIO/NIVEL EDUCATIVO?",null,null,null,null,null,null,null,null,null,"","07","Recursos propios de la IE",null,null,null,null,null,null,null,""]
[null,null,null,null,null,null,null,null,null,null,null,null,null,"","08","Otro",null,null,null,null,null,null,null,""]
[null,null,null,"Sí",null," No  ","",null,null,"Pase a la pregunta 123.C",null,null,null,null,null,null,null,null,null,null,{"$f":"COUNTIF(T538:U545,\"X\")","v":0},null,{"$f":"COUNTIF(V538:W545,\"X\")","v":0}]
[]
[null,null,null,null,null,null,null,null,null,null,null,null,null,"125.C. EN LOS ÚLTIMOS CINCO (05) AÑOS, ¿ALGUNA VEZ EN ESTE SERVICIO/NIVEL"]
[null,null,null,null,null,null,"¿Cómo identificó las necesidades formativas?",null,null,null,null,null,null,null,"EDUCATIVO SE IMPLEMENTÓ UN PROYECTO DE INNOVACIÓN EDUCATIVA O BUENA"]
[null,null,null,null,null,null,"Marque con una “X”, una o más opciones",null,null,null,null,null,null,null,"PRÁCTICA PEDAGÓGICA?"]
[null,null,null,null,null,null,null,"Observación en aula"]
[null,null,null,null,null,null,null,"Cuestionario de autodiagnóstico",null,null,null,null,null,null,null,"(Referencia: ENDO 2021)",null,null,null,"Sí - No"]
[null,null,null,null,null,null,null,"Monitoreo pedagógico",null,null,null,null,null,null,null,1,"Innovación educativa"]
[null,null,null,null,null,null,null,"Otros","",null,null,null,null,null,null,2,"Buena práctica pedagógica"]
[]
[]
[null,null,"126.C. EN ESTE SERVICIO/NIVEL EDUCATIVO, ¿SE GENERAN ESPACIOS PARA LA COLABORACIÓN",null,null,null,null,null,null,null,null,null,null,"128.C. ¿QUÉ FACTORES LE AYUDARÍAN A MEJORAR SU INNOVACIÓN O PRÁCTICA PEDAGÓGICA?"]
[null,null,null,"ENTRE DOCENTES Y/O DIRECTIVOS PARA LA IMPLEMENTACIÓN DE MEJORAS EN LA",null,null,null,null,null,null,null,null,null,null,"Marque con una “X”, una o más opciones"]
[null,null,null,"PRÁCTICA PEDAGÓGICA (BUENAS PRÁCTICAS O INNOVACIÓN EDUCATIVA)?"]
[null,null,null,null,null,null,null,null,null,null,null,null,null,null,null,"Acceso a tecnología/internet"]
[null,null,null,null,null,null,null,null,null,null,null,null,null,null,null,"Acceso a material pedagógico"]
[null,null,null,"Sí",null," No  ",null,null,null,"Pase a la pregunta 128.C",null,null,null,null,null,"Tiempo para reflexionar y sistematizar la práctica"]
[null,null,null,null,null,null,null,null,null,null,null,null,null,null,null,"Asistencia técnica o asesoría personalizada"]
[null,null,null,null,null,null,null,null,null,null,null,null,null,null,null,"Talleres de intercambio de experiencia"]
[null,null,"127.C. EN RELACIÓN CON EL DESARROLLO DEL PROYECTO DE INNOVACIÓN O BUENA PRÁCTICA",null,null,null,null,null,null,null,null,null,null,null,null,"Becas de estudio"]
[null,null,null,"PEDAGÓGICA, ¿QUÉ ASPECTOS LIMITAN LA IMPLEMENTACIÓN DE MEJORAS?",null,null,null,null,null,null,null,null,null,null,null,"Pasantias"]
[null,null,null,"Marque con una “X”, una o más opciones"]
[null,null,null,null,null,null,null,null,null,null,null,null,null,"129.C. POSTERIOR AL MONITOREO, ¿QUÉ TIPO DE RETROALIMENTACIÓN BRINDA A CADA DOCENTE?"]
[null,null,null,null,"Institucionalización de la práctica",null,null,null,null,null,null,null,null,null,"Marque con una “X”, una opción"]
[null,null,null,null,"Reflexionar sobre los resultados de la práctica"]
[null,null,null,null,"Tener recursos limitados para mejorar su desarrollo",null,null,null,null,null,null,null,null,null,"","Descriptiva"]
[null,null,null,null,"Contar con poco respaldo del equipo directivo y de los docentes.",null,null,null,null,null,null,null,null,null,null,"Elemental"]
[null,null,null,null,"Otro",null,"",null,null,null,null,null,null,null,null,"Reflexiva o por descubrimiento"]
[null,null,null,null,null,null,null,null,null,null,null,null,null,null,"","No brinda retroalimentación por falta de tiempo"]

{"sheet":"C101","index":2,"n_rows":206,"n_cols":22,"rows_kept":206,"cut":false,"hidden":false,"merged":[[199,8,199,11],[201,8,201,10],[202,8,202,11],[160,17,160,21],[161,8,161,11],[172,6,172,10],[187,6,187,10],[190,17,190,22],[18,18,20,22],[20,6,20,10],[30,20,30,22],[1,6,1,20],[2,6,2,20],[9,14,11,21],[11,4,11,9],[17,19,17,20],[39,18,41,19],[40,20,40,22],[80,17,80,21],[104,17,104,21],[109,9,109,11],[122,8,122,11],[129,8,129,11],[135,17,135,21],[198,8,198,11],[180,21,180,22],[181,21,181,22],[194,17,194,22],[195,17,195,22],[196,10,196,11],[196,17,196,20]]}
[]
[null,null,null,null,null,null,"CENSO EDUCATIVO 2024"]
[null,null,null,null,null,null,"MATRÍCULA, DOCENTES Y MATERIALES EDUCATIVOS"]
[]
[]
["GESTIÓN"]
[{"$f":"IF(OR(UPPER('C100'!J29)=\"X\",UPPER('C100'!O29)=\"X\"),\"X\",\"\")","v":""},null,"D. SOBRE LA BASE DEL CENSO DE POBLACIÓN Y VIVIENDA 2017 DEL INEI"]
[{"$f":"IF(UPPER('C100'!T29)=\"X\",\"X\",\"\")","v":""},null,"101.D  SEGÚN LAS COSTUMBRES Y EL ORIGEN FAMILIAR, ¿USTED CONSIDERA QUE SU SERVICIO/NIVEL"]
[null,null,null,"EDUCATIVO CUENTA CON ESTUDIANTES PERTENECIENTES A LOS SIGUIENTES"]
[null,null,null,"GRUPOS ÉTNICOS?",null,null,null,null,null,null,null,null,null,null,"SOLO SI MARCÓ DOS O MÁS ALTERNATIVAS EN LA PREGUNTA ANTERIOR, RESPONDA:"]
[]
["SI-NO",null,null,"COD.","GRUPO ÉTNICO",null,null,null,null,null,{"$f":"COUNTIF(L13:L21,\"SI\")","v":0}," SI - NO"]
["SI",null,null,1,"Quechua",null,null,null,null,null,null,null,{"$f":"IF(L13=\"SI\",1,0)","v":0}]
["NO",null,null,2,"Aimara",null,null,null,null,null,null,null,{"$f":"IF(L14=\"SI\",1,0)","v":0}]
[null,null,null,3,"Nativo o indígena de la Amazonía",null,null,null,null,null,null,null,0]
[null,null,null,4,"Perteneciente o parte de otro pueblo indígena u originario",null,null,null,null,null,null,null,0,"102.D  ¿EXISTE UN GRUPO QUE TENGA MAYOR CANTIDAD DE ESTUDIANTES?"]
[null,null,null,5,"Negro moreno, zambo, mulato/Pueblo afroperuano o afrodescendiente",null,null,null,null,null,null,null,0]
[null,null,null,6,"Blanco",null,null,null,null,null,null,null,0,null,"Sí",null,null,null,"Código"]
[null,null,null,7,"Mestizo",null,null,null,null,null,null,null,0,null,null,null,null,null,"Indique el grupo étnico en el que identifica mayor cantidad de estudiantes utilizando el COD. seleccionado en la pregunta 101.D"]
[null,null,null,8,"Asiático peruano",null,null,null,null,null,null,null,0,null,"No"]
[null,null,null,9,"Otro  especifique",null,null,null,null,null,null,null,0]
[null,null,null,null,null,null,null,null,null,null,{"$f":"IF(K12>1,\"X\",\"\")","v":""},{"$f":"COUNTIF(L13:L21,\"SI\")+COUNTIF(L13:L21,\"NO\")","v":0}]
[]
[]
[null,null,"E. CARACTERÍSTICAS DE LA ENSEÑANZA EN CONTEXTOS BILINGÜES - SOLO GESTIÓN PÚBLICA",null,null,null,null,null,null,null,null,null,null,null,null,null,null,null,""]
[null,null,null,null,null,null,null,null,null,null,null,null,null,null,null,null,null,null,""]
[null,null,"101.E  ESTE SERVICIO/NIVEL EDUCATIVO, ¿ESTÁ RECONOCIDO COMO EIB?",null,null,null,null,null,null,null,null,null,null,"104.E. USTED, SEÑOR(A) DIRECTOR(A), ¿CONOCE SI EN LA COMUNIDAD DONDE SE"]
[null,null,null,null,null,null,null,null,null,null,null,null,null,null,"ENCUENTRA EL SERVICIO/NIVEL EDUCATIVO, LOS PADRES DE FAMILIA, OTROS"]
[null,null,null,null,null,"EIB de Fortalecimiento",null,null,"",null,null,null,null,null,"ADULTOS Y/O ANCIANOS Y ANCIANAS HABLAN UNA LENGUA ORIGINARIA?"]
[null,null,null,"Sí",null,"EIB de Revitalización",null,null,""]
[null,null,null,null,null,"EIB en Ámbitos Urbano",null,null,"",null,null,null,null,null,null,null,null,null,null,"¿Qué lengua originaria?  ",""]
[null,null,null,null,null,null,null,null,{"$f":"CONCATENATE(I30,I31)","v":""},null,null,null,null,null,"Sí","",null,null,null,null,null,"Anote el código según la"]
[null,null,null,"No",null,null,"Pase a la pregunta 104.E",null,null,null,null,null,null,null,null,null,null,null,null,null,null,"tabla de Lenguas Originarias"]
[null,null,null,null,null,null,null,null,null,null,null,null,null,null,"No",null,null,null,null,null,null,"de la página 18."]
[null,null,null,"SOLO SI ES EIB DE FORTALECIMIENTO, RESPONDA:",null,null,null,null,null,null,null,null,null,null,null,null,null,null,""]
[null,null,"102.E. ESTE SERVICIO/NIVEL EDUCATIVO, ¿OFRECE ENSEÑANZA DEL CASTELLANO COMO",null,null,null,null,null,null,null,null,null,null,"105. E.  LOS ESTUDIANTES DE ESTE SERVICIO/NIVEL EDUCATIVO,  ¿HABLAN UNA LENGUA"]
[null,null,null,"SEGUNDA LENGUA?",null,null,null,null,null,null,null,null,null,null,"ORIGINARIA?"]
[null,null,null,null,null,null,null,null,null,null,null,null,null,null,null,null,null,null,""]
[null,null,null,"Sí",null,null,null,null," No",null,null,null,null,null,"Sí",""]
[null,null,null,null,null,null,null,null,null,null,null,null,null,null,null,null,"Todos","","¿Qué\nlengua  originaria?"]
[null,null,null,"SOLO SI ES EIB DE REVITALIZACIÓN O EIB EN ÁMBITOS URBANOS, RESPONDA:",null,null,null,null,null,null,null,null,null,null,null,null,"La mayoría","",null,null,""]
[null,null,"103.E. ESTE SERVICIO/NIVEL EDUCATIVO, ¿OFRECE ENSEÑANZA DE LA LENGUA ORIGINARIA COMO ",null,null,null,null,null,null,null,null,null,null,null,null,null,"Pocos",""]
[null,null,null,"SEGUNDA LENGUA?",null,null,null,null,null,null,null,null,null,null,null,null,null,{"$f":"CONCATENATE(R42,R41,R40)","v":""},null,null,null,"Anote el código según la"]
[null,null,null,null,null,null,null,null,null,null,null,null,null,null,"No",null,null,null,null,null,null,"tabla de Lenguas Originarias"]
[null,null,null,"Sí",null,null,null,null," No",null,null,null,null,null,null,null,null,null,null,null,null,"de la página 23."]
[]
[]
[]
[]
[]
[]
[]
[]
[]
[]
[]
[]
[null,null,"F. ATENCIÓN A LA DIVERSIDAD Y SOBRE EL SERVICIO DE APOYO Y ASESORAMIENTO A LAS NECESIDADES EDUCATIVAS ESPECIALES - SAANEE"]
[null,null,"101.F. ESTE SERVICIO/NIVEL EDUCATIVO ¿TIENE TECNOLOGÍA PARA RESPONDER A LAS NECESIDADES",null,null,null,null,null,null,null,null,null,null,"107.F. ESTE SERVICIO/NIVEL EDUCATIVO, ¿HA RECIBIDO ASISTENCIA Y ORIENTACION PARA LA"]
["Lengua originaria",null,null,"EDUCATIVAS ESPECIALES (NEE) DE LOS ESTUDIANTES?",null,null,null,null,null,null,null,null,null,null,"ATENCION EDUCATIVA DE ESTUDIANTES CON DISCAPACIDAD, DE PARTE DEL SERVICIO DE"]
["0200: Achuar",null,null,null,null,null,null,null,null,null,null,null,null,null,"APOYO EDUCATIVO VIRTUAL (SAEV)?"]
["0300: Aimara",null,null,"Sí",null,null,null,null,"No"]
["0400: Amahuaca",null,null,null,null,null,null,null,null,null,null,null,null,null,"Sí",null,null,null,"No"]
["0500: Arabela",null,"102.F. ESTE SERVICIO/NIVEL EDUCATIVO ¿CUENTA CON MATERIALES EDUCATIVOS PARA ATENDER A"]
["0600: Asháninka",null,null," ESTUDIANTES CON NECESIDADES EDUCATIVAS ESPECIALES (NEE)?",null,null,null,null,null,null,null,null,null,null,null,null,null,"¿Cuántos estudiantes con discapacidad están a cargo de los"]
["0610: Asheninka",null,null,null,null,null,null,null,null,null,null,null,null,null,null,null,null,"docentes que han recibido asistencia y orientación por el"]
["0700: Awajún",null,null,"Sí","",null,null,null,"No",null,null,null,null,null,null,null,null,"Servicio de Apoyo Educativo Virtual (SAEV)?"]
["0800: Bora"]
["0900: Kapanawa",null,"103.F.  EL LOCAL DONDE OPERA ESTE SERVICIO/NIVEL EDUCATIVO, ¿CUENTA CON INFRAESTRUCTURA",null,null,null,null,null,null,null,null,null,null,null,null,null,null,"Cantidad"]
["1000: Cashinahua",null,null,"PARA RESPONDER A LA DIVERSIDAD O LAS NEE, (RAMPA, SEÑALÉTICA, ENTRE OTROS)?"]
["1100: Kawki",null,null,null,null,null,null,null,null,null,null,null,null,"108.F. ¿QUÉ ESTRATEGIAS FORMATIVAS VIRTUALES PRIORIZARÍA SOBRE TEMAS"]
["1200: Chamikuro",null,null,"Sí",null,null,null,null,"No",null,null,null,null,null,"DE EDUCACIÓN INCLUSIVA O ATENCIÓN A LA DIVERSIDAD?"]
["1300: Ese eja",null,null,null,null,null,null,null,null,null,null,null,null,null,"Marque con una “X”, una o más opciones"]
["1400: Harakbut",null,null,null,null,"¿Es suficiente? "]
["1500: Iñapari",null,null,null,null,null,null,null,null,null,null,null,null,null,null,null,"Curso virtual tutorado"]
["1600: Ikuitu",null,null,null,null,"Sí  ",null,null,"No",null,null,null,null,null,null,null,"Curso virtual autoformativo"]
["1700: Iskonawa",null,null,null,null,null,null,null,null,null,null,null,null,null,null,null,"Grupo o círculo de interaprendizaje"]
["1800: Jaqaru",null,"104.F. ESTE SERVICIO/NIVEL EDUCATIVO, ¿CUENTA CON UN ESPECIALISTA DEL EQUI PO DE SERVICIO",null,null,null,null,null,null,null,null,null,null,null,null,null,"Comunidades profesionales de apendizaje"]
["1900: Kakataibo",null,null,"DE APOYO Y ASESORAMIENTO DE LAS NECESIDADES EDUCATIVAS ESPECIALES (SAANEE) QUE ",null,null,null,null,null,null,null,null,null,null,null,null,"Asesoría personalizada"]
["2000: Kakinte (caquinte)",null,null,"LE HAYA SIDO ASIGNADO?",null,null,null,null,null,null,null,null,null,null,null,null,"Pasantia"]
["2110: Kandozi (Chapra)",null,null,null,null,null,null,null,null,null,null,null,null,null,null,null,"Otros "]
["2120: Kandozi (Kandozi)",null,null,"Sí","",null,null,null,"No"]
["2200: Kukama-kukamiria",null,null,null,null,null,null,null,null,null,null,null,null,"109.F. ESTE SERVICIO/NIVEL EDUCATIVO, ¿CUENTA CON RESPONSABLE DE INCLUSIÓN?"]
["2300: Madija (culina)",null,"105.F. DURANTE EL PRESENTE AÑO, ESTE SERVICIO/NIVEL EDUCATIVO ¿HA RECIBIDO ASISTENCIA Y"]
["2400: Maijiki",null,null,"ORIENTACIÓN PARA LA ATENCIÓN EDUCATIVA DE ESTUDIANTES CON DISCAPACIDAD, DE PARTE",null,null,null,null,null,null,null,null,null,null,"Sí",null,null,null,null,"No",""]
["2500: Matsés",null,null,"DEL EQUIPO DE SERVICIO DE APOYO Y ASESORAMIENTO DE LAS NECESIDADES EDUCATIVAS"]
["2600: Matsigenka",null,null,"ESPECIALES (SAANEE)?",null,null,null,null,null,null,null,null,null,null,null,null,"¿Este personal labora a tiempo completo?"]
["2700: Munichi"]
["2800: Murui-muinani",null,null,"Sí",null,null,null,null,"No  ",null,null,null,null,null,null,null,"Sí  ",null,null,"No",""]
["2900: Matsigenka-montetokunirira"]
["3000: Nomatsigenga",null,null,null,null,null,null,null,null,null,null,null,null,"110.F. EN ESTE SERVICIO/NIVEL EDUCATIVO, DESDE EL AÑO 2021 HASTA LA FECHA DE APLICACIÓN"]
["3100: Ocaina",null,null,null,null,"¿Cuántas asesorías (presenciales o virtuales)",null,null,null,null,null,null,null,null,"DEL CENSO EDUCATIVO 2024, ¿HA IMPLEMENTADO MEDIDAS Y ACCIONES EN FAVOR DE LA"]
["3200: Omagua",null,null,null,null,null,null,null,null,null,null,null,null,null,"INCLUSIÓN Y ATENCIÓN A LA DIVERSIDAD DE LAS/OS ESTUDIANTES Y/O DOCENTES?"]
["3310: Quechua amazónico (Kichwa)",null,null,null,null,"¿Cuántas docentes de este Servicio",null,null,null,null,null,null,null,null,"(EN CUMPLIMIENTO DEL D.S. N° 007-2021-MINEDU)"]
["3321: Quechua central (Ancash)"]
["3322: Quechua central (Huánuco)",null,"106.F. ¿ALGUNO DE LOS DOCENTES DE ESTE SERVICIO/NIVEL EDUCATIVO HAN RECIBIDO",null,null,null,null,null,null,null,null,null,null,null,"Sí",null,null,"No"]
["3323: Quechua central (Wanka)",null,null,"O RECIBEN CAPACITACIÓN O SOPORTE EN TEMAS RELACIONADOS A INCLUSIÓN Y ATENCIÓN"]
["3324: Quechua central (Pasco)",null,null,"A LA DIVERSIDAD EN LOS ÚLTIMOS DOS (02) AÑOS, POR PARTE DEL SAE EXTERNO DE LA"]
["3331: Quechua norteño (Cajamarca)",null,null,"UGEL/DRE/GRE, O ALGUNA OTRA INSTITUCIÓN EN EL MARCO DE UNA EDUCACIÓN INCLUSIVA?",null,null,null,null,null,null,null,null,null,null,null,null,null,null,"¿Por qué?"]
["3332: Quechua norteño (Inkawasi Kañaris)",null,null,null,null,null,null,null,null,null,null,null,null,null,null,"Marque con una “X”, una o más opciones"]
["3341: Quechua sureño (Chanka)",null,null,null,null,null,null,"¿De quién recibieron o reciben?"]
["3342: Quechua sureño (Collao)",null,null,"Sí",null,null,null,"Marque con una “X”, una o más opciones",null,null,null,null,null,null,null,null,"Aún no cuentan con responsable de inclusión."]
["3400: Resígaro",null,null,null,null,null,null,null,"Minedu",null,null,null,null,null,null,null,"Aún desconocen sobre el D.S. 007-2021-MINEDU respecto a la educación inclusiva."]
["3500: Secoya",null,null,null,null,null,null,null,"DRE/GRE",null,null,null,null,null,null,null,"Aún no cuentan con orientaciones para implementar la educación inclusiva."]
["3600: Sharanahua",null,null,null,null,null,null,null,"UGEL",null,null,null,null,null,null,null,"Otro motivo"]
["3700: Shawi",null,null,null,null,null,null,null,"Organizaciones sin fines de lucro /ONG"]
["3800: Shipibo-Konibo",null,null,null,null,null,null,null,"Entidad privada, como auspicio",null,null,null,null,"111.F. DE LAS ACTIVIDADES QUE REALIZA CON FAMILIAS Y COMUNIDAD, ¿POR LO MENOS"]
["3900: Shiwilu",null,null,"No",null,null,null,null,"Entidad privada, como convenio",null,null,null,null,null,"UNA DE ELLAS TIENE COMO EJE PRINCIPAL LA EDUCACIÓN INCLUSIVA?"]
["4000: Taushiro",null,null,null,null,null,null,null,"Inversión propia"]
["4100: Ticuna",null,null,null,null,null,null,null,"Otros",null,null,null,null,null,"Sí",null,null,"No"]
["4200: Urarina"]
["4300: Wampis"]
["4400: Yagua",null,"112.F. ¿EL SERVICIO/NIVEL EDUCATIVO, CUENTA CON EL SERVICIO DE APOYO EDUCATIVO",null,null,null,null,null,null,null,null,null,null,"117.F. USTED SEÑOR(A) DIRECTOR(A), ¿HA RECIBIDO ASESORÍA DEL SAEI (SERVICIO"]
["4500: Yaminahua",null,null,"INTERNO (SAEI)?",null,null,null,null,null,null,null,null,null,null,"DE APOYO EDUCATIVO INTERNO) EN EL MARCO DE UNA EDUCACIÓN INCLUSIVA?"]
["4600: Yanesha"]
["4700: Yine",null,null,"Sí",null,"¿Cuántas personas lo integran?",null,null,null,null,null,null,null,null,"Sí",null,null,"No"]
["4800: Nahua"]
[]
[null,null,null,null,null,null,"¿Quiénes lo conforman?"]
[null,null,null,null,null,null,null,null,null,null,null,null,null,"118.F. USTED SEÑOR(A) DIRECTOR(A), ¿CUENTA CON CONOCIMIENTOS ACERCA DE LA EDUCACIÓN"]
[null,null,null,null,null,null,null,"Coordinador SAEI",null,null,null,null,null,null,"INCLUSIVA SEGÚN LAS NORMAS VIGENTES EN ESTE SERVICIO/NIVEL EDUCATIVO?"]
[null,null,null,null,null,null,null,"Docente de Apoyo SAEI"]
[null,null,null,null,null,null,null,"Otro",null,null,null,null,null,null,"Sí"]
[]
[null,null,null,"No",null,"¿Por qué?"]
[null,null,null,null,null,"Marque con una “X”, una o más opciones",null,null,null,null,null,null,null,null,null,"¿Quién brindó la capacitación?"]
[null,null,null,null,null,null,null,null,null,null,null,null,null,null,null,"Marque con una “X”, una o más opciones"]
[null,null,null,null,null,null,null,"Aún no cuentan con lineamientos para implementarlo."]
[null,null,null,null,null,null,null,"Aún desconocen las funciones del SAEI.",null,null,null,null,null,null,null,null,"Minedu"]
[null,null,null,null,null,null,null,"Otro",null,null,null,null,null,null,null,null,"SAE Externo DRE/UGEL"]
[null,null,null,null,null,null,null,null,null,null,null,null,null,null,null,null,"DRE / UGEL"]
[null,null,"113.F. EL SERVICIO/NIVEL EDUCATIVO, DE ACUERDO AL DIAGNÓSTICO DE LOGROS DE APRENDIZAJE",null,null,null,null,null,null,null,null,null,null,null,null,null,"UGEL"]
[null,null,null,"DE LAS/OS ESTUDIANTES QUE REQUIEREN MAYORES APOYOS EDUCATIVOS ¿HA ELABORADO",null,null,null,null,null,null,null,null,null,null,null,null,"Entidad privada, como auspicio"]
[null,null,null,"PLANES EDUCATIVOS PERSONALIZADOS (PEP)?",null,null,null,null,null,null,null,null,null,null,null,null,"Inversión propia"]
[null,null,null,null,null,null,null,null,null,null,null,null,null,null,null,null,"Organizaciones sin fines de lucro/ONG"]
[null,null,null,"Sí",null,null,null,null,"No",null,null,null,null,null,null,null,"Otros"]
[]
[null,null,null,null,null,"¿Todos los/as estudiantes con alguna necesidad"]
[null,null,null,null,null,"educativa cuentan con un PEP?"]
[null,null,null,null,null,null,null,null,null,null,null,null,null,"119.F. ¿CUÁNTOS DOCENTES CUENTAN CON CONOCIMIENTOS ACERCA DE LA EDUCACIÓN INCLUSIVA"]
[null,null,null,null,null,"Sí  ",null,null,"No",null,null,null,null,null,"EN ESTE SERVICIO/NIVEL EDUCATIVO?"]
[]
[null,null,"114.F. ¿EN LOS PLANES TUTORIALES SE HA PRIORIZADO ALGÚN TEMA SOBRE EL EJE",null,null,null,null,null,null,null,null,null,null,null,null,"Cantidad de docentes :"]
[null,null,null,"DE INCLUSIÓN Y ATENCIÓN A LA DIVERSIDAD?"]
[]
[null,null,null,"Sí",null,null,null,null,"No",""]
[null,null,null,null,null,null,null,null,null,null,null,null,null,"120.F. EN ESTE SERVICIO/NIVEL EDUCATIVO, LOS DOCENTES, ¿HAN RECIBIDO ACOMPAÑAMIENTO"]
[null,null,"115.F. EN EL AÑO 2023 Y HASTA LA FECHA DE APLICACIÓN DEL CENSO EDUCATIVO 2024,",null,null,null,null,null,null,null,null,null,null,null,"Y ASESORÍA EN EL MARCO DE UNA EDUCACIÓN INCLUSIVA?"]
[null,null,null,"ESTE SERVICIO/NIVEL EDUCATIVO, ¿HA INCORPORADO ACCIONES Y CAMBIOS"]
[null,null,null,"EN LA GESTIÓN PARA ATENDER A LA DIVERSIDAD Y BRINDAR UNA EDUCACIÓN",null,null,null,null,null,null,null,null,null,null,"Sí",null,null,"No"]
[null,null,null,"INCLUSIVA SEGÚN LAS NORMATIVAS VIGENTES?"]
[]
[null,null,null,"Sí",null,null,null,null,"No","",null,null,null,null,null,"¿Sobre qué temáticas recibieron?"]
[null,null,null,null,null,null,null,null,null,null,null,null,null,null,null,"Marque con una “X”, una o más opciones"]
[null,null,null,null,null,"¿Precise los documentos de gestión?"]
[null,null,null,null,null,"Marque con una “X”, una o más opciones",null,null,null,null,null,null,null,null,null,null,"Enfoque inclusivo y de atención a la diversidad según el CNEB"]
[null,null,null,null,null,null,null,null,null,null,null,null,null,null,null,null,"Identificación de barreras educativas"]
[null,null,null,null,null,null,null,"Proyecto Educativo Institucional (PEI)",null,null,null,null,null,null,null,null,"Implementación de Apoyos Educativos"]
[null,null,null,null,null,null,null,"Plan Anual de Trabajo (PAT)",null,null,null,null,null,null,null,null,"Diseño Universal para el Aprendizaje"]
[null,null,null,null,null,null,null,"Proyecto Curricular Institucional (PCI)",null,null,null,null,null,null,null,null,"Plan Educativo Personalizado"]
[null,null,null,null,null,null,null,"Reglamento Interno (RI)",null,null,null,null,null,null,null,null,"Otros"]
[null,null,null,null,null,null,null,"Otros"]
[]
[null,null,"116.F. ESTE SERVICIO/NIVEL EDUCATIVO, DURANTE EL AÑO 2023 Y HASTA LA FECHA"]
[null,null,null,"DE APLICACIÓN DEL CENSO EDUCATIVO 2024, RESPECTO A LA IMPLEMENTACIÓN DEL SAEI,"]
[null,null,null,"¿HA REALIZADO ALGUNAS DE LAS SIGUIENTES ACCIONES?"]
[null,null,null,"Marque con una “X”, una o más opciones"]
[]
[null,null,null,null,null,"Sensibilización y concientización sobre educación inclusiva para la comunidad …"]
[null,null,null,null,null,"Capacitación en educación inclusiva para los docentes, directivos y otros agentes"]
[null,null,null,null,null,"Asesoramiento y acompañamiento a los docentes y otros agentes educativos ..."]
[null,null,null,null,null,"Organiza y coordina a nivel aula y/o Institución Educativa la implementación …"]
[null,null,null,null,null,"Otro"]
[]
[]
[null,null,"G. SUPERVISIÓN DE LA PRESTACIÓN DEL SERVICIO EDUCATIVO - SOLO GESTIÓN PRIVADA"]
[null,null,"101.G.  EN EL PRESENTE AÑO 2023, ¿ESTE NIVEL/SERVICIO EDUCATIVO FUE SUPERVISADO",null,null,null,null,null,null,null,null,null,null,"103.G.  FORMA DE CONSTITUCIÓN (Sólo para personas jurídicas)"]
[null,null,null,"  POR LA UGEL A LA QUE PERTENECE?",null,null,null,null,null,null,null,null,null,null,"Marque con un aspa ‘’x’’ y registra la información solicitada según corresponda"]
[]
[null,null,null," Sí",null,null,null," No  ",null,null,null,null,null,null,null,"  Sociedad"]
[null,null,null,null,null,null,null,null,null,null,null,null,null,null,null,null,null,"N° de Partida Regristral  "]
[null,null,null,null,null,null,null,null,null,null,null,null,null,null,null,null,null,"N° de Asiento Registral  "]
[null,null,null,null,"¿Qué aspectos fueron supervisados?",null,null,null,null,null,null,null,null,null,null,"  Asociación"]
[null,null,null,null,"Marque con una “X”, una o más opciones"]
[null,null,null,null,null,null,null,null,null,null,null,null,null,"104.G. ¿ESTE SERVICIO/NIVEL EDUCATIVO PERTENECE A ALGUNA ASOCIACIÓN"]
[null,null,null,null,null,"Entrega de información a los usuarios(as) respecto del servicio educativo",null,null,null,null,null,null,null,null,"QUE AGRUPE A II.EE. PRIVADAS?"]
[null,null,null,null,null,"Infraestructura educativa"]
[null,null,null,null,null,"Otros",null,null,null,null,null,null,null,null," Sí",null,null,null," No  "]
[]
[]
[null,null,"102.G. COMPLETE LOS SIGUIENTES DATOS SOBRE LA PROMOTORÍA DE ESTE NIVEL",null,null,null,null,null,null,null,null,null,null,null,"Nombre de la asociación :"]
[null,null,null,"SERVICIO EDUCATIVO DE GESTIÓN PRIVADA"]
[null,null,null,"Marque con un aspa ‘’X’’ y registra la información solicitada según corresponda",null,null,null,null,null,null,null,null,null,null,"Datos de contacto de la asociación:"]
[null,null,null,"Tipo de persona:"]
[null,null,null,null,null,null,null,null,null,null,null,null,null,null,null,null,"Web "]
[null,null,null,null,null,null,null,null,null,null,null,null,null,null,null,null,"Correo electrónico "]
[null,null,null,null,null,"  Natural",null,"DNI/CE",null,":",null,null,null,null,null,null,"Teléfono/celular "]
[]
[null,null,null,null,null,null,null,"Nombres  ",null,null,null,null,null,"105.G. ¿CUÁNTO ES EL COSTO DE LA PENSIÓN DE ENSEÑANZA (EN MONEDA NACIONAL)?"]
[null,null,null,null,null,null,null,"Apellidos  "]
[null,null,null,null,null,null,null,null,null,null,null,null,null,null,null,"Única",null,"Pensión"]
[null,null,null,null,null,"  Jurídica",null,"RUC  "]
[null,null,null,null,null,null,null,"Razón social  "]
[null,null,null,null,null,null,null,null,null,null,null,null,null,null,null,null,null,"Escala mínima"]
[null,null,null,null,null,null,null,null,null,null,null,null,null,null,null,"Varias"]
[null,null,null,null,null,null,null,null,null,null,null,null,null,null,null,null,null,"Escala máxima"]

{"sheet":"C200","index":3,"n_rows":93,"n_cols":21,"rows_kept":93,"cut":false,"hidden":false,"merged":[[63,4,63,5],[23,2,25,3],[38,9,38,14],[11,15,11,16],[11,17,11,18],[37,9,37,14],[21,2,22,3],[21,4,22,4],[21,8,22,8],[21,5,22,5],[21,6,22,6],[21,7,22,7],[13,2,15,3],[10,2,12,3],[11,7,11,8],[49,17,49,18],[49,19,49,20],[48,2,50,4],[48,6,50,6],[48,7,49,8],[49,9,49,10],[49,11,49,12],[69,17,69,18],[69,19,69,20],[77,4,77,5],[68,2,70,4],[68,6,70,6],[68,7,69,8],[69,9,69,10],[69,11,69,12],[83,4,83,5],[1,5,1,16],[2,5,2,16],[69,13,69,14],[69,15,69,16],[49,13,49,14],[49,15,49,16],[37,4,39,7],[6,2,6,20],[11,19,11,20],[11,13,11,14],[11,9,11,10],[11,11,11,12],[10,4,12,4],[10,5,11,6],[40,2,43,3]]}
[null,""]
[null,"",null,null,null,"CENSO EDUCATIVO 2024"]
[null,"",null,null,null,"MATRÍCULA, DOCENTES Y MATERIALES EDUCATIVOS"]
[]
[]
[]
[null,null,"200. MATRICULA Y SECCIONES"]
[]
[null,null,201,"MATRÍCULA TOTAL POR EDADES, SEGÚN TURNO DE ENSEÑANZA"]
[]
[null,null,"VARIABLE",null,"TURNO","TOTAL",null,"EDADES"]
[null,null,null,null,null,null,null,0,null,1,null,2,null,3,null,4,null,5,null,"6 y más"]
[null,null,null,null,null,"H","M","H","M","H","M","H","M","H","M","H","M","H","M","H","M"]
["00",null,"MATRÍCULA",null,"TOTAL",{"$f":"H14+J14+L14+N14+P14+R14+T14","v":0},0,{"$f":"SUM(H15:H16)","v":0},0,{"$f":"SUM(J15:J16)","v":0},0,0,0,0,0,0,0,0,0,0,0]
["01",null,null,null,"MAÑANA",0,0]
["02",null,null,null,"TARDE",0,0]
[null,null,"Nota:","Incluya todos los estudiantes matriculados en este Servicio/Nivel Educativo, así la prestación de servicio sea presencial, semipresencial o virtual."]
[]
[]
[null,null,202,"SECCIONES POR EDADES, SEGÚN TURNO DE ENSEÑANZA"]
[]
[null,null,"VARIABLE",null,"TURNO",null,null,null,"TOTAL","EDADES"]
[null,null,null,null,null,null,null,null,null,0,1,2,3,4,"5 y más"]
["00",null,"SECCIONES",null,"TOTAL",null,null,null,{"$f":"SUM(J24:O24)","v":0},{"$f":"SUM(J25:J26)","v":0},{"$f":"SUM(K25:K26)","v":0},0,0,0,0]
["01",null,null,null,"MAÑANA",null,null,null,{"$f":"SUM(J25:O25)","v":0}]
["02",null,null,null,"TARDE",null,null,null,{"$f":"SUM(J26:O26)","v":0}]
[]
[]
[null,null,"203. ESTE SERVICIO/NIVEL EDUCATIVO, ¿CUENTA CON ESPACIOS O AMBIENTES DE ATENCIÓN POR GRUPOS MULTIEDAD?"]
[]
[null,null,"NOTA:","Espacios o ambientes multiedad, se refiere a estudiantes de",null,null,null,"Sí","",null,"No"]
[null,null,null,"diferentes edades que son atendidos a la vez y de manera"]
[null,null,null,"conjunta en un mismo espacio o ambiente educativo.",null,null,null,null,null,null,null,null,"Pase al cuadro 205"]
[]
[]
[null,null,204,"DETALLE DE EDADES O GRUPOS DE EDAD SEGÚN ESPACIO O AMBIENTE MULTIEDAD"]
[]
[null,null,null,null,"Detalle de Espacio o ambiente Multiedad",null,null,null,null,"Edades o grupos de edad atendidas en el"]
[null,null,"NOTA :",null,null,null,null,null,null,"Espacio o ambiente Multiedad"]
[null,null,null,null,null,null,null,null,{"$f":"COUNTIF(J41:O44,\"X\")","v":0},0,1,2,3,4,"5 y más"]
["01",null,"Marque con una “X” dos o más edades por cada fila  según corresponda",null,"Espacio o ambiente Multiedad (1)",null,null,null,{"$f":"COUNTIF(J41:O41,\"X\")","v":0}]
["02",null,null,null,"Espacio o ambiente Multiedad (2)",null,null,null,{"$f":"COUNTIF(J42:O42,\"X\")","v":0}]
["03",null,null,null,"Espacio o ambiente Multiedad (3)",null,null,null,{"$f":"COUNTIF(J43:O43,\"X\")","v":0}]
["04",null,null,null,"Espacio o ambiente Multiedad (4)",null,null,null,{"$f":"COUNTIF(J44:O44,\"X\")","v":0}]
[]
[]
["SI - NO",null,205,"MATRÍCULA TOTAL POR GRADO DE ESTUDIO Y SEXO, SEGÚN TIPO DE DISCAPACIDAD"]
[]
["SI",null,"TIPO DE DISCAPACIDAD",null,null,null,"Elija una opción","TOTAL",null,"EDADES"]
["NO",null,null,null,null,{"$f":"COUNTIF(G53:G65,\"SI\")","v":0},null,null,null,0,null,1,null,2,null,3,null,4,null,"5 y más"]
[null,null,null,null,null,{"$f":"COUNTIF(G53:G65,\"SI\") + COUNTIF(G53:G65,\"NO\")","v":0},null,"H","M","H","M","H","M","H","M","H","M","H","M","H","M"]
["00",null,"TOTAL",null,null,null,"SN",{"$f":"SUM(H53:H65)","v":0},{"$f":"SUM(I53:I65)","v":0},{"$f":"SUM(J53:J65)","v":0},{"$f":"SUM(K53:K65)","v":0},0,0,0,0,0,0,0,0,0,0]
["01",null,"Discapacidad Intelectual - Leve",null,null,null,null,{"$f":"J53+L53+N53+P53+R53+T53","v":0},0]
["02",null,"Discapacidad Intelectual - Moderada",null,null,null,null,0,0]
["03",null,"Discapacidad Auditiva - Hipoacusia",null,null,null,null,0,0]
["04",null,"Discapacidad Auditiva - Sordera",null,null,null,null,0,0]
["05",null,"Discapacidad Visual - Baja Visión",null,null,null,null,0,0]
["06",null,"Discapacidad Visual - Ceguera",null,null,null,null,{"$f":"J58+L58+N58+P58+R58+T58","v":0},0]
["07",null,"Discapacidad Física o Motora",null,null,null,null,0,0]
["08",null,"TEA - Requiere de apoyo (Nivel 1)",null,null,null,null,0,0]
["09",null,"TEA - Requiere de apoyo notable  (Nivel 2)",null,null,null,null,0,0]
["10",null,"TEA - Requiere de apoyo muy notable  (Nivel 3)",null,null,null,null,0,0]
["11",null,"Sordoceguera",null,null,null,null,{"$f":"J63+L63+N63+P63+R63+T63","v":0},{"$f":"K63+M63+O63+Q63+S63+U63","v":0}]
["12",null,"Otra discapacidad",null,null,null,null,0,0]
["13",null,"Ninguna discapacidad",null,null,null,null,0,0]
[null,null,null,null,null,null,null,null,null,null,null,null,null,null,null,{"$f":"N14","v":0},{"$f":"O14","v":0},0,0,{"$f":"R14+T14","v":0},{"$f":"S14+U14","v":0}]
[null,null,206,"MATRÍCULA TOTAL POR GRADO DE ESTUDIO Y SEXO, SEGÚN OTRAS CONDICIONES DETECTADAS"]
[]
[null,null,"OTRAS CONDICIONES DETECTADAS",null,null,null,"Elija una opción","TOTAL",null,"EDADES"]
[null,null,null,null,null,{"$f":"COUNTIF(G73:G92,\"SI\")","v":0},null,null,null,0,null,1,null,2,null,3,null,4,null,"5 y más"]
[null,null,null,null,null,{"$f":"COUNTIF(G73:G92,\"SI\") + COUNTIF(G73:G92,\"NO\")","v":0},null,"H","M","H","M","H","M","H","M","H","M","H","M","H","M"]
["00",null,"TOTAL",null,null,null,"SN",{"$f":"SUM(H73:H92)","v":0},0,{"$f":"SUM(J73:J92)","v":0},{"$f":"SUM(K73:K92)","v":0},0,0,{"$f":"SUM(N73:N92)","v":0},0,0,0,0,0,0,0]
["01",null,"Retraso global del desarrollo",null,null,null,null,{"$f":"J73+L73+N73+P73+R73+T73","v":0},{"$f":"K73+M73+O73+Q73+S73+U73","v":0}]
["02",null,"Trastorno por Déficit de Atención - TDAH",null,null,null,null,0,0]
["03",null,"TEA - Dislexia",null,null,null,null,0,0]
["04",null,"TEA - Discalculia",null,null,null,null,0,0]
["05",null,"TEA - Disgrafia",null,null,null,null,0,0]
["06",null,"TEA - Otros",null,null,null,null,0,0]
["07",null,"Esquizofrenia (E)",null,null,null,null,0,0]
["08",null,"Depresión (D)",null,null,null,null,0,0]
["09",null,"Ansiedad (A)",null,null,null,null,0,0]
["10",null,"Trastornos de personalidad",null,null,null,null,0,0]
["11",null,"Otros",null,null,null,null,0,0]
["12",null,"Enfermedades Raras",null,null,null,null,0,0]
["13",null,"Talla Baja",null,null,null,null,0,0]
["14",null,"Menos de 15 días de hospitalización",null,null,null,null,0,0]
["15",null,"De 15 a 30 días de hospitalización",null,null,null,null,0,0]
["16",null,"Más de 30 días de hospitalización",null,null,null,null,0,0]
["17",null,"Talento",null,null,null,null,0,0]
["18",null,"Superdotación",null,null,null,null,{"$f":"J90+L90+N90+P90+R90+T90","v":0},{"$f":"K90+M90+O90+Q90+S90+U90","v":0}]
["19",null,"Otras condiciones relacionadas",null,null,null,null,{"$f":"J91+L91+N91+P91+R91+T91","v":0},{"$f":"K91+M91+O91+Q91+S91+U91","v":0}]
["20",null,"Ninguna otra condiciones detectada",null,null,null,null,0,0]
[null,null,null,null,null,null,null,null,null,{"$f":"H14","v":0},{"$f":"I14","v":0},0,0,0,0,0,0,0,0,{"$f":"R14+T14","v":0},{"$f":"S14+U14","v":0}]

{"sheet":"C300","index":4,"n_rows":428,"n_cols":64,"rows_kept":428,"cut":false,"hidden":false,"merged":[[16,63,18,63],[15,40,15,45],[15,46,15,49],[15,50,15,52],[16,46,16,49],[16,50,16,52],[16,53,17,53],[16,55,17,55],[16,57,17,57],[16,60,17,60],[16,62,18,62],[17,46,18,46],[17,51,17,52],[16,59,18,59],[16,58,17,58],[17,40,17,45],[15,15,15,16],[16,25,18,25],[16,20,18,20],[16,28,18,28],[16,29,18,29],[1,14,1,22],[2,14,2,22],[16,12,18,12],[16,13,18,13],[16,27,18,27],[16,22,18,22],[16,23,18,23],[16,24,18,24],[16,14,18,14],[16,21,17,21],[6,11,6,25],[16,11,18,11],[16,17,18,17],[16,18,18,18],[16,19,18,19],[16,15,16,16],[16,32,18,32],[16,26,18,26],[16,33,18,33],[16,34,18,34],[16,36,18,36],[16,35,18,35],[16,30,18,30],[16,31,18,31],[16,37,18,37],[16,56,18,56],[16,39,18,39],[16,38,18,38],[16,61,17,61],[16,54,17,54],[16,40,16,45],[17,50,18,50],[17,47,18,47],[17,48,18,48],[17,49,18,49]]}
[]
[null,null,null,null,null,null,null,null,null,null,null,null,null,null,"CENSO EDUCATIVO 2024"]
[null,null,null,null,null,null,null,null,null,null,null,null,null,null,"MATRÍCULA, DOCENTES Y MATERIALES EDUCATIVOS"]
[]
["PERSONAL",{"$f":"P10+V10+Y10","v":0}]
[]
["DOCENTES",{"$f":"COUNTIF(R20:R219,\"01: Docente\")","v":0},null,null,null,null,null,null,null,null,null,"300. PERSONAL DOCENTE, AUXILIARES DE EDUCACIÓN Y ADMINISTRATIVOS  (Para II.EE. Públicas y Privadas)"]
["AUXILIARES",{"$f":"COUNTIF(R20:R219,\"03: Aux. de Educación\")","v":0},null,null,null,null,null,null,null,null,null,"Anote los totales del personal que labora en el Servicio/Nivel educativo:"]
["ADMINISTRATIVOS",{"$f":"COUNTIF(R20:R219,\"02: Administrativo\")","v":0}]
["DOCENTE DE AULA",{"$f":"COUNTIF(AJ20:AJ219,\"05: (111)-Docente de Aula\")","v":0},null,null,null,null,null,null,null,null,null,null,null,null,"Total Docentes : ",null,null,"Docentes de Aula : ",null,null,"Auxiliar de Educación  : ",null,null,"Administrativos : "]
["DOCENTES CON SECCIÓN",{"$f":"COUNTIF(AN20:AN219,\"SI\")","v":0}]
[null,{"$f":"B7+B8+B9","v":0},null,null,null,null,null,null,null,null,null,"El “Total Docentes”, considera a todos los que cumplen funciones docentes en el Servicio/Nivel educativo: Directivos con o sin aula a cargo, docentes de aula, jefes o jerárquicos, especiales (ed. física, computación, etc.)"]
["LICENCIA",{"$f":"COUNTIF(AL20:AL219,\"01: En uso de Licencia\")","v":0},null,null,null,null,null,null,null,null,null,"En el caso de Auxiliares de Educación y Personal que cumple funciones administrativas, anote el total en los recuadros correspondientes."]
[null,null,null,null,null,null,null,null,null,10]
[null,null,null,null,null,null,null,null,null,null,null,null,null,null,null,null,null,null,null,null,null,null,null,null,"G. Pública",null,null,null,null,null,null,"G. Pública",null,null,"G. Pública",null,null,null,"G. Pública",null,null,null,null,null,null,null,null,null,null,null,null,null,null,null,"G. Pública"]
["DOC. LENGUA ORIGINARIA",{"$f":"SUM(B229:B428)","v":0},null,null,null,null,null,null,null,null,null,null,301.10000000000002,301.2,301.3,302,null,303,304,305,306,307,308,309,310,311,312,313,314,315,316,317,318,319,320,321,322,323,324,325,326,null,null,null,null,null,327,null,null,null,328,null,null,329,330,331,332,333,333.1,333.2,333.3,334.1,334.2,334.3]
["GESTION",{"$f":"IF(OR('C100'!J29=\"X\",'C100'!O29=\"X\"),1,IF('C100'!T29=\"X\",3,\"\"))","v":""},null,null,null,null,null,null,null,null,null,"Nº","Apellido Paterno","Apellido Materno","Nombres","Documento de Identidad",null,"Tipo de\nPersonal","Edad","Sexo","Lengua\nmaterna","¿Domina una\nlengua\noriginaria?","Lengua originaria\nque domina","Fuente de\nfinanciamiento","Condición Laboral","Modalidad de Contrato","Máximo nivel\neducativo alcanzado","Especialidad Pedagógica\nque ha estudiado","¿En qué tipo de\ninstitución obtuvo\nsu formación pedagógica?","Segunda especialidad","Estudios de Postgrado en Pedagogía","Tiempo de Servicio\n(en años)","Años de Experiencia Laboral","Años de\nexperiencia\nlaboral en\neste servicio / nivel\neducativo","Escala\nMagisterial","Función o cargo","Situación en cargo\ndirectivo","Licencia \no\nDestaque","Jornada Laboral según\nNombramiento\no Contrato","¿Tiene secciones a cargo?","Edades Atendidas",null,null,null,null,null,"Conocimiento de Ingles",null,null,null,"Certificación de Inglés",null,null,"¿El docente enseña inglés?","Desde el año 2023 a la fecha, ¿ha recibido capacitación en la implementación del Currículo Nacional?","¿Cuenta con constancia de participación en el curso virtual autoformativo vinculado al Currículo Nacional de la Educación Básica Perú Educa?","¿En qué turno(s) labora este personal docente o administrativo?","¿ Atiende a estudiantes con NEE asociadas a discapacidad ?","¿Presenta alguna discapacidad?","Solo si respondió Sí en la pregunta\n333.1 ¿Cúal es el tipo de discapacidad?","¿Ha recibido asistencia y orientación para la atención educativa de estudiantes con discapacidad del equipo SAEV?","¿Recibió asesoría pedagógica en el marco de refuerzo escolar?","Solo si respondió Sí en la pregunta 334.1 ¿cuántas veces desde el inicio del año lectivo, recibió asesoría pedagógica en el marco de refuerzo escolar?","Solo si respondió Sí en la pregunta 334.1 Sobre qué temas ha recibido asistencia técnica"]
[null,null,"Exp1","Exp2","Exp3","Exp4","Exp5","Exp6","Exp7",null,null,null,null,null,null,302.10000000000002,302.2,null,null,null,null,null,null,null,null,null,null,null,null,null,null,null,null,null,null,null,null,null,null,null,"Marque con una “X”, según corresponda",null,null,null,null,null,"No Sabe","Habla","Lee","Escribe","No Tiene","Si Tiene"]
["302.1 Tipo de documento de Identidad","314. Tipo de inst. donde estudio","Corr","Escala","Gest","Secc","Fun- cion","Duplex","Fmt",null," ",null,null,null,null,null,null,null,null,null,null,null,null,null,null,null,null,null,null,null,null,null,null,null,null,null,null,null,null,null,0,1,2,3,4,5,null,null,null,null,null,null,null,"SI - NO","SI - NO","SI - NO",null,"SI - NO","SI - NO",null,"SI - NO","SI - NO"]
["01: DNI.","01: IESP (Público)",1,{"$f":"IF(AND(LEFT(R20,2)=\"01\",LEFT(X20,2)=\"01\",LEFT(Y20,2)=\"01\",E20=1),1,0)","v":0},{"$f":"$B$17","v":""},{"$f":"COUNTIF(AO20:AT20,\"X\")","v":0},{"$f":"IF(R20<>\"\",VALUE(LEFT(R20,2)),0)","v":0},{"$f":"IF(Q20<>\"\",COUNTIF($Q$20:$Q$219,Q20),0)","v":0},{"$f":"IF(L20<>\"\",1,0)","v":0},null,null,{"$f":"IF($C20<=$B$5,C20,\"\")","v":""}]
["02: Carnet Ext.","02: IESP (Privado)",2,{"$f":"IF(AND(LEFT(R21,2)=\"01\",LEFT(X21,2)=\"01\",LEFT(Y21,2)=\"01\",E21=1),1,0)","v":0},{"$f":"$B$17","v":""},{"$f":"COUNTIF(AO21:AT21,\"X\")","v":0},{"$f":"IF(R21<>\"\",VALUE(LEFT(R21,2)),0)","v":0},{"$f":"IF(Q21<>\"\",COUNTIF($Q$20:$Q$219,Q21),0)","v":0},0,null,null,{"$f":"IF($C21<=$B$5,C21,\"\")","v":""}]
["03: Pasaporte","03: Universidad Privada",3,0,"",0,0,0,0,null,null,""]
[null,"04: Universidad Pública",4,0,"",0,0,0,0,null,null,""]
["303. Tipo de Personal",null,5,0,"",0,0,0,0,null,null,""]
["01: Docente","315. Segunda Especialidad",6,0,"",0,0,0,0,null,null,""]
["02: Administrativo","Utilice las especialidades de la tabla de códigos 313.",7,0,"",0,0,0,0,null,null,""]
["03: Aux. de Educación",null,8,0,"",0,0,0,0,null,null,""]
[null,"316. Estudios de Postgrado en Pedagogía",9,0,"",0,0,0,0,null,null,""]
["305. Sexo","Estudios de Maestría y doctorado",10,0,"",0,0,0,0,null,null,""]
["Hombre","01: Maestria concluida con grado",11,0,"",0,0,0,0,null,null,""]
["Mujer","02: Maestria concluida sin grado",12,0,"",0,0,0,0,null,null,""]
[null,"03: Maestria en proceso",13,0,"",0,0,0,0,null,null,""]
["306. Lengua Materna","04: Doctorado concluido con grado",14,0,"",0,0,0,0,null,null,""]
["0100: Castellano","05: Doctorado concluido sin grado",15,0,"",0,0,0,0,null,null,""]
["0200: Achuar","06: Doctorado en proceso",16,0,"",0,0,0,0,null,null,""]
["0300: Aimara","07: Sin Postgrado",17,0,"",0,0,0,0,null,null,""]
["0400: Amahuaca",null,18,0,"",0,0,0,0,null,null,""]
["0500: Arabela",null,19,0,"",0,0,0,0,null,null,""]
["0600: Asháninka","317. Tiempo de Servicio",20,0,"",0,0,0,0,null,null,""]
["0610: Asheninka","Solo personal Nombrado.",21,0,"",0,0,0,0,null,null,""]
["0700: Awajún","Tiempo contado expresado en años desde su fecha de Nombramiento",22,0,"",0,0,0,0,null,null,""]
["0800: Bora",null,23,0,"",0,0,0,0,null,null,""]
["0900: Kapanawa","318. Años de Experiencia Laboral",24,0,"",0,0,0,0,null,null,""]
["1000: Cashinahua","Registre el total de años que tiene como experiencia",25,0,"",0,0,0,0,null,null,""]
["1100: Kawki","en el Tipo de Personal que se está registrando (Tabla 301.)",26,0,"",0,0,0,0,null,null,""]
["1200: Chamikuro",null,27,0,"",0,0,0,0,null,null,""]
["1300: Ese eja","319. Años de experiencia laboral en este servicio/ nivel educativo",28,0,"",0,0,0,0,null,null,""]
["1400: Harakbut","Anote el N° de años de experiencia prestando servicios",29,0,"",0,0,0,0,null,null,""]
["1500: Iñapari","en este servicio/nivel educativo por el tipo de personal",30,0,"",0,0,0,0,null,null,""]
["1600: Ikuitu","que se está registrando (Tabla 301.)",31,0,"",0,0,0,0,null,null,""]
["1700: Iskonawa",null,32,0,"",0,0,0,0,null,null,""]
["1800: Jaqaru","320. Escala Magisterial",33,0,"",0,0,0,0,null,null,""]
["1900: Kakataibo","Complete los datos de Escala Magisterial, según corresponda",34,0,"",0,0,0,0,null,null,""]
["2000: Kakinte (caquinte)","01: Primera",35,0,"",0,0,0,0,null,null,""]
["2110: Kandozi (Chapra)","02: Segunda",36,0,"",0,0,0,0,null,null,""]
["2120: Kandozi (Kandozi)","03: Tercera",37,0,"",0,0,{"$f":"IF(Q56<>\"\",COUNTIF($Q$20:$Q$219,Q56),0)","v":0},{"$f":"IF(L56<>\"\",1,0)","v":0},null,null,""]
["2200: Kukama-kukamiria","04: Cuarta",38,0,"",0,0,0,0,null,null,""]
["2300: Madija (culina)","05: Quinta",39,0,"",0,0,0,0,null,null,""]
["2400: Maijiki","06: Sexta",40,0,"",0,0,0,0,null,null,""]
["2500: Matsés","07: Séptima",41,0,"",0,0,0,0,null,null,""]
["2600: Matsigenka","08: Octava",42,0,"",0,0,0,0,null,null,""]
["2700: Munichi","09: Sin Escala",43,0,"",0,0,0,0,null,null,""]
["2800: Murui-muinani",null,44,0,"",0,0,0,0,null,null,""]
["2900: Matsigenka-montetokunirira","321. Función o Cargo",45,0,"",0,0,0,0,null,null,""]
["3000: Nomatsigenga","(Desempeñado a la fecha de reporte)",46,0,"",0,0,0,0,null,null,""]
["3100: Ocaina","Docentes",47,0,"",0,0,0,0,null,null,""]
["3200: Omagua","01: (101)-Director General",48,0,"",0,0,0,0,null,null,""]
["3310: Quechua amazónico (Kichwa)","02: (102)-Director",49,0,"",0,0,0,0,null,null,""]
["3321: Quechua central (Ancash)","03: (103)-Sub Director",50,0,"",0,0,0,0,null,null,""]
["3322: Quechua central (Huánuco)","04: (106)-Coordinador, Asesor",51,0,"",0,0,0,0,null,null,""]
["3323: Quechua central (Wanka)","05: (111)-Docente de Aula",52,0,"",0,0,0,0,null,null,""]
["3324: Quechua central (Pasco)","06: (116)-Docente de Aula con función o cargo directivo",53,0,"",0,0,0,0,null,null,""]
["3331: Quechua norteño (Cajamarca)","07: (139)-Otro docente",54,0,"",0,0,0,0,null,null,""]
["3332: Quechua norteño (Inkawasi Kañaris)",null,55,0,"",0,0,0,0,null,null,""]
["3341: Quechua sureño (Chanka)",null,56,0,"",0,0,0,0,null,null,""]
["3342: Quechua sureño (Collao)",null,57,0,"",0,0,0,0,null,null,""]
["3400: Resígaro",null,58,0,"",0,0,0,0,null,null,""]
["3500: Secoya",null,59,0,"",0,0,0,0,null,null,""]
["3600: Sharanahua",null,60,0,"",0,0,0,0,null,null,""]
["3700: Shawi",null,61,0,"",0,0,0,0,null,null,""]
["3800: Shipibo-Konibo",null,62,0,"",0,0,0,0,null,null,""]
["3900: Shiwilu",null,63,0,"",0,0,0,0,null,null,""]
["4000: Taushiro",null,64,0,"",0,0,0,0,null,null,""]
["4100: Ticuna",null,65,0,"",0,0,0,{"$f":"IF(L84<>\"\",1,0)","v":0},null,null,""]
["4200: Urarina",null,66,{"$f":"IF(AND(LEFT(R85,2)=\"01\",LEFT(X85,2)=\"01\",LEFT(Y85,2)=\"01\",E85=1),1,0)","v":0},{"$f":"$B$17","v":""},{"$f":"COUNTIF(AO85:AT85,\"X\")","v":0},{"$f":"IF(R85<>\"\",VALUE(LEFT(R85,2)),0)","v":0},{"$f":"IF(Q85<>\"\",COUNTIF($Q$20:$Q$219,Q85),0)","v":0},0,null,null,{"$f":"IF($C85<=$B$5,C85,\"\")","v":""}]
["4300: Wampis",null,67,0,"",0,0,0,0,null,null,""]
["4400: Yagua","Administrativos",68,0,"",0,0,0,0,null,null,""]
["4500: Yaminahua","08: (501)-Psicólogo",69,0,"",0,0,0,0,null,null,""]
["4600: Yanesha","09: (502)-Trabajo social / Servicio social",70,0,"",0,0,0,0,null,null,""]
["4700: Yine","10: (503)-Personal de Salud",71,0,"",0,0,0,0,null,null,""]
["4800: Nahua","11: (504)-Administrador o contador",72,0,"",0,0,0,0,null,null,""]
["5100: Alemán","12: (537)-Guía intérprete de sordoceguera",73,0,"",0,0,0,0,null,null,""]
["5200: Inglés","13: (538)-Intérprete de Lengua de Señas Peruana",74,0,"",0,0,0,0,null,null,""]
["5300: Italiano","14: (539)-Modelo Lingüístico",75,0,"",0,0,0,0,null,null,""]
["5400: Japonés","15: (505)-Otro personal profesional",76,0,"",0,0,0,0,null,null,""]
["5500: Portugués","16: (506)-Auxiliar de Biblioteca",77,0,"",0,0,0,0,null,null,""]
["5600: Ruso","17: (507)-Auxiliar de Laboratorio",78,0,"",0,0,0,0,null,null,""]
["5700: Francés","18: (508)-Secretaria u Oficinista",79,0,"",0,0,0,0,null,null,""]
["5800: Otra lengua extranjera","19: (510)-Coordinador de Taller",80,0,"",0,0,0,0,null,null,""]
[null,"20: (511)-Asistente Administrativo",81,0,"",0,0,0,0,null,null,""]
["308. Lengua Originaria","21: (512)-Personal de Servicio - Mantenimiento",82,0,"",0,0,0,0,null,null,""]
["De: 0200 a 4800","22: (513)-Personal de Servicio - Cocina",83,0,"",0,0,0,0,null,null,""]
[null,"23: (514)-Personal de Servicio - Limpieza",84,0,"",0,0,0,0,null,null,""]
["309. Fuente de Financiamiento","24: (515)-Personal de Servicio - Portero",85,0,"",0,0,0,0,null,null,""]
["01: Sector Educación","25: (516)-Personal de Servicio - Vigilante",86,0,"",0,0,0,0,null,null,""]
["02: Otro sector público","26: (517)-Otro personal de servicio",87,0,"",0,0,0,0,null,null,""]
["03: Municipalidad","27: (518)-Otro personal No profesional",88,0,"",0,0,0,0,null,null,""]
["04: Gobierno Regional",null,89,0,"",0,0,0,0,null,null,""]
["05: APAFA",null,90,0,"",0,0,0,0,null,null,""]
["06: Otra fuente Privada",null,91,0,"",0,0,0,0,null,null,""]
[null,null,92,0,"",0,0,0,0,null,null,""]
["310. Condición Laboral",null,93,0,"",0,0,0,0,null,null,""]
["01: Nombrado",null,94,0,"",0,0,0,0,null,null,""]
["02: Contratado",null,95,0,"",0,0,0,0,null,null,""]
["03: No aplica",null,96,0,"",0,0,0,0,null,null,""]
[null,null,97,0,"",0,0,0,0,null,null,""]
["311. Modalidad de Contrato",null,98,0,"",0,0,0,0,null,null,""]
["Contrato Público",null,99,0,"",0,0,0,0,null,null,""]
["01: A plazo fijo D. Leg. 728",null,100,0,"",0,0,0,0,null,null,""]
["02: Locación de Serv. / Honorarios",null,101,0,"",0,0,0,0,null,null,""]
["03: CAS - D. Leg. 1057","99: (999)-Auxiliar de Educación",102,0,"",0,0,0,0,null,null,""]
["04: Contrato D. Leg. 276",null,103,0,"",0,0,0,0,null,null,""]
["05: Contrato Ley 30328","322. Situación en el Cargo Directivo",104,0,"",0,0,0,0,null,null,""]
["06: Otra modalidad","01: Titular ratificado eval.2014",105,0,"",0,0,0,0,null,null,""]
["Contrato Privado","02: Titular designado eval. 2015, 2016 y 2018",106,0,"",0,0,0,0,null,null,""]
["07: A plazo indefinido (Permanente)","03: Titular otro",107,0,"",0,0,0,0,null,null,""]
["08: Plazo fijo (Tiempo determinado)","04: Encargado por función, sin doc. formal",108,0,"",0,0,0,0,null,null,""]
["09: A tiempo parcial (por horas)","05: Encargado",109,0,"",0,0,0,0,null,null,""]
["10: Locación de Serv. / Honorarios",null,110,0,"",0,0,0,0,null,null,""]
["11: Otra modalidad","323. Destaque o Licencia",111,0,"",0,0,0,0,null,null,""]
[null,"01: Cubriendo una licencia",112,0,"",0,0,0,0,null,null,""]
["312. Máximo Nivel Educativo Alcanzado","02: De otra I.E./DRE/UGEL",113,0,"",0,0,0,0,null,null,""]
["01: EP.Concluidos con título","03: No Aplica",114,0,"",0,0,0,0,null,null,""]
["02: EP.Concluidos sin título",null,115,0,"",0,0,0,0,null,null,""]
["03: EP.No concluidos",null,116,0,"",0,0,0,0,null,null,""]
["04: NP.Concluidos con título",null,117,0,"",0,0,0,0,null,null,""]
["05: NP.Concluidos sin título","324. Jornada Laboral (Nombramiento / Contrato)",118,0,"",0,0,0,0,null,null,""]
["06: NP.No concluidos","40: 40 horas",119,0,"",0,0,0,0,null,null,""]
["07: Secundaria","30: 30 horas",120,0,"",0,0,0,0,null,null,""]
["08: Primaria","25: 25 horas",121,0,"",0,0,0,0,null,null,""]
[null,"24: 24 horas",122,0,"",0,0,0,0,null,null,""]
["313. Especialidad del Título","23: Menos 24 horas",123,0,"",0,0,0,0,null,null,""]
["01: Educación Inicial",null,124,0,"",0,0,0,0,null,null,""]
["02: Educación Primaria","SI / NO",125,0,"",0,0,0,0,null,null,""]
["03: E.I. Intercultural Bilingüe","SI",126,0,"",0,0,0,0,null,null,""]
["04: E.P. Intercultural Bilingüe","NO",127,0,"",0,0,0,0,null,null,""]
["05: Educación Básica Alternativa",null,128,0,"",0,0,0,0,null,null,""]
["06: Educación Especial","331. Especialidad Artistica",129,0,"",0,0,0,{"$f":"IF(L148<>\"\",1,0)","v":0},null,null,""]
["07: Educación Física","01: Danza",130,{"$f":"IF(AND(LEFT(R149,2)=\"01\",LEFT(X149,2)=\"01\",LEFT(Y149,2)=\"01\",E149=1),1,0)","v":0},{"$f":"$B$17","v":""},{"$f":"COUNTIF(AO149:AT149,\"X\")","v":0},{"$f":"IF(R149<>\"\",VALUE(LEFT(R149,2)),0)","v":0},{"$f":"IF(Q149<>\"\",COUNTIF($Q$20:$Q$219,Q149),0)","v":0},0,null,null,{"$f":"IF($C149<=$B$5,C149,\"\")","v":""}]
["08: Educación Artística","02: Música",131,0,"",0,0,0,0,null,null,""]
["09: E.S. Lengua y Literatura","03: Teatro",132,0,"",0,0,0,0,null,null,""]
["10: E.S. Comunicación","04: Artes visuales",133,0,"",0,0,0,0,null,null,""]
["11: E.S. Matemática y Física","05: Otra",134,0,"",0,0,0,0,null,null,""]
["12: E.S. Matemática","336.2 ¿Cuál es el tipo de discapacidad?",135,0,"",0,0,0,0,null,null,""]
["13: E.S. CCSS y Filosofía","01: Auditiva",136,0,"",0,0,0,0,null,null,""]
["14: E.S. Ciencias Sociales","02: Visual",137,0,"",0,0,0,0,null,null,""]
["15: E.S. Ciencias Naturales","03: Física o Motora",138,0,"",0,0,0,0,null,null,""]
["16: E.S. Ciencia Tecnología y Ambiente","04: Otras",139,0,"",0,0,0,0,null,null,""]
["17: E.S. Alimentación y Nutrición",null,140,0,"",0,0,0,0,null,null,""]
["18: E.S. Biología y Química","337.3 Asistencia Técnica",141,0,"",0,0,0,0,null,null,""]
["19: E.S. Historia y Geografía","01: Uso pedagógico de los cuadernos",142,0,"",0,0,0,0,null,null,""]
["20: E.S. CC.HH. Sociales","02: TICs",143,0,"",0,0,0,0,null,null,""]
["21: E.S. Idioma Inglés","03: Inclusión Financiera",144,0,"",0,0,0,0,null,null,""]
["22: Educación Religiosa","04: Prevención de la violencia",145,0,"",0,0,0,0,null,null,""]
["23: E.S. Educación Familiar","05: Otro",146,0,"",0,0,0,0,null,null,""]
["24: E.T. Artes Industriales","06: No recibió asistencia técnica",147,0,"",0,0,0,0,null,null,""]
["25: E.T. Artesanía",null,148,0,"",0,0,0,0,null,null,""]
["26: E.T. Agropecuaria","339.3 ¿Cuál fue el tipo de estudios en EIB?",149,0,"",0,0,0,0,null,null,""]
["27: E.T. Construcción en madera","01: Doctorado",150,0,"",0,0,0,0,null,null,""]
["28: E.T. Computación e Informática","02: Maestría",151,0,"",0,0,0,0,null,null,""]
["29: E.T. Carpintería/Ebanistería","03: Segunda especialidad",152,0,"",0,0,0,0,null,null,""]
["30: E.T. Electricidad","04: Especialización",153,0,"",0,0,0,0,null,null,""]
["31: E.T. Electrónica","05: Actualización",154,0,"",0,0,0,0,null,null,""]
["32: E.T. Ebanistería","06: Otro",155,0,"",0,0,0,0,null,null,""]
["33: E.T. Industria del Vestido",null,156,0,"",0,0,0,0,null,null,""]
["34: E.T. Industria del Vestido Alimentación y Alta Costura","Parroquiales",157,0,"",0,0,0,0,null,null,""]
["35: E.T. en Industria del Vestido y Alta Costura","05: APAFA",158,0,"",0,0,0,0,null,null,""]
["36: E.T.Técnica Esp. Ind. del Vestido Ind.Alimentaria y Artes","06: Otra fuente Privada",159,0,"",0,0,0,0,null,null,""]
["37: E.T. Industria Alimentaria","01: Sector Educación",160,0,"",0,0,0,0,null,null,""]
["38: E.T. Mecánica Automotriz",null,161,0,"",0,0,0,0,null,null,""]
["39: E.T. Mecánica de Producción",null,162,0,"",0,0,0,0,null,null,""]
["40: E.T. Mecánica de Producción y Soldadura",null,163,0,"",0,0,0,0,null,null,""]
["41: E.T. Textilería",null,164,0,"",0,0,0,0,null,null,""]
["42: Otra pedagógica",null,165,0,"",0,0,0,0,null,null,""]
[null,null,166,0,"",0,0,0,0,null,null,""]
[null,null,167,0,"",0,0,0,0,null,null,""]
["Area curriculares","332 ¿En qué turno(s)",168,0,"",0,0,0,0,null,null,""]
["01: Matemática","11: Sólo en la mañana",169,0,"",0,0,0,0,null,null,""]
["02: Comunicación","12: Sólo en la tarde",170,0,"",0,0,0,0,null,null,""]
["03: Ingles","13: Mañana y tarde",171,0,"",0,0,0,0,null,null,""]
["04: Ciencias Sociales","14: Sólo en la noche",172,0,"",0,0,0,0,null,null,""]
["05: Desarrollo personal ciudadania …","15: Mañana, tarde y noche",173,0,"",0,0,0,0,null,null,""]
["06: Educación Física","16: Mañana y noche",174,0,"",0,0,0,0,null,null,""]
["07: Ciencia y Tecnología","17: Tarde y noche",175,0,"",0,0,0,0,null,null,""]
["08: Castellano como segunda lengua","20: Discontinuo",176,0,"",0,0,0,0,null,null,""]
["09: Educación para el trabajo",null,177,0,"",0,0,0,0,null,null,""]
["10: Educación religiosa",null,178,0,"",0,0,0,0,null,null,""]
["11: Tutoría y Orientación Educativa",null,179,0,"",0,0,0,0,null,null,""]
["12: Arte y cultura",null,180,0,"",0,0,0,0,null,null,""]
[null,null,181,0,"",0,0,0,0,null,null,""]
[null,null,182,0,"",0,0,0,0,null,null,""]
[null,null,183,0,"",0,0,0,0,null,null,""]
[null,null,184,0,"",0,0,0,0,null,null,""]
[null,null,185,0,"",0,0,0,0,null,null,""]
[null,null,186,0,"",0,0,0,0,null,null,""]
[null,null,187,0,"",0,0,0,0,null,null,""]
[null,null,188,0,"",0,0,0,0,null,null,""]
[null,null,189,0,"",0,0,0,0,null,null,""]
[null,null,190,0,"",0,0,0,0,null,null,""]
[null,null,191,0,"",0,0,0,0,null,null,""]
[null,null,192,0,"",0,0,0,0,null,null,""]
[null,null,193,0,"",0,0,0,{"$f":"IF(L212<>\"\",1,0)","v":0},null,null,""]
[null,null,194,{"$f":"IF(AND(LEFT(R213,2)=\"01\",LEFT(X213,2)=\"01\",LEFT(Y213,2)=\"01\",E213=1),1,0)","v":0},{"$f":"$B$17","v":""},{"$f":"COUNTIF(AO213:AT213,\"X\")","v":0},{"$f":"IF(R213<>\"\",VALUE(LEFT(R213,2)),0)","v":0},{"$f":"IF(Q213<>\"\",COUNTIF($Q$20:$Q$219,Q213),0)","v":0},0,null,null,{"$f":"IF($C213<=$B$5,C213,\"\")","v":""}]
[null,null,195,0,"",0,0,0,0,null,null,""]
[null,null,196,0,"",0,0,0,0,null,null,""]
[null,null,197,0,"",0,0,0,0,null,null,""]
[null,null,198,0,"",0,0,0,0,null,null,""]
[null,null,199,0,"",0,0,0,0,null,null,""]
[null,null,200,0,"",0,{"$f":"IF(R219<>\"\",VALUE(LEFT(R219,2)),0)","v":0},0,{"$f":"IF(L219<>\"\",1,0)","v":0},null,null,""]
[]
[null,null,null,null,null,null,null,null,null,null,null,"….","….","….","….","….","….","….","….","….","….","….","….","….","….","….","….","….","….","….","….","….","….","….","….","….","….","….","….","….","….","….","….","….","….","….","….","….","….","….","….","….","….","….","….","….","….","….","….","….","….","….","….","…."]
[]
[]
[]
[]
[]
[]
[]
["1",{"$f":"IF(AND(R20=\"01: Docente\",V20=\"SI\"),1,0)","v":0}]
["2",0]
["3",0]
["4",0]
["5",0]
["6",0]
["7",0]
["8",0]
["9",0]
["10",0]
["11",0]
["12",0]
["13",0]
["14",0]
["15",0]
["16",0]
["17",0]
["18",0]
["19",0]
["20",0]
["21",0]
["22",0]
["23",0]
["24",0]
["25",0]
["26",0]
["27",0]
["28",0]
["29",0]
["30",0]
["31",0]
["32",0]
["33",0]
["34",0]
["35",0]
["36",0]
["37",0]
["38",0]
["39",0]
["40",0]
["41",0]
["42",0]
["43",0]
["44",0]
["45",0]
["46",0]
["47",0]
["48",0]
["49",0]
["50",0]
["51",0]
["52",0]
["53",0]
["54",0]
["55",0]
["56",0]
["57",0]
["58",0]
["59",0]
["60",0]
["61",0]
["62",0]
["63",0]
["64",0]
["65",0]
["66",{"$f":"IF(AND(R85=\"01: Docente\",V85=\"SI\"),1,0)","v":0}]
["67",0]
["68",0]
["69",0]
["70",0]
["71",0]
["72",0]
["73",0]
["74",0]
["75",0]
["76",0]
["77",0]
["78",0]
["79",0]
["80",0]
["81",0]
["82",0]
["83",0]
["84",0]
["85",0]
["86",0]
["87",0]
["88",0]
["89",0]
["90",0]
["91",0]
["92",0]
["93",0]
["94",0]
["95",0]
["96",0]
["97",0]
["98",0]
["99",0]
["100",0]
["101",0]
["102",0]
["103",0]
["104",0]
["105",0]
["106",0]
["107",0]
["108",0]
["109",0]
["110",0]
["111",0]
["112",0]
["113",0]
["114",0]
["115",0]
["116",0]
["117",0]
["118",0]
["119",0]
["120",0]
["121",0]
["122",0]
["123",0]
["124",0]
["125",0]
["126",0]
["127",0]
["128",0]
["129",0]
["130",{"$f":"IF(AND(R149=\"01: Docente\",V149=\"SI\"),1,0)","v":0}]
["131",0]
["132",0]
["133",0]
["134",0]
["135",0]
["136",0]
["137",0]
["138",0]
["139",0]
["140",0]
["141",0]
["142",0]
["143",0]
["144",0]
["145",0]
["146",0]
["147",0]
["148",0]
["149",0]
["150",0]
["151",0]
["152",0]
["153",0]
["154",0]
["155",0]
["156",0]
["157",0]
["158",0]
["159",0]
["160",0]
["161",0]
["162",0]
["163",0]
["164",0]
["165",0]
["166",0]
["167",0]
["168",0]
["169",0]
["170",0]
["171",0]
["172",0]
["173",0]
["174",0]
["175",0]
["176",0]
["177",0]
["178",0]
["179",0]
["180",0]
["181",0]
["182",0]
["183",0]
["184",0]
["185",0]
["186",0]
["187",0]
["188",0]
["189",0]
["190",0]
["191",0]
["192",0]
["193",0]
["194",{"$f":"IF(AND(R213=\"01: Docente\",V213=\"SI\"),1,0)","v":0}]
["195",0]
["196",0]
["197",0]
["198",0]
["199",0]
["200",0]

{"sheet":"C335","index":5,"n_rows":121,"n_cols":32,"rows_kept":121,"cut":false,"hidden":false,"merged":[[16,9,16,11],[6,6,6,17],[1,9,1,15],[2,9,2,15],[17,13,18,13],[17,7,18,7],[17,9,17,11],[17,6,18,6],[17,8,18,8]]}
[]
[null,null,null,null,null,null,null,null,null,"CENSO EDUCATIVO 2024"]
[null,null,null,null,null,null,null,null,null,"MATRÍCULA, DOCENTES Y MATERIALES EDUCATIVOS"]
[]
[]
[]
[null,null,null,null,null,null,"DOCENTES QUE DOMINAN LENGUA ORIGINARIA (Solo para II.EE. Públicas)"]
[]
[null,null,null,null,null,null,null,"334. SEGÚN LO ANOTADO EN LA PREGUNTA 307, ¿CUENTA CON UN DOCENTE QUE DOMINE UNA LENGUA ORIGINARIA?"]
["GESTIÓN",null,null,null,null,null,null,"Hacer click en el botón [Verificar] para revisar los docentes que dominan una lengua originaria"]
[{"$f":"IF(OR('C100'!J29=\"X\",'C100'!O29=\"X\"),1,IF('C100'!T29=\"X\",3,\"\"))","v":""}]
[{"$f":"IF(OR('C100'!J30=\"X\",'C100'!O30=\"X\"),1,IF('C100'!T30=\"X\",3,\"\"))","v":""},null,null,null,null,null,null,null,null,""]
[]
[null,null,null,null,null,null,null,null,null,null,null,null,null,"Pase a la sección 400."]
[]
[]
[null,null,null,null,null,null,null,null,null,335.1,null,null,335.2,335.3,335.4,335.5,335.6,335.7]
["330.3 ¿Cuál fue el tipo",null,null,null,null,null,"Nº","Nº de fila registrado en la pregunta 307","Documento de Identidad","Conocimiento de\nlengua originaria",null,null,"¿Cuenta con estudios en Educación Intercultural Bilingüe?","Solo si respondió \"SÍ\"\n en la pregunta 334.2\n¿Cuál fue el tipo de\nestudios en EIB?","¿Ha recibido\ncapacitación en EIB?","¿El docente enseña\nen lengua originaria?","¿El material recibido coincide con la lengua que enseña?","¿En la actualidad el Docente se encuentra en el Registro de Docentes Bilingües?"]
["de estudios en EIB?","Corr","Gest","Fmt",null,null,null,null,null,"Habla","Lee","Escribe"," SI - NO",null," SI - NO"," SI - NO"," SI - NO"," SI - NO"]
["01: Doctorado",1,{"$f":"$A$11","v":""},{"$f":"IF($G20<>\"\",1,0)","v":0},null,null,{"$f":"IF($B20<=$O$12,B20,\"\")","v":""},null,null,null,null,null,null,null,null,null,null,null,"","","","","","","","","","","","","",""]
["02: Maestría",2,"",{"$f":"IF($G21<>\"\",1,0)","v":0},null,null,{"$f":"IF($B21<=$O$12,B21,\"\")","v":""},null,null,null,null,null,null,null,null,null,null,null,"","","","","","","","","","","","","",""]
["03: Segunda especialidad",3,"",0,null,null,{"$f":"IF($B22<=$O$12,B22,\"\")","v":""},null,null,null,null,null,null,null,null,null,null,null,"","","","","","","","","","","","","",""]
["04: Especialización",4,"",0,null,null,"",null,null,null,null,null,null,null,null,null,null,null,"",null,null,null,null,"","","","","","","","",""]
["05: Actualización",5,"",0,null,null,"",null,null,null,null,null,null,null,null,null,null,null,"",null,null,null,null,"","","","","","","","",""]
["06: Otro",6,"",0,null,null,"",null,null,null,null,null,null,null,null,null,null,null,"","","","","","","","","","","","","",""]
[null,7,"",0,null,null,"",null,null,null,null,null,null,null,null,null,null,null,"","","","","","","","","","","","","",""]
[null,8,"",0,null,null,"",null,null,null,null,null,null,null,null,null,null,null,"","","","","","","","","","","","","",""]
["SI",9,"",0,null,null,"",null,null,null,null,null,null,null,null,null,null,null,"","","","","","","","","","","","","",""]
["NO",10,"",0,null,null,"",null,null,null,null,null,null,null,null,null,null,null,"","","","","","","","","","","","","",""]
[null,11,"",0,null,null,"",null,null,null,null,null,null,null,null,null,null,null,"","","","","","","","","","","","","",""]
[null,12,"",0,null,null,"",null,null,null,null,null,null,null,null,null,null,null,"","","","","","","","","","","","","",""]
[null,13,"",0,null,null,"",null,null,null,null,null,null,null,null,null,null,null,"","","","","","","","","","","","","",""]
[null,14,"",0,null,null,"",null,null,null,null,null,null,null,null,null,null,null,"","","","","","","","","","","","","",""]
[null,15,"",0,null,null,"",null,null,null,null,null,null,null,null,null,null,null,"","","","","","","","","","","","","",""]
[null,16,"",0,null,null,"",null,null,null,null,null,null,null,null,null,null,null,"","","","","","","","","","","","","",""]
[null,17,"",0,null,null,"",null,null,null,null,null,null,null,null,null,null,null,"","","","","","","","","","","","","",""]
[null,18,"",0,null,null,"",null,null,null,null,null,null,null,null,null,null,null,"","","","","","","","","","","","","",""]
[null,19,"",0,null,null,"",null,null,null,null,null,null,null,null,null,null,null,"","","","","","","","","","","","","",""]
[null,20,"",0,null,null,"",null,null,null,null,null,null,null,null,null,null,null,"","","","","","","","","","","","","",""]
[null,21,"",0,null,null,"",null,null,null,null,null,null,null,null,null,null,null,"","","","","","","","","","","","","",""]
[null,22,"",0,null,null,"",null,null,null,null,null,null,null,null,null,null,null,"","","","","","","","","","","","","",""]
[null,23,"",0,null,null,"",null,null,null,null,null,null,null,null,null,null,null,"","","","","","","","","","","","","",""]
[null,24,"",0,null,null,"",null,null,null,null,null,null,null,null,null,null,null,"","","","","","","","","","","","","",""]
[null,25,"",0,null,null,"",null,null,null,null,null,null,null,null,null,null,null,"","","","","","","","","","","","","",""]
[null,26,"",0,null,null,"",null,null,null,null,null,null,null,null,null,null,null,"","","","","","","","","","","","","",""]
[null,27,"",0,null,null,"",null,null,null,null,null,null,null,null,null,null,null,"","","","","","","","","","","","","",""]
[null,28,"",0,null,null,"",null,null,null,null,null,null,null,null,null,null,null,"","","","","","","","","","","","","",""]
[null,29,"",0,null,null,"",null,null,null,null,null,null,null,null,null,null,null,"","","","","","","","","","","","","",""]
[null,30,"",0,null,null,"",null,null,null,null,null,null,null,null,null,null,null,"","","","","","","","","","","","","",""]
[null,31,"",0,null,null,"",null,null,null,null,null,null,null,null,null,null,null,"","","","","","","","","","","","","",""]
[null,32,"",0,null,null,"",null,null,null,null,null,null,null,null,null,null,null,"","","","","","","","","","","","","",""]
[null,33,{"$f":"$A$11","v":""},0,null,null,"",null,null,null,null,null,null,null,null,null,null,null,"","","","","","","","","","","","","",""]
[null,34,"",0,null,null,"",null,null,null,null,null,null,null,null,null,null,null,"","","","","","","","","","","","","",""]
[null,35,"",0,null,null,"",null,null,null,null,null,null,null,null,null,null,null,"","","","","","","","","","","","","",""]
[null,36,"",0,null,null,"",null,null,null,null,null,null,null,null,null,null,null,"","","","","","","","","","","","","",""]
[null,37,"",0,null,null,"",null,null,null,null,null,null,null,null,null,null,null,"","","","","","","","","","","","","",""]
[null,38,"",0,null,null,"",null,null,null,null,null,null,null,null,null,null,null,"","","","","","","","","","","","","",""]
[null,39,"",0,null,null,"",null,null,null,null,null,null,null,null,null,null,null,"","","","","","","","","","","","","",""]
[null,40,"",0,null,null,"",null,null,null,null,null,null,null,null,null,null,null,"","","","","","","","","","","","","",""]
[null,41,"",0,null,null,"",null,null,null,null,null,null,null,null,null,null,null,"","","","","","","","","","","","","",""]
[null,42,"",0,null,null,"",null,null,null,null,null,null,null,null,null,null,null,"","","","","","","","","","","","","",""]
[null,43,"",0,null,null,"",null,null,null,null,null,null,null,null,null,null,null,"","","","","","","","","","","","","",""]
[null,44,"",0,null,null,"",null,null,null,null,null,null,null,null,null,null,null,"","","","","","","","","","","","","",""]
[null,45,"",0,null,null,"",null,null,null,null,null,null,null,null,null,null,null,"","","","","","","","","","","","","",""]
[null,46,"",0,null,null,"",null,null,null,null,null,null,null,null,null,null,null,"","","","","","","","","","","","","",""]
[null,47,"",0,null,null,"",null,null,null,null,null,null,null,null,null,null,null,"","","","","","","","","","","","","",""]
[null,48,"",0,null,null,"",null,null,null,null,null,null,null,null,null,null,null,"","","","","","","","","","","","","",""]
[null,49,"",0,null,null,"",null,null,null,null,null,null,null,null,null,null,null,"","","","","","","","","","","","","",""]
[null,50,"",0,null,null,"",null,null,null,null,null,null,null,null,null,null,null,"","","","","","","","","","","","","",""]
[null,51,"",0,null,null,"",null,null,null,null,null,null,null,null,null,null,null,"","","","","","","","","","","","","",""]
[null,52,"",0,null,null,"",null,null,null,null,null,null,null,null,null,null,null,"","","","","","","","","","","","","",""]
[null,53,"",0,null,null,"",null,null,null,null,null,null,null,null,null,null,null,"","","","","","","","","","","","","",""]
[null,54,"",0,null,null,"",null,null,null,null,null,null,null,null,null,null,null,"","","","","","","","","","","","","",""]
[null,55,"",0,null,null,"",null,null,null,null,null,null,null,null,null,null,null,"","","","","","","","","","","","","",""]
[null,56,"",0,null,null,"",null,null,null,null,null,null,null,null,null,null,null,"","","","","","","","","","","","","",""]
[null,57,"",0,null,null,"",null,null,null,null,null,null,null,null,null,null,null,"","","","","","","","","","","","","",""]
[null,58,"",0,null,null,"",null,null,null,null,null,null,null,null,null,null,null,"","","","","","","","","","","","","",""]
[null,59,"",0,null,null,"",null,null,null,null,null,null,null,null,null,null,null,"","","","","","","","","","","","","",""]
[null,60,"",0,null,null,"",null,null,null,null,null,null,null,null,null,null,null,"","","","","","","","","","","","","",""]
[null,61,"",0,null,null,"",null,null,null,null,null,null,null,null,null,null,null,"","","","","","","","","","","","","",""]
[null,62,"",0,null,null,"",null,null,null,null,null,null,null,null,null,null,null,"","","","","","","","","","","","","",""]
[null,63,"",0,null,null,"",null,null,null,null,null,null,null,null,null,null,null,"","","","","","","","","","","","","",""]
[null,64,"",0,null,null,"",null,null,null,null,null,null,null,null,null,null,null,"","","","","","","","","","","","","",""]
[null,65,{"$f":"$A$11","v":""},0,null,null,"",null,null,null,null,null,null,null,null,null,null,null,"","","","","","","","","","","","","",""]
[null,66,"",{"$f":"IF($G85<>\"\",1,0)","v":0},null,null,"",null,null,null,null,null,null,null,null,null,null,null,"","","","","","","","","","","","","",""]
[null,67,"",0,null,null,{"$f":"IF($B86<=$O$12,B86,\"\")","v":""},null,null,null,null,null,null,null,null,null,null,null,"","","","","","","","","","","","","",""]
[null,68,"",0,null,null,"",null,null,null,null,null,null,null,null,null,null,null,"","","","","","","","","","","","","",""]
[null,69,"",0,null,null,"",null,null,null,null,null,null,null,null,null,null,null,"","","","","","","","","","","","","",""]
[null,70,"",0,null,null,"",null,null,null,null,null,null,null,null,null,null,null,"","","","","","","","","","","","","",""]
[null,71,"",0,null,null,"",null,null,null,null,null,null,null,null,null,null,null,"","","","","","","","","","","","","",""]
[null,72,"",0,null,null,"",null,null,null,null,null,null,null,null,null,null,null,"","","","","","","","","","","","","",""]
[null,73,"",0,null,null,"",null,null,null,null,null,null,null,null,null,null,null,"","","","","","","","","","","","","",""]
[null,74,"",0,null,null,"",null,null,null,null,null,null,null,null,null,null,null,"","","","","","","","","","","","","",""]
[null,75,"",0,null,null,"",null,null,null,null,null,null,null,null,null,null,null,"","","","","","","","","","","","","",""]
[null,76,"",0,null,null,"",null,null,null,null,null,null,null,null,null,null,null,"","","","","","","","","","","","","",""]
[null,77,"",0,null,null,"",null,null,null,null,null,null,null,null,null,null,null,"","","","","","","","","","","","","",""]
[null,78,"",0,null,null,"",null,null,null,null,null,null,null,null,null,null,null,"","","","","","","","","","","","","",""]
[null,79,"",0,null,null,"",null,null,null,null,null,null,null,null,null,null,null,"","","","","","","","","","","","","",""]
[null,80,"",0,null,null,"",null,null,null,null,null,null,null,null,null,null,null,"","","","","","","","","","","","","",""]
[null,81,"",0,null,null,"",null,null,null,null,null,null,null,null,null,null,null,"","","","","","","","","","","","","",""]
[null,82,"",0,null,null,"",null,null,null,null,null,null,null,null,null,null,null,"","","","","","","","","","","","","",""]
[null,83,"",0,null,null,"",null,null,null,null,null,null,null,null,null,null,null,"","","","","","","","","","","","","",""]
[null,84,"",0,null,null,"",null,null,null,null,null,null,null,null,null,null,null,"","","","","","","","","","","","","",""]
[null,85,"",0,null,null,"",null,null,null,null,null,null,null,null,null,null,null,"","","","","","","","","","","","","",""]
[null,86,"",0,null,null,""]
[null,87,"",0,null,null,""]
[null,88,"",0,null,null,""]
[null,89,"",0,null,null,""]
[null,90,"",0,null,null,""]
[null,91,"",0,null,null,""]
[null,92,"",0,null,null,""]
[null,93,"",0,null,null,""]
[null,94,"",0,null,null,""]
[null,95,"",0,null,null,""]
[null,96,"",0,null,null,""]
[null,97,"",0,null,null,""]
[null,98,"",0,null,null,""]
[null,99,"",0,null,null,""]
[null,100,"",0,null,null,{"$f":"IF($B119<=$O$12,B119,\"\")","v":""},null,null,null,null,null,null,null,null,null,null,null,"","","","","","","","","","","","","",""]
[null,null,null,null,null,null,null,null,""]
[null,null,null,null,null,null,"….","….","….","….","….","….","….","….","….","….","….","…."]

{"sheet":"C400","index":6,"n_rows":89,"n_cols":17,"rows_kept":89,"cut":false,"hidden":false,"merged":[[1,5,1,10],[2,5,2,10],[56,11,57,11],[54,9,56,9],[54,10,55,12],[56,12,57,12],[56,10,57,10],[22,6,22,8],[40,5,40,7],[54,8,56,8],[54,5,57,5],[28,11,32,11],[28,12,32,12],[28,13,32,13],[54,3,57,4],[68,3,69,4],[70,3,72,4],[58,3,67,4],[28,10,32,10],[28,14,32,14],[28,15,32,15],[31,16,31,17],[33,16,33,17],[34,16,34,17],[40,16,40,17],[35,16,35,17],[36,16,36,17],[37,16,37,17],[38,16,38,17],[39,16,39,17]]}
[]
[null,null,null,null,null,"CENSO EDUCATIVO 2024"]
[null,null,null,null,null,"MATRÍCULA, DOCENTES Y MATERIALES EDUCATIVOS"]
[]
[]
[]
[null,null,"336. ÁREA DE PSICOLOGÍA"]
[null,null,null,"336.1. DURANTE EL PRESENTE AÑO, ¿SE CUENTA CON ALGÚN PROFESIONAL DE PSICOLOGÍA INCORPORADO"]
[null,null,null,null,"AL SERVICIO/NIVEL EDUCATIVO O PROGRAMA EDUCATIVO?"]
[]
[null,null,null,"Sí  ",null,"No  ",null,"Pase a la pregunta 337"]
[]
[]
[null,null,null,"336.2. ¿A TRAVÉS DE QUÉ MECANISMO SE INCORPORÓ AL PROFESIONAL DE PSICOLOGÍA?"]
[]
[null,null,null,"Marque con una “X”, una opcion"]
[]
[null,null,null,null,null,"Contratación a través de UGEL (alguna intervención o estrategia)"]
[null,null,null,null,null,"Contratación a través de UGEL (identificación de necesidad)"]
[null,null,null,null,null,"Prácticas profesionales"]
[null,null,null,null,null,"Servicio Rural y Urbano Marginal de Salud (Serums)"]
[null,null,null,null,null,"Pasantias"]
[null,null,null,null,null,"Otro"]
[]
[]
[null,null,null,"337. DURANTE EL AÑO 2023 ESTE SERVICIO/NIVEL EDUCATIVO, ¿TUVÓ ALGUNA PLAZA DE PERSONAL ADMINISTRATIVO QUE NO HA LOGRADO CUBRIR?"]
[]
[null,null,null,null,null,null,null,null,null,null,"¿Porqué no ha logrado cubrir la plaza? - Marque con \"X\""]
[null,null,null,null,null,null,null,null,null,null,"La Institución Educativa no requiere al personal asignado","No se presentaron postulantes","Postulantes no cuentan con la experiencia requerida","UGEL no brinda mayor información","Requiero otro tipo de personal","Otro"]
[null,null,null,null,null,"Cargo",null,null,"Recibio","¿Cuántos"]
[null,null,null,null,null,null,null,null,null,"recibió?"]
[null,null,null,null,null,null,null,null,null,null,null,null,null,null,null,null,"Especificar"]
[null,null,null,null,null,null,null,{"$f":"COUNTIF(I34:I41,\"SI\")+COUNTIF(I34:I41,\"NO\")","v":0},"SI - NO"]
[null,null,"01","a. Coordinador Administrativo"]
[null,null,"02","b. Secretaria(o)"]
[null,null,"03","c. Oficinista"]
[null,null,"04","d. Trabajador de servicio - funciones de guardianía y/o vigilancia"]
[null,null,"05","e. Trabajador de servicio - funciones de limpieza y mantenimiento"]
[null,null,"06","f. Auxiliar de Biblioteca"]
[null,null,"07","g. Auxiliar de Laboratorio"]
[null,null,"08","h. Otro"]
[]
[]
[null,null,"400. MATERIALES EDUCATIVOS (Solo para gestión pública)"]
[]
["GESTIÓN",null,null,"401. ¿RECIBIÓ MATERIALES CORRESPONDIENTES A LA DOTACIÓN 2024?"]
[{"$f":"IF(OR(UPPER('C100'!J29)=\"X\",UPPER('C100'!O29)=\"X\"),\"X\",\"\")","v":""}]
[{"$f":"IF(UPPER('C100'!T29)=\"X\",\"X\",\"\")","v":""}]
[null,null,null,"Sí    ",null,"No  ",null,"Pase a la sección 500."]
[]
[]
[]
[null,null,null,"402. MATERIALES EDUCATIVOS"]
[]
[null,null,null,"BENEFI- CIARIOS",null,"MATERIAL EDUCATIVO",null,null,"¿Recibio los materiales?","Primera \nFecha de\nRecepción","Cantidad de Material"]
[]
[null,null,null,null,null,null,null,{"$f":"COUNTIF(I59:I73,\"NO\")","v":0},null,null,"Total\nRecibido","Material Sobrante","Material Faltante"]
[null,null,null,null,null,null,null,{"$f":"COUNTIF(I59:I73,\"SI\")+COUNTIF(I59:I73,\"NO\")","v":0}," SI - NO","Día/Mes/Año"]
["01",null,null,"Niños y niñas de 3 años",null,"Juego de vasos lógicos (3 juegos de 8 vasos c/u)"]
["02",null,null,null,null,"Vehículo de madera para jalar (1 unidad)"]
["03",null,null,null,null,"Juego de aros para ensartar (2 Juegos con soportey 6 aros c/u)"]
["04",null,null,null,null,"Juego de cubos sensoriales (1 juego x 12 pzs)"]
["05",null,null,null,null,"Juego de pañuelos de colores (1 juego de 6 pzs)"]
["06",null,null,null,null,"Juego de tres muñecos de tela (1 juego de 3 pzs)"]
["07",null,null,null,null,"Juego de canastas (1 juego x 6 pzs)"]
["08",null,null,null,null,"Juego de piezas para enroscar (1 juego de 8 pzs )"]
["09",null,null,null,null,"Kit de 6 animales de peluche (1 juego de 6 pzs)"]
["10",null,null,null,null,"Kit de bloques de construcción (1 juego de 86 pzs y envase)"]
["11",null,null,"Niños y niñas de 4 y 5 años",null,"Material impreso para niños y niñas de 4 años"]
["12",null,null,null,null,"Material impreso para niños y niñas de 5 años"]
["13",null,null,"Niños y niñas de 4 y 5 años EIB",null,"Material impreso de biblioteca de aula para niños y niñas de 3 años"]
["14",null,null,null,null,"Material impreso de biblioteca de aula para niños y niñas de 4 años"]
["15",null,null,null,null,"Material impreso de biblioteca de aula para niños y niñas de 5 años"]
[]
[]
[null,null,null,"403. EL MATERIAL IMPRESO RECIBIDO, ¿CORRESPONDE A LA LENGUA DE LOS ESTUDIANTES?"]
[]
[null,null,null,"Sí    ",null,"No  "]
[]
[]
[null,null,null,"404. EL MATERIAL IMPRESO RECIBIDO, ¿SE ENCUENTRA EN EL AULA?"]
[]
[null,null,null,"Sí    ",null,"No  "]
[]
[]
[null,null,null,"405. LOS MATERIALES EDUCATIVOS (IMPRESO Y CONCRETO), ¿SE ENCUENTRA AL ALCANCE DE LOS NIÑOS Y NIÑAS?"]
[null,null,null,null,"(Por ejemplo: Se pueden coger sin dificultades)"]
[]
[null,null,null,"Sí    ",null,"No  "]

{"sheet":"C500","index":7,"n_rows":61,"n_cols":20,"rows_kept":61,"cut":false,"hidden":false,"merged":[[23,13,27,21],[24,10,24,11],[27,10,27,11],[25,10,25,11],[52,16,52,21],[26,10,26,11],[60,7,60,10],[47,6,47,10],[16,10,16,11],[17,10,17,11],[23,10,23,11],[14,10,14,11],[22,10,22,11],[15,10,15,11],[18,10,18,11],[19,10,19,11],[20,10,20,11],[21,10,21,11],[1,5,1,18],[2,5,2,18],[6,1,6,22],[11,2,13,6],[11,8,13,8],[11,9,13,9],[11,10,13,11]]}
[]
[null,null,null,null,null,"CENSO EDUCATIVO 2024"]
[null,null,null,null,null,"MATRÍCULA, DOCENTES Y MATERIALES EDUCATIVOS"]
[]
[]
[]
[null,"500. OTROS RECURSOS DISPONIBLES PARA LA ENSEÑANZA (Para II.EE. Públicas y Privadas)"]
[]
[null,"501. EQUIPOS Y SERVICIOS QUE DISPONE EL SERVICIO/NIVEL EDUCATIVO",null,null,null,null,null,null,null,null,null,"SI","502. ¿QUÉ EDADES ATENDIDAS CUENTAN CON UNA BIBLIOTECA DE AULA?"]
[null,null,"  EXCLUSIVO DEL NIVEL",null,null,null,null,null,null,null,null,"NO",null,"   DETALLE EL NÚMERO DE EJEMPLARES (LIBROS QUE LA CONFORMAN)."]
[]
[null,null,"EQUIPOS Y SERVICIOS",null,null,null,null,null,"¿Cuán tos tiene?","¿Cuántos estan opera- tivos?","¿Son utilizados para la enseñanza en interacción con los estudiantes?\nSí - No",null,null,"(Marque con una “X” la edad correspondiente y anote el"]
[null,null,null,null,null,null,null," SI - NO",null,null,null,null,null,"número total de ejemplares según corresponda)."]
[null,null,null,null,null,null,null,{"$f":"COUNTIF(H15:H28,\"SI\")+COUNTIF(H15:H28,\"NO\")","v":0},null,null,null,null,null,"Edad Atendida",null,null,null,null,null,"Nº Total de Ejemplares"]
[null,null,"01","Televisor(es)",null,null,null,null,null,null,null,null,null,null,null," 0 años"]
[null,null,"02","Computadoras (PC de escritorio)",null,null,null,null,null,null,null,null,null,null,null," 1 año"]
[null,null,"03","Laptop convencionales",null,null,null,null,null,null,null,null,null,null,null," 2 años"]
[null,null,"04","Laptop XO",null,null,null,null,null,null,null,null,null,null,null," 3 años"]
[null,null,"05","Servidores (exclusivo del nivel)",null,null,null,null,null,null,null,null,null,null,null," 4 años"]
[null,null,"06","Tablets",null,null,null,null,null,null,null,null,null,null,null," 5 años y más"]
[null,null,"07","Proyector",null,null,null,null,null,null,null,null,null,null,null," NINGÚNA EDAD",null,null,null,{"$f":"SUM(T15:T20)","v":0}]
[null,null,"08","Radiograbadora"]
[null,null,"09","Reproductor de DVD o Blue Ray"]
[null,null,"10","Impresoras",null,null,null,null,null,null,null,null,null,"Las bibliotecas de aula están constituidas por libros, láminas y otros materiales didácticos similares, puestos al alcance de los estudiantes en el aula."]
[null,null,11,"Pizarras digitales"]
[null,null,12,"Modem"]
[null,null,13,"Servicio de Internet"]
[null,null,14,"Balanza de peso corporal"]
[]
[]
[null,"600. EDUCACIÓN FÍSICA Y DEPORTE (Para II.EE. Públicas y Privadas)"]
[]
[null,"A. ACTIVIDAD FÍSICA Y PSICOMOTRICIDAD"]
[null,"601. DURANTE EL AÑO 2023, EN ESTE SERVICIO/NIVEL EDUCATIVO, ¿SE FOMENTÓ",null,null,null,null,null,null,null,null,null,null,"603. ESTE SERVICIO/NIVEL EDUCATIVO, ¿HA INCORPORADO EN SU PLAN ANUAL DE"]
[null,null,"LA REALIZACIÓN DE ACTIVIDADES FÍSICAS O DEPORTE, CON LA FINALIDAD",null,null,null,null,null,null,null,null,null,null,"TRABAJO ACTIVIDADES PARA LA PROMOCIÓN DE VIDA ACTIVA,"]
[null,null,"DE PRIORIZAR EL CUIDADO DEL ESTUDIANTE Y SU BIENESTAR INTEGRAL?",null,null,null,null,null,null,null,null,null,null,"CREATIVA Y SALUDABLE?"]
[]
[null,null," Sí  ",null,"No    ",null,null,null,null,null,null,null,null,"Sí  ",null,"No  ",null,null,null,"Pase a la pregunta 700"]
[]
[]
[]
[null,null,null,"Marque con una “X”, una o más opciones"]
[]
[null,null,null,null,"Actividades de movimiento",null,null,null,null,null,null,null,"604. DURANTE EL PRESENTE AÑO, ESTE SERVICIO/NIVEL EDUCATIVO,"]
[null,null,null,null,"Actividades de deporte",null,null,null,null,null,null,null,null,"¿DESARROLLÓ LAS SIGUIENTES ACTIVIDADES DE PROMOCIÓN DE VIDA"]
[null,null,null,null,"Actividades artístico culturales",null,null,null,null,null,null,null,null,"ACTIVA, CREATIVA Y SALUDABLE?"]
[null,null,null,null,"Actividades complementarias de encuentro con la comunidad educativa",null,null,null,null,null,null,null,null,"Marque con una “X”, una o más opciones"]
[null,null,null,null,"Otras Actividades",null,""]
[null,null,null,null,null,null,null,null,null,null,null,null,null,null,"10 min de actividad física diaria"]
[null,"602. ¿ESTE SERVICIO/NIVEL EDUCATIVO CUENTA CON UNA GUÍA Y MATERIALES",null,null,null,null,null,null,null,null,null,null,null,null,"Pausa activa"]
[null,null,"PARA LAS ACTIVIDADES DE PSICOMOTROCIDAD?",null,null,null,null,null,null,null,null,null,null,null,"Juego aprendo y me siento saludable"]
[null,null,null,null,null,null,null,null,null,null,null,null,null,null,"Actividad familiar (carrera familiar, maratón, caminata, pasacalle, etc.)"]
[null,null," Sí  ",null,"No    ",null,null,null,null,null,null,null,null,null,"Otro"]
[null,null,null,null,null,null,null,null,"Nro. de horas"]
[null,null,null,null,"¿Cuántas horas a la semana?"]
[]
[null,null,null,null,"¿Las actividades de psicomotrocidad donde se realizan?"]
[]
[null,null,null,null,null,null,"Patio"]
[null,null,null,null,null,null,"Aula de psicomotrocidad"]
[null,null,null,null,null,null,"Otro"]

{"sheet":"C700","index":8,"n_rows":213,"n_cols":28,"rows_kept":213,"cut":false,"hidden":false,"merged":[[202,20,203,24],[204,8,204,11],[209,22,209,24],[191,25,191,26],[192,25,192,26],[193,25,193,26],[194,25,194,26],[195,25,195,26],[132,26,133,27],[134,24,135,24],[134,25,135,25],[134,26,135,26],[134,27,135,27],[19,14,22,14],[117,21,117,25],[132,18,134,21],[132,23,134,23],[132,24,133,25],[20,4,21,5],[23,4,26,5],[191,20,192,21],[123,7,123,10],[136,8,136,11],[166,21,166,25],[175,21,175,25],[27,4,29,5],[30,4,31,5],[32,4,38,5],[39,4,40,5],[53,21,53,25],[65,7,65,10],[71,21,71,24],[19,12,22,12],[19,13,22,13]]}
[]
[null,null,null,null,null,null,null,null,"CENSO EDUCATIVO 2024"]
["Si",null,null,null,null,null,null,null,"MATRÍCULA, DOCENTES Y MATERIALES EDUCATIVOS"]
["No"]
[]
[]
[null,null,"700. FORTALECIMIENTO DE LA GESTIÓN"]
[]
[null,null,null,"701. ESTE NIVEL/SERVICIO EDUCATIVO ¿COORDINA ALGUNA ACCIÓN CON EL GOBIERNO LOCAL",null,null,null,null,null,null,null,null,null,null,null,null,null,null,"704. DURANTE EL AÑO 2023 Y HASTA LA FECHA DE APLICACIÓN DEL CENSO EDUCATIVO 2024, ¿HA REALIZADO"]
[null,null,null,null,"(DISTRITAL O PROVINCIAL)  PARA MEJORAR LA PRESTACIÓN DEL SERVICIO EDUCATIVO?",null,null,null,null,null,null,null,null,null,null,null,null,null,null,"ACCIONES EN FAVOR DEL BIENESTAR SOCIOEMOCIONAL DE LOS ESTUDIANTES Y/O DE LOS DOCENTES Y/O FAMILIAS?"]
[]
[null,null,null,null,null,null,null,null,null,null,null,null,null,null,null,null,null,null,"Sí    ",null,"No    "]
[null,null,"1: Siempre",null,"Sí",null,null,null,"No",null,null,"Pase a la pregunta 703."]
[null,null,"2: A Veces",null,null,null,null,null,null,null,null,null,null,null,null,null,null,null,null,"¿Qué acciones realizo?"]
[null,null,"3: Nunca",null,null,null,null,null,null,null,null,null,null,null,null,null,null,null,null,"Marque con una “X”, una o más opciones"]
[null,null,null,"702. FRECUENCIA DE LA ACCION QUE AYUDA EL GOBIERNO LOCAL PARA MEJORAR",null,null,null,null,null,null,null,null,null,null,null,null,null,null,null,null,"Elaborar un diagnóstico del estado del bienestar socioemocional de estudiantes"]
[null,null,null,null,"LA PRESTACIÓN DEL SERVICIO",null,null,null,null,null,null,null,null,null,null,null,null,null,null,null,"Elaborar un diagnóstico del estado del bienestar socioemocional de docentes"]
[null,null,null,null,"Solo si marco “SI” en la pregunta 701 detallar la acción",null,null,null,null,null,null,null,null,null,null,null,null,null,null,null,"Ejecutar acciones en la IIEE para trabajar específicamente gestión de emociones"]
[null,null,null,null,null,null,null,null,null,null,null,null,null,null,null,null,null,null,null,null,"Generar espacios de diálogo en la comunidad educativa con docentes y/o familias."]
[null,null,null,{"$f":"SUM(D24:D41)","v":0},null,null,null,null,null,null,null,null,"Distrital","Provincial","Empresa privada u ONG",null,null,null,null,null,"Promover espacios específicamente para abordar gestión de emociones con familias"]
[null,null,null,null,"COMPO- NENTE",null,null,null,null,null,null,null,null,null,null,null,null,null,null,null,"Ejecutar acciones en el marco de la Tutoría y Orientación Educativa (TOE)"]
[null,null,null,null,null,null,null,null,"ACCIÓN",null,null,null,null,null,null,"FRECUENCIA"]
[null,null,null,null,null,null,null,null,null,null,null,null,null,null,null,null,null,null,"705. SEÑOR(A) DIRECTOR(A), DESDE QUE EMPEZASTE TU CARRERA COMO DOCENTE, ¿CUÁNTOS AÑOS DE"]
["01",null,null,{"$f":"IF(P24<>\"\",1,0)","v":0},"Infraes- tructura",null,"Proyecto de inversión pública para el mejoramiento o ampliación …",null,null,null,null,null,null,null,null,null,null,null,null,"EXPERIENCIA TIENES COMO?",null,null,"Marque con una “X”, una opcion"]
["02",null,null,0,null,null,"Apoyo y asistencia técnica para el uso de recursos de mantenimiento"]
["03",null,null,0,null,null,"Gestiones para el acceso a servicios básicos de IIEE ",null,null,null,null,null,null,null,null,null,null,null,null,null,"Directivo encargado, registre cantidad de años:"]
["04",null,null,0,null,null,"Adquisición de mobiliario y equipamiento para la IIEE",null,null,null,null,null,null,null,null,null,null,null,null,null,"Directivo designado, registre cantidad de años :"]
["05",null,null,0,"Aprendi-\nzajes",null,"Proyecto de inversión pública para la mejora de los aprendizajes"]
["06",null,null,0,null,null,"Actividades que ayuden a implementar el refuerzo escolar",null,null,null,null,null,null,null,null,null,null,null,"706. DESDE EL AÑO 2019 A LA FECHA DE APLICACIÓN DEL CENSO EDUCATIVO 2024, ¿CONOCE LAS NORMAS QUE"]
["07",null,null,0,null,null,"Apoyo con material educativo",null,null,null,null,null,null,null,null,null,null,null,null,"REGULAN SUS FUNCIONES COMO DIRECTOR?"]
["08",null,null,0,"Docentes",null,"Contratación de docentes"]
["09",null,null,0,null,null,"Talleres o cursos de capacitación",null,null,null,null,null,null,null,null,null,null,null,"Sí    ",null,"No    "]
["10",null,null,0,"Gestión",null,"Articulación local con actores públicos y privados a nivel local"]
["11",null,null,0,null,null,"Atención de casos en DEMUNA",null,null,null,null,null,null,null,null,null,null,null,"707. SEÑOR(A) DIRECTOR(A), DURANTE EL AÑO 2023 Y A LA FECHA DE APLICACIÓN DEL CENSO EDUCATIVO 2024,"]
["12",null,null,0,null,null,"Articulación con UGEL y DRE de su ámbito",null,null,null,null,null,null,null,null,null,null,null,null,"¿HA PARTICIPADO DE ALGUNA ACCIÓN FORMATIVA?"]
["13",null,null,0,null,null,"Gestiones para la instalación de servicios básicos de conectividad"]
["14",null,null,0,null,null,"Apoyo con alimentación para estudiantes",null,null,null,null,null,null,null,null,null,null,null,"Sí    ",null,"No    ",null,null,null,"Pase a la pregunta 709"]
["15",null,null,0,null,null,"Vivienda y alimentación para docentes (zonas rurales, fronteras, etc)"]
["16",null,null,0,null,null,"Apoyo con movilidad local para estudiantes y docentes",null,null,null,null,null,null,null,null,null,null,null,null,"Marque con una “X”, una o más opciones"]
["17",null,null,0,"Recupe-\nración",null,"Promoción de acciones comunitarias para identificación de …",null,null,null,null,null,null,null,null,null,null,null,null,null,"Cursos en didáctica o pedagogía"]
["18",null,null,0,null,null,"Impulso del registro nominal de estudiantes en Alerta Escuela por …",null,null,null,null,null,null,null,null,null,null,null,null,null,"Congresos o seminarios vinculados a su cargo y funciones"]
[null,null,null,null,null,null,null,null,null,null,null,null,null,{"$f":"COUNTIF(M24:P41,\"X\")","v":0},null,{"$f":"COUNTIF(P24:P41,\"3: Nunca\")","v":0}]
[null,null,null,null,null,null,null,null,null,null,null,null,null,null,null,null,null,null,"708. ¿QUÉ HABILIDADES REQUIERE FORTALECER DE SU FORMACIÓN EN LIDERAZGO PEDAGÓGICO PARA MEJORAR LA"]
[null,null,null,"703. ¿CUÁLES SON LOS PRINCIPALES TEMAS QUE REQUIERE COMO CAPACITACIÓN PARA MEJORAR SU DESEMPEÑO",null,null,null,null,null,null,null,null,null,null,null,null,null,null,null,"GESTIÓN ESCOLAR EN SU SERVICIO/NIVEL EDUCATIVO?"]
[null,null,null,null,"COMO DIRECTOR(A)?",null,null,null,null,null,null,null,null,null,null,null,null,null,null,"Marque con una “X”, hasta 3 opciones"]
[null,null,null,null,"Marque con una “X”, una o más opciones",null,null,null,null,null,null,null,null,null,null,null,null,null,null,null,"1) En organización e interpretación de la planificación en la IIEE:"]
[null,null,null,null,null,null,null,null,null,null,null,null,null,null,null,null,null,null,null,null,"2) Para resolución de problemas en la IIEE:"]
[null,null,null,null,null,"Desarrollo de las competencias de las áreas curriculares",null,null,null,null,null,null,null,null,null,null,null,null,null,null,"3) Para apoyar a los docentes:"]
[null,null,null,null,null,"Planificación y evaluación",null,null,null,null,null,null,null,null,null,null,null,null,null,null,"4) Para el fortalecimiento docente:"]
[null,null,null,null,null,"Manejo de herramientas TIC y ofimáticas",null,null,null,null,null,null,null,null,null,null,null,null,null,null,"5) Para establecer el orden:",null,null,null,null,null," "]
[null,null,null,null,null,"Soporte emocional",null,null,null,null,null,null,null,null,null,null,null,null,null,null,"6) Para influenciar:"]
[null,null,null,null,null,"Participación de padres y madres de familias",null,null,null,null,null,null,null,null,null,null,null,null,null,null,"7) Para prevenir el conflicto:"]
[null,null,null,null,null,"Relacionamiento institucional y gestión de alianzas",null,null,null,null,null,null,null,null,null,null,null,null,null,null,"8) Para monitorear la contribución de la IE con la política educativa:"]
[null,null,null,null,null,"Acompañamiento pedagógico",null,null,null,null,null,null,null,null,null,null,null,null,null,null,"9) Otros"]
[]
[]
[null,null,null,"709. ¿QUÉ INFORMACIÓN LE GUSTARÍA ENCONTRAR EN EL PORTAL WEB PARA DIRECTIVO DE IIEE DEL MINEDU",null,null,null,null,null,null,null,null,null,null,null,null,null,null,"714. ¿ACTUALMENTE CUENTA CON ALGUNA ESTRATEGIA O ACCIONES EN EL QUE PUEDA DIALOGAR CON DIRECTORES"]
[null,null,null,null,"(https://directivos.minedu.gob.pe/)?",null,null,null,null,null,null,null,null,null,null,null,null,null,null,"DE OTRAS IIEE PARA COMPARTIR EXPERIENCIAS Y DESARROLLAR ESTRATEGIAS PARA RESOLVER PROBLEMAS"]
[null,null,null,null,"Marque con una “X”, una opción",null,null,null,null,null,null,null,null,null,null,null,null,null,null,"DE LA GESTIÓN DE SU SERVICIO/NIVEL EDUCATIVO?"]
[]
[null,null,null,null,null,"Lecturas, infografías y materiales diversos sobre las funciones como directivo",null,null,null,null,null,null,null,null,null,null,null,null,"Sí    ",null,"No    "]
[null,null,null,null,null,"Videos tutoriales sobre las labores como directivos"]
[null,null,null,null,null,"Material diverso sobre habilidades blandas necesarias para el cargo"]
[null,null,null,null,null,"Buenas prácticas para la gestión directiva",null,null,null,null,null,null,null,null,null,null,null,null,null,"¿Dónde lo desarrolla?"]
[null,null,null,null,null,"Información sobre las normativas sobre la gestión escolar",null,null,null,null,null,null,null,null,null,null,null,null,null,"Marque con una “X”, una opción"]
[null,null,null,null,null,"Otros",null,null,null,null,null,null,null,null,null,null,null,null,null,null,"La misma IIEE"]
[null,null,null,null,null,null,null,null,null,null,null,null,null,null,null,null,null,null,null,null,"Otra IIEE"]
[null,null,null,null,null,null,null,null,null,null,null,null,null,null,null,null,null,null,null,null,"IIEE de red educativa"]
[null,null,null,"710. ¿CON QUÉ FRECUENCIA VISITA EL PORTAL WEB PARA DIRECTIVO DE IIEE DEL MINEDU ",null,null,null,null,null,null,null,null,null,null,null,null,null,null,null,null,"UGEL"]
[null,null,null,null,"(https://directivos.minedu.gob.pe/)?",null,null,null,null,null,null,null,null,null,null,null,null,null,null,null,"DRE/GRE"]
[null,null,null,null,"Marque con una “X”, una opción",null,null,null,null,null,null,null,null,null,null,null,null,null,null,null,"Espacios virtuales (webinar, talleres, etc)"]
[null,null,null,null,null,null,null,null,null,null,null,null,null,null,null,null,null,null,null,null,"Otro"]
[null,null,null,null,null,"Frecuentemente"]
[null,null,null,null,null,"Poca frecuencia",null,null,null,null,null,null,null,null,null,null,null,null,"715. ¿QUÉ TAN INTERESADO SE ENCONTRARÍA DE PARTICIPAR EN ESPACIOS EN LOS QUE SE REALICE TRABAJO"]
[null,null,null,null,null,"Casi nunca",null,null,null,null,null,null,null,null,null,null,null,null,null,"COLABORATIVO CON DIRECTORES DE OTROS SERVICIOS/NIVELES EDUCATIVOS PARA DIALOGAR SOBRE LOS"]
[null,null,null,null,null,"No visito el portal web",null,null,null,null,"Pase a la pregunta 713",null,null,null,null,null,null,null,null,"PROBLEMAS DE LA GESTIÓN ESCOLAR?",null,null,null,"Marque con una “X”, una opción"]
[]
[null,null,null,null,null,null,null,null,null,null,null,null,null,null,null,null,null,null,null,null,"Interesado",null,"Poco interesado",null,null,"Nada interesado"]
[null,null,null,"711. ¿CONSIDERAS QUE LA INFORMACIÓN QUE ENCUENTRAS EN EL PORTAL WEB DE DIRECTIVOS ES ÚTIL?"]
[null,null,null,null,"Marque con una “X”, una opción",null,null,null,null,null,null,null,null,null,null,null,null,null,"716. ¿EN CUÁLES DE LAS SIGUIENTES ALTERNATIVAS DE CAPACITACIÓN LE GUSTARÍA PARTICIPAR PARA EL"]
[null,null,null,null,null,null,null,null,null,null,null,null,null,null,null,null,null,null,null,"PRESENTE AÑO 2024?",null,"Marque con una “X”, hasta cuatro opciones"]
[null,null,null,null,null,"Muy útil"]
[null,null,null,null,null,"Útil",null,null,null,null,null,null,null,null,null,null,null,null,{"$f":"COUNTIF(T83:T89,\"X\")","v":0},null,"Habilidades blandas para el liderazgo"]
[null,null,null,null,null,"Poco útil",null,null,null,null,null,null,null,null,null,null,null,null,null,null,"Confianza colectiva para el bienestar escolar"]
[null,null,null,null,null,"Nada útil",null,null,null,null,null,null,null,null,null,null,null,null,null,null,"Gestión administrativa"]
[null,null,null,null,null,null,null,null,null,null,null,null,null,null,null,null,null,null,null,null,"Liderazgo situacional"]
[null,null,null,null,null,null,null,null,null,null,null,null,null,null,null,null,null,null,null,null,"Expresión creativa para el liderazgo directivo"]
[null,null,null,"712. ¿QUÉ CONTENIDOS NORMATIVOS ESPERARÍA ENCONTRAR EN EL PORTAL WEB PARA DIRECTIVO DE IIEE DEL MINEDU?",null,null,null,null,null,null,null,null,null,null,null,null,null,null,null,null,"Prevención de la discriminación xenofóbica"]
[null,null,null,null,"Marque con una “X”, hasta dos opciones)",null,null,null,null,null,null,null,null,null,null,null,null,null,null,null,"Fortalecimiento a la prác􀆟ca pedagógica docente"]
[]
[null,null,null,{"$f":"COUNTIF(E91:E94,\"X\")","v":0},null,"Sobre sus funciones",null,null,null,null,null,null,null,null,null,null,null,null,"717. SEÑOR(A) DIRECTOR(A), SELECCIONE UNA O HASTA TRES ACCIONES QUE USTED HA IMPLEMENTADO EN SU"]
[null,null,null,null,null,"Sobre los documentos de gestión de debe elaborar",null,null,null,null,null,null,null,null,null,null,null,null,null,"SERVICIO/NIVEL EDUCATIVO DURANTE EL AÑO 2023."]
[null,null,null,null,null,"Sobre su rol de líder pedagógico",null,null,null,null,null,null,null,null,null,null,null,null,null,"Marque con una “X”, hasta 3 opciones"]
[null,null,null,null,null,"Sobre las faltas en las podría incurrir de incumplir sus funciones",null,null,null,null,null,null,null,null,null,null,null,null,{"$f":"COUNTIF(T94:T99,\"X\")","v":0},null,"Conducir la planificación institucional (a partir del conocimiento de los procesos pedagógicos)"]
[null,null,null,null,null,null,null,null,null,null,null,null,null,null,null,null,null,null,null,null,"Promover y sostener la participación democrática de los diversos actores  de la institución educativa"]
[null,null,null,null,null,null,null,null,null,null,null,null,null,null,null,null,null,null,null,null,"Favorecer las condiciones operativas que aseguren aprendizajes de calidad en todas y todos los estudiantes"]
[null,null,null,"713. COMO DIRECTOR/A DE ESTE SERVICIO/NIVEL EDUCATIVO, ¿CUÁNTO TIEMPO DE SU DÍA TOMA REALIZAR",null,null,null,null,null,null,null,null,null,null,null,null,null,null,null,null,"Liderar procesos de evaluación de la gestión de la institución educativa y de rendición de cuentas"]
[null,null,null,null,"ACTIVIDADES ADMINISTRATIVAS? (CONSIDERE HORAS CRONOLÓGICAS)",null,null,null,null,null,null,null,null,null,null,null,null,null,null,null,"Promover y liderar una comunidad de aprendizaje con las y los docentes  de su institución educativa"]
[null,null,null,null,"Marque con una “X”, una opción",null,null,null,null,null,null,null,null,null,null,null,null,null,null,null,"Gestiona la calidad de los procesos pedagógicos al interior de su IE.  a través del acompañamiento sistemático"]
[]
[null,null,null,null,null,"Menos de una hora"]
[null,null,null,null,null,"Entre 1 y 3 horas"]
[null,null,null,null,null,"Entre 4 y 6 horas"]
[null,null,null,null,null,"Más de 6 horas"]
[]
[null,null,null,null,null,null,null,null,null,null,null,null,null,null,null,null,null,null,{"$f":"CONCATENATE(T106,T107)","v":""}]
[]
[]
[]
[null,null,null,"718. ¿QUÉ TIPO DE RECURSOS SON LOS QUE MÁS REVISA Y USA PARA IMPLEMENTAR MEJORAS EN SU LABOR COMO",null,null,null,null,null,null,null,null,null,null,null,null,null,null,"721. SEÑOR(A) DIRECTOR(A), DURANTE EL AÑO 2023, ¿EL PERSONAL AUXILIAR DE EDUCACIÓN DESEMPEÑÓ O"]
[null,null,null,null,"DIRECTOR(A)/DOCENTE?",null,null,null,null,null,null,null,null,null,null,null,null,null,null,"DESEMPEÑA OTRAS LABORES ADICIONALES A SU ROL COMO AUXILIAR DE EDUCACIÓN?"]
[null,null,null,null,"Marque con una “X”, como máximo hasta tres opciones",null,null,null,null,null,null,null,null,null,null,null,null,null,null,"Marque con una “X”, una o más opciones"]
[]
[null,null,null,null,null,"Reportes de investigación (por ejemplo, libros o articulos cientificos)",null,null,null,null,null,null,null,null,null,null,null,null,null,null,"No realizó/realiza otras labores adicionales en la IE"]
[null,null,null,null,null,"Videos informativos (recursos audiovisuales que presentan datos y muestra un hecho de interés)",null,null,null,null,null,null,null,null,null,null,null,null,null,null,"Trabaja como docente"]
[null,null,null,null,null,"Videos pedagógicos - recursos audiovisuales que proporcionan análisis",null,null,null,null,null,null,null,null,null,null,null,null,null,null,"Trabaja como personal administrativo en la IE"]
[null,null,null,null,null,"Informes pedagógicos (recursos escritos con análisis y sugerencias pedagógicos)",null,null,null,null,null,null,null,null,null,null,null,null,null,null,"Trabaja en otra IE"]
[null,null,null,null,null,"Infografías",null,null,null,null,null,null,null,null,null,null,null,null,null,null,"Otro"]
[null,null,null,null,null,"Brochures o folletos",null,null,null,null,null,null,null,null,null,null,null,null,null,null,"No cuento con personal auxiliar de educación"]
[null,null,null,null,null,"Conferencias o charlas (presentaciones de especialistas grabadas o por transmisión en vivo)"]
[null,null,null,null,null,"Talleres o capacitaciones virtuales"]
[null,null,null,null,null,"Audios, podcast o entrevistas",null,null,null,null,null,null,null,null,null,null,null,null,"722 SEÑOR(A) DIRECTOR(A), ESTE SERVICIO/NIVEL EDUCATIVO, ¿CUENTA CON PERSONAL ADMINISTRATIVO?"]
[null,null,null,null,null,"Publicaciones de redes sociales"]
[null,null,null,null,null,"Otro",null,null,null,null,null,null,null,null,null,null,null,null,"Sí    ",null,"No    ",null,null,null,"Pase a la pregunta 728"]
[]
[]
[null,null,null,"719. SEÑOR(A) DIRECTOR(A), DURANTE EL AÑO 2023 Y HASTA LA FECHA DE APLICACIÓN DEL CENSO EDUCATIVO 2024,"]
[null,null,null,null,"¿A TRAVÉS DE QUÉ MEDIO RECIBIÓ LA CAPACITACIÓN EL PERSONAL AUXILIAR DE EDUCACIÓN?",null,null,null,null,null,null,null,null,null,null,null,null,null,"723 SOBRE EL PERSONAL ADMINISTRATIVO QUE LABORA EN ESTE SERVICIO/NIVEL EDUCATIVO,"]
[null,null,null,null,"Marque con una “X”, una o más opciones",null,null,null,null,null,null,null,null,null,null,null,null,null,null,"COMPLETA PARA CADA CARGO/PUESTO LOS SIGUIENTES DATOS."]
[null,null,null,null,null,null,null,null,null,null,null,null,null,null,null,null,null,null,null,"Seleccione “Sí” o “No” para cada pregunta y consigna las cantidades donde corresponda"]
[null,null,null,null,null,"Perueduca, cursos específicos para auxiliares"]
[null,null,null,null,null,"Perueduca, cursos para la comunidad educativa"]
[null,null,null,null,null,"Mi Institución Educativa",null,null,null,null,null,null,null,null,null,null,null,null,"Puestos Administrativos",null,null,null,null,"¿Cuenta con este tipo de personal?","¿Ha sido capacitado\ndurante el 2023?",null,"La cantidad de personal que tiene ¿es suﬁciente?"]
[null,null,null,null,null,"Mi UGEL"]
[null,null,null,null,null,"MINEDU",null,null,null,null,null,null,null,null,null,null,null,null,null,null,null,null,null,null,"Si  / No","¿Cuántas veces?","Si  / No","¿Qué cantidad seria suficiente?"]
[null,null,null,null,null,"DRE",null,null,null,null,null,null,null,null,null,null,null,null,null,null,null,null,{"$f":"COUNTIF(X137:X143,\"NO\")","v":0},"Si  / No"]
[null,null,null,null,null,"Otras instituciones",null,null,null,null,null,null,null,null,null,null,null,"01","a. Coordinador / Administrativo"]
[null,null,null,null,null,"No cuento con personal auxiliar de educación",null,null,null,null,null,null,null,null,null,null,null,"02","b. Secretaria(o)"]
[null,null,null,null,null,"El personal auxiliar de educación no recibió capacitación",null,null,null,null,null,null,null,null,null,null,null,"03","c. Oficinista"]
[null,null,null,null,null,null,null,null,null,null,null,null,null,null,null,null,null,"04","d. Trabajador de servicio - guardianía y/o vigilancia"]
[null,null,null,null,null,null,null,null,null,null,null,null,null,null,null,null,null,"05","e. Trabajador de servicio - limpieza y mantenimiento"]
[null,null,null,"720. SEÑOR(A) DIRECTOR(A), ¿CUÁL CONSIDERA USTED COMO PRINCIPAL TEMA QUE REQUIERE COMO CAPACITACIÓN",null,null,null,null,null,null,null,null,null,null,null,null,null,"06","f. Auxiliar de biblioteca"]
[null,null,null,null,"EL PERSONAL AUXILIAR DE EDUCACIÓN, PARA MEJORAR SU DESEMPEÑO?",null,null,null,null,null,null,null,null,null,null,null,null,"07","g. Auxiliar de laboratorio"]
[null,null,null,null,"Marque con una “X”, una opción",null,null,null,null,null,null,null,null,null,null,null,null,null,null,null,null,null,null,{"$f":"COUNTIF(X137:X143,\"SI\") + COUNTIF(X137:X143,\"NO\")","v":0}]
[]
[null,null,null,null,null,"Habilidades blandas (intelig. emocional, comunic. asertiva, manejo de conflictos, etc)"]
[null,null,null,null,null,"Habilidades duras (TICs, primeros aux., uso y peligros de internet, etc.)"]
[null,null,null,null,null,"Relación con los estudiantes (el juego, soporte socioem., prevención de la violencia escolar (bullying)"]
[null,null,null,null,null,"No cuento con personal auxiliar de educación"]
[]
[]
[]
[]
[]
[]
[]
[]
[]
[]
[null,null,null,"724. ¿CUÁL DE LAS SIGUIENTES COMPETENCIAS CONSIDERA USTED COMO LA MÁS RELEVANTE EN EL",null,null,null,null,null,null,null,null,null,null,null,null,null,null,"729. ¿A TRAVÉS DE QUÉ INSTRUMENTOS DE GESTIÓN SE HA INCORPORADO?"]
[null,null,null,null,"EQUIPO DE PERSONAL ADMINISTRATIVO DE ESTE SERVICIO /NIVEL EDUCATIVO",null,null,null,null,null,null,null,null,null,null,null,null,null,null,"Marque con una “X”, una opción"]
[null,null,null,null,"Marque con una “X”, una opción"]
[null,null,null,null,null,null,null,null,null,null,null,null,null,null,null,null,null,null,null,null,"Proyecto Educativo Institucional (PEI)"]
[null,null,null,null,null,"Trabajo en equipo",null,null,null,null,null,null,null,null,null,null,null,null,null,null,"Plan Anual de Trabajo (PAT)"]
[null,null,null,null,null,"Atención a usuarios",null,null,null,null,null,null,null,null,null,null,null,null,null,null,"Proyecto Curricular de la IE (PCI)"]
[null,null,null,null,null,"Comunicación asertiva",null,null,null,null,null,null,null,null,null,null,null,null,null,null,"Reglamento Interno (RI)"]
[null,null,null,null,null,"Orientación a resultados",null,null,null,null,null,null,null,null,null,null,null,null,null,null,"Otros"]
[null,null,null,null,null,"Orden y planificación estratégica"]
[null,null,null,null,null,"Orientación al servicio"]
[null,null,null,null,null,"Proactividad",null,null,null,null,null,null,null,null,null,null,null,null,"730. ¿QUÉ CONSIDERA QUE REFORZARÍA LA EJECUCIÓN DE SU PROCESO DE RACIONALIZACIÓN?"]
[null,null,null,null,null,null,null,null,null,null,null,null,null,null,null,null,null,null,null,"Marque con una “X”, una opción"]
[null,null,null,"725. ¿CUÁLES SON LAS DOS PRINCIPALES TEMÁTICAS QUE CONSIDERA USTED QUE EL PERSONAL"]
[null,null,null,null,"ADMINISTRATIVO DE ESTE SERVICIO/NIVEL EDUCATIVO PODRÍA SER CAPACITADO?",null,null,null,null,null,null,null,null,null,null,null,null,null,null,null,"Asistencias Técnicas macroregionales"]
[null,null,null,null,"Marque con una “X”, solamente dos opciones",null,null,null,null,null,null,null,null,null,null,null,null,null,null,null,"Materiales Orientativos"]
[null,null,null,null,null,null,null,null,null,null,null,null,null,null,null,null,null,null,null,null,"Lineamientos complementarias"]
[null,null,null,null,null,"Seguridad de control de accesos y de control interno de la IIEE.",null,null,null,null,null,null,null,null,null,null,null,null,null,null,"Otros"]
[null,null,null,null,null,"Gestión de limpieza y/o mantenimiento de la IIEE (materiales, ambientes y equipos) del personal administrativo"]
[null,null,null,null,null,"Manejo de habilidades interpersonales (atención de usuarios)."]
[null,null,null,null,null,"Técnicas de archivo y despacho de documentos.",null,null,null,null,null,null,null,null,null,null,null,null,"731. ¿CONOCE LOS PERFILES DE CARGOS DE DIRECTOR(A) Y SUBDIRECTOR(A) DE IIEE PUBLICADOS"]
[null,null,null,null,null,"Manejo de los sistemas informáticos del Minedu.",null,null,null,null,null,null,null,null,null,null,null,null,null,"EN EL AÑO 2021 EN EL CLASIFICADOR DE CARGOS (RVM N° 2 23-2021-MINEDU)?"]
[null,null,null,null,null,"Administración y control de recursos propios (financieros)."]
[null,null,null,null,null,"Manejo de herramientas TIC y ofimática.",null,null,null,null,null,null,null,null,null,null,null,null,"Sí    ",null,"No    "]
[null,null,null,null,null,"La gestión de riesgo de desastres priorizando la prevención y reducción, así como la preparación y respuesta."]
[null,null,null,null,null,null,null,null,null,null,null,null,null,null,null,null,null,null,null,null,null,"¿Considera que los perfiles de cargo de director y subdirector de IE brindan"]
[null,null,null,"726. CON RESPECTO A LAS LABORES DEL PERSONAL ADMINISTRATIVO DURANTE EL AÑO 2023,",null,null,null,null,null,null,null,null,null,null,null,null,null,null,null,null,null,"claridad para el desarrollo de las funciones del equipo directivo?"]
[null,null,null,null,"¿EN QUÉ ÁMBITO(S) IDENTIFICÓ MAYOR CARGA DE ACTIVIDADES OPERATIVAS ADMINISTRATIVAS?"]
[null,null,null,null,"Marque con una “X”, hasta dos opciones",null,null,null,null,null,null,null,null,null,null,null,null,null,null,null,"Sí    ",null,"No    "]
[]
[null,null,null,null,null,"Gestión de recursos financieros, bienes, servicios e infraestructura"]
[null,null,null,null,null,"Gestión de información de la IIEE (registro en sistemas administrativos y trámite documentario)",null,null,null,null,null,null,null,null,null,null,null,null,"732. ¿QUÉ COMITÉS DE GESTIÓN ESCOLAR HA IMPLEMENTADO EN ESTE SERVICIO/NIVEL EDUCATIVO?"]
[null,null,null,null,null,"Gestión y seguimiento del uso de los recursos educativos."]
[null,null,null,null,null,"Limpieza y mantenimiento",null,null,null,null,null,null,null,null,null,null,null,null,null,null,"Comités",null,null,null,null,"Fecha de resolución"]
[null,null,null,null,null,"La gestión de riesgo de desastres priorizando la prevención y reducción, así como la preparación y respuesta.",null,null,null,null,null,null,null,null,null,null,null,null,null,null,null,null,null,"SI - NO","N° de RD","DD/MM/AAAA"]
[null,null,null,null,null,"Vigilancia y guardianía",null,null,null,null,null,null,null,null,null,null,null,null,"01","Comité de Condiciones Operativas"]
[null,null,null,null,null,null,null,null,null,null,null,null,null,null,null,null,null,null,"02","Comité de Gestión del Bienestar"]
[null,null,null,"727. DURANTE EL AÑO 2023, ¿A TRAVÉS DE QUÉ MEDIO RECIBIÓ CAPACITACIONES EL PERSONAL",null,null,null,null,null,null,null,null,null,null,null,null,null,null,"03","Comité de Gestión Pedagógica"]
[null,null,null,null,"ADMINISTRATIVO DE ESTE SERVICIO/NIVEL EDUCATIVO?",null,null,null,null,null,null,null,null,null,null,null,null,null,null,null,null,null,null,{"$f":"COUNTIF(X194:X196,\"SI\") + COUNTIF(X194:X196,\"NO\")","v":0}]
[null,null,null,null,"Marque con una “X”, una o más opciones"]
[null,null,null,null,null,null,null,null,null,null,null,null,null,null,null,null,null,null,"733. ¿CUÁLES SON LOS INSTRUMENTOS DE GESTIÓN ESCOLAR QUE SE HAN IMPLEMENTADO EN ESTE"]
[null,null,null,null,null,"Perueduca, cursos para la comunidad educativa",null,null,null,null,null,null,null,null,null,null,null,null,null,"SERVICIO/NIVEL EDUCATIVO?"]
[null,null,null,null,null,"Mi Institución Educativa"]
[null,null,null,null,null,"Mi UGEL"]
[null,null,null,null,null,"MINEDU",null,null,null,null,null,null,null,null,null,null,null,null,null,null,"Documentos de Gestión",null,null,null,null,"Marcar"]
[null,null,null,null,null,"DRE",null,null,null,null,null,null,null,null,null,null,null,null,null,null,null,null,null,null,null,"SI - NO"]
[null,null,null,null,null,"Otras instituciones",null,null,null,null,null,null,null,null,null,null,null,null,null,null,"Proyecto Educativo Institucional (PEI)"]
[null,null,null,null,null,"No cuento con personal administrativo",null,null,null,null,null,null,null,null,null,null,null,null,null,null,"Proyecto Currícular Institucional (PCI)"]
[null,null,null,null,null,"El personal administrativo no recibió capacitación",null,null,null,null,null,null,null,null,null,null,null,null,null,null,"Reglamento Interno (RI)"]
[null,null,null,null,null,null,null,null,null,null,null,null,null,null,null,null,null,null,null,null,"Plan Anual de Trabajo (PAT)"]
[null,null,null,"728. ¿SE HA INCORPORADO ALGÚN OBJETIVO O ACCIÓN REFERIDA A LA PREVENCIÓN, PROMOCIÓN Y ATENCIÓN DE LA",null,null,null,null,null,null,null,null,null,null,null,null,null,null,null,null,"Documento de Gestión (DG)"]
[null,null,null,null,"SALUD (FÍSICA, MENTAL O EMOCIONAL) O ALGUNA OTRA SIMILAR DIRIGIDA A PERSONAL DOCENTE, DIRECTIVO,",null,null,null,null,null,null,null,null,null,null,null,null,null,null,null,"Otros"]
[null,null,null,null,"JERÁRQUICO O ADMINISTRATIVO EN LOS INSTRUMENTOS DE GESTIÓN DEL SERVICIO/NIVEL EDUCATIVO?"]
[]
[null,null,null,null,"Sí",null,null,null,"No",null,null,"Pase a la pregunta 730."]

{"sheet":"C800","index":9,"n_rows":179,"n_cols":23,"rows_kept":179,"cut":false,"hidden":false,"merged":[[103,14,103,16],[106,8,106,10],[119,6,119,9],[129,11,129,17],[130,11,130,17],[95,17,95,19],[95,20,95,22],[96,16,98,16],[96,17,98,17],[96,18,99,18],[96,19,98,19],[96,20,98,20],[96,21,99,21],[96,22,98,22],[46,18,46,19],[57,16,57,19],[64,3,64,8],[68,4,68,8],[76,14,81,21],[78,8,78,10],[80,6,80,7],[46,4,46,6],[46,8,46,9],[46,11,46,13],[46,14,46,15],[46,16,46,17],[45,8,45,9],[45,11,45,13],[45,14,45,15],[45,16,45,17],[45,18,45,19],[44,8,44,9],[44,11,44,13],[44,14,44,15],[44,16,44,17],[44,18,44,19],[42,14,42,15],[42,16,42,17],[42,18,42,19],[43,8,43,9],[43,11,43,13],[43,14,43,15],[43,16,43,17],[43,18,43,19],[38,20,40,20],[38,21,40,21],[39,8,39,9],[39,16,39,17],[39,18,39,19],[13,15,14,18],[15,4,16,7],[15,9,17,9],[15,10,17,10],[22,5,22,7],[14,9,14,10],[37,7,38,7],[38,3,39,6],[38,11,40,13],[38,14,40,15],[41,8,41,9],[41,11,41,13],[41,14,41,15],[41,16,41,17],[41,18,41,19],[42,8,42,9],[42,11,42,13],[129,8,129,10],[129,18,129,20],[124,3,124,19],[129,4,129,6],[82,6,82,7],[82,8,82,9],[83,6,83,7],[83,8,83,9],[84,6,84,7],[84,8,84,9],[95,8,95,10],[95,13,99,15],[130,18,130,20],[131,3,131,7],[131,8,131,10],[131,18,131,20],[130,3,130,7],[130,8,130,10],[131,11,131,17]]}
[]
[null,null,null,null,null,"CENSO EDUCATIVO 2024"]
[null,null,null,null,null,"MATRÍCULA, DOCENTES Y MATERIALES EDUCATIVOS"]
[]
[]
[]
[null,"800. GESTIÓN DE RIESGO DE DESASTRES"]
[]
[null,null,"801. EN EL PRESENTE AÑO, ESTE SERVICIO/NIVEL EDUCATIVO, ¿HA INCORPORADO LA DEFENSA",null,null,null,null,null,null,null,null,null,null,"802. SOBRE LA DEFENSA NACIONAL Y LA GESTIÓN DEL RIESGO DE DESASTRES EN ESTE"]
[null,null,null,"NACIONAL Y GESTIÓN DEL RIESGO DE DESASTRES EN SUS INSTRUMENTOS DE GESTIÓN VIGENTES?",null,null,null,null,null,null,null,null,null,null,"SERVICIO/NIVEL EDUCATIVO, ATIENDA LAS SIGUIENTES PREGUNTAS:"]
[]
[null,null,null,"Sí  ",null,null,null,"No  ","",null,null,null,null,null,"Seleccione “Si” o “No” según corresponda en atención a cada pregunta."]
[]
[null,null,null,null,null,null,null,null,null,null,null,null,null,null,null,"Documentos de Gestión",null,null,null,null,null,"Respuesta"]
[null,null,null,"Precise los documentos de gestión",null,null,null,null,null,"Marcar con \"X\""]
[null,null,null,null,"Documentos de Gestión",null,null,null,null,"Gestión de Riesgo de Desastres","Seguridad y Defensa Nacional",null,null,null,null,null,null,null,null,null,null,"SI - NO"]
[null,null,null,null,null,null,null,null,null,null,null,null,null,null,"¿La IE cuenta con un croquis con rutas de evacuación?"]
[null,null,null,null,null,null,null,null,{"$f":"COUNTIF(J19:K23,\"X\")","v":0},null,null,null,null,null,"¿La IE cuenta con planos de señalización con rutas de evacuación?"]
[null,null,"01","Proyecto Educativo Institucional (PEI)",null,null,null,null,{"$f":"COUNTIF(J19:K19,\"X\")","v":0}]
[null,null,"02","Plan Anual de Trabajo (PAT)",null,null,null,null,{"$f":"COUNTIF(J20:K20,\"X\")","v":0}]
[null,null,"03","Proyecto Currícular Institucional (PCI)",null,null,null,null,{"$f":"COUNTIF(J21:K21,\"X\")","v":0}]
[null,null,"04","Reglamento Interno (RI)",null,null,null,null,{"$f":"COUNTIF(J22:K22,\"X\")","v":0}]
[null,null,"05","Otros","",null,null,null,{"$f":"COUNTIF(J23:K23,\"X\")","v":0}]
[null,null,null,null,null,null,null,null,null,{"$f":"COUNTIF(J19:J23,\"X\")","v":0},{"$f":"COUNTIF(K19:K23,\"X\")","v":0}]
[null,null,"803. EN EL PRESENTE AÑO, LOS MIEMBROS DE ESTE SERVICIO/NIVEL EDUCATIVO, ¿HAN SIDO CAPACITADOS Y CERTIFICADOS EN MATERIA DE GESTIÓN INTEGRAL \nDEL RIESGO DE DESASTRES?"]
[]
[null,null,null,"Sí  ",null,null,null,"No  "]
[]
[]
[null,null,null,null,null,"Alguna de ellos fue desarrollada por:"]
[]
[null,null,null,null,null,null,null,"SI - NO"]
[null,null,null,null,null,"DRE/GRE"]
[null,null,null,null,null,"UGEL"]
[]
[null,null,null,"Complete la tabla"]
[]
[null,null,null,null,null,null,null,"¿Se realizó?","Cantidad de personas capacitadas",null,null,null,null,null,null,null,"Cantidad de personas certificadas"]
[null,null,null,"Tipo de Capacitación",null,null,null,null,null,null,null,"Adminis-  trativos",null,null,"Integrantes\nque pertenecen a la brigada de EA y GRD",null,null,null,null,null,"Adminis-  trativos","Integrantes brigada EA y GRD"]
[null,null,null,null,null,null,null,null,"Directores",null,"Docentes",null,null,null,null,null,"Directores",null,"Docentes"]
[null,null,null,null,null,null,null,"SI - NO"]
[null,null,"01","Curso",null,null,null,null,null,null,null,null,null,null,null,null,null,null,null,null,null,null,{"$f":"SUM(I42:V42)","v":0}]
[null,null,"02","Taller de capacitación",null,null,null,null,null,null,null,null,null,null,null,null,null,null,null,null,null,null,{"$f":"SUM(I43:V43)","v":0}]
[null,null,"03","Reuniones de trabajo institucionales",null,null,null,null,null,null,null,null,null,null,null,null,null,null,null,null,null,null,0]
[null,null,"04","Foro",null,null,null,null,null,null,null,null,null,null,null,null,null,null,null,null,null,null,0]
[null,null,"05","Webinar",null,null,null,null,null,null,null,null,null,null,null,null,null,null,null,null,null,null,0]
[null,null,"06","Otros",null,null,null,null,null,null,null,null,null,null,null,null,null,null,null,null,null,null,0]
[null,null,null,null,null,null,null,{"$f":"COUNTIF(H42:H47,\"SI\") + COUNTIF(H42:H47,\"NO\")","v":0}]
[]
[null,null,"804. EN EL AÑO 2023, ANTE LA DETECCIÓN DEL PELIGRO INMINENTE, EMERGENCIA O DESASTRE,",null,null,null,null,null,null,null,null,null,null,"805. EN EL PRESENTE AÑO, ESTE SERVICIO/NIVEL EDUCATIVO, ¿HA PARTICIPADO EN CAMPAÑAS"]
[null,null,null,"¿ESTE SERVICIO/NIVEL EDUCATIVO REPORTA AL ESPACIO DE MONITOREO Y SEGUIMIENTO",null,null,null,null,null,null,null,null,null,null,"COMUNICACIONALES DE GESTIÓN DE RIESGO DE DESASTRES?"]
[null,null,null,"SECTORIAL (EMSS) DE LA UGEL?"]
[null,null,null,null,null,null,null,null,null,null,null,null,null,null,"Sí  ",null,null,null,"No  "]
[null,null,null,"Sí  ",null,null,"¿Ha sido capacitado sobre el proceso a seguir para reportar?"]
[]
[null,null,null,null,null,null,null,"Sí  ",null,null,null,null,null,null,null,null,"Indique, ¿En qué acciones participó o recibió?"]
[]
[null,null,null,null,null,null,null,"No  ",null,null,null,null,null,null,null,null,"ITEMS",null,null,null,"Marcar con X"]
[null,null,null,null,null,null,null,null,null,null,null,null,null,null,null,null,"Pasacalle"]
[null,null,null,null,null,null,null,"No Sabe  ",null,null,null,null,null,null,null,null,"Feria"]
[null,null,null,"No  ","",null,null,null,null,null,null,null,null,null,null,null,"Activaciones motivadoras"]
[null,null,null,null,null,null,null,null,null,null,null,null,null,null,null,null,"Conferencias"]
[null,null,null,null,null,null,null,null,null,null,null,null,null,null,null,null,"Recepción de afiches"]
[null,null,null,"¿Por qué?",null,null,"Marque con una “X”, una opción",null,null,null,null,null,null,null,null,null,"Recepción murales de GRD"]
[null,null,null,"ITEMS",null,null,null,null,null,"Marcar con X",null,null,null,null,null,null,"Post en redes sociales"]
[null,null,null,"No se tuvo emergencia en territorio",null,null,null,null,null,null,null,null,null,null,null,null,"Post radiales"]
[null,null,null,"No se cuenta con los instrumentos y/o herramientas"]
[null,null,null,"No se conoce el procedimiento"]
[null,null,null,"Otro"]
[]
[]
[null,null,"806. EL SERVICIO/NIVEL EDUCATIVO, ¿CUENTA CON LA BRIGADA DE EDUCACIÓN AMBIENTAL Y",null,null,null,null,null,null,null,null,null,null,"809. ¿QUÉ SUGERENCIA PLANTEARÍA PARA FAVORECER LA CONFORMACIÓN O FUNCIONAMIENTO"]
[null,null,null,"GESTIÓN DE RIESGO DE DESASTRES?",null,null,null,null,null,null,null,null,null,null,"DE LAS BAPES?"]
[]
[null,null,null,"Sí",null,null,null,"No  ",null,null,null,null,null,null,"longitud máxima 200 caracteres",null,null,null,null,null,null,{"$f":"LEN(TRIM(O77))","v":0}]
[]
[]
[null,null,null,null,"Documento",null,null,"Resolución"]
[null,null,null,null,null,null,null,"Otro",""]
[]
[null,null,null,null,"Número"]
[]
[null,null,null,null,null,null,"Desde:",null,"Hasta:"]
[null,null,null,null,"Vigencia",null,"DD/MM/AAAA",null,"DD/MM/AAAA",null,null,null,null,"810. ESTE SERVICIO/NIVEL EDUCATIVO, ¿CUENTA CON ALGUNA EXPERIENCIA EXITOSA O"]
[null,null,null,null,null,null,null,null,null,null,null,null,null,null,"BUENA PRÁCTICA DOCENTE Y/O GESTIÓN ESCOLAR ENMARCADAS EN ALGUNA DE LAS"]
[null,null,null,null,null,null,null,null,null,null,null,null,null,null,"LÍNEAS ESTRATÉGICAS?"]
[null,null,"807. EN EL PRESENTE AÑO, ¿CONFORMÓ SU BRIGADA DE AUTOPROTECCIÓN ESCOLAR (BAPES)?"]
[null,null,null,null,null,null,null,null,null,null,null,null,null,null,"Sí  ",null,null,null,"No  "]
[null,null,null,"Sí  "]
[null,null,null,null,null,null,"¿Quiénes lo conforman?"]
[null,null,null,null,null,null,"Marque con una “X”, una opción"]
[null,null,null,null,null,null,"","Representantes de la APAFA",null,null,null,null,null,null,"Complete la tabla"]
[null,null,null,null,null,null,null,"Representantes de padres de familia"]
[null,null,null,null,null,null,"","Otros actores de la comunidad educativa",null,null,null,null,null,"Seleccione “Sí” o “No” para cada línea estratégica e ingrese los años según corresponda"]
[null,null,null,null,null,null,"","Representación de la Comisaria de la jurisdicción"]
[null,null,null,null,null,null,"","Otros","",null,null,null,null,"Línea estratégica",null,null,null,"Experiencia exitosa",null,null,"Buena práctica docente y/o Gestión escolar"]
[null,null,null,null,null,null,null,null,null,null,null,null,null,null,null,null,null,"¿Cuenta con experiencia exitosa?","Año de la experiencia exitosa","Se socializó con otras entidades","¿Cuenta con buena práctica docente y Gestión escolar?","Año de la buena práctica docente y/o Gestión escolar","Se socializó con otras entidades"]
[null,null,null,"No  ",null,null,null,"Pase a la pregunta 810"]
[]
[null,null,null,null,null,null,"¿Por qué no conformó su BAPES?",null,null,null,null,null,null,null,null,null,null,"SI / NO",null,"SI / NO","SI / NO",null,"SI / NO"]
[null,null,null,null,null,null,"Marque con una “X”, una o más opciones",null,null,null,null,null,"01","Seguridad y Defensa Nacional"]
[null,null,null,null,null,null,null,"La IIEE no cuenta con APAFA",null,null,null,null,"02","Gestión del Riesgo de Desastre"]
[null,null,null,null,null,null,null,"No hay participación de los padres",null,null,null,null,"03","Adaptación al cambio climático"]
[null,null,null,null,null,null,null,"No lo considera necesario",null,null,null,null,"04","Otro"]
[null,null,null,null,null,null,null,"No identifican riesgos alrededor de la IIEE",null,null,null,null,null,null,null,null,null,{"$f":"COUNTIF(R101:R104,\"SI\")+COUNTIF(R101:R104,\"NO\")","v":0},null,null,{"$f":"COUNTIF(U101:U104,\"SI\")+COUNTIF(U101:U104,\"NO\")","v":0},"",""]
[null,null,null,null,null,null,null,"No tieene información de cómo conformarlo"]
[null,null,null,null,null,null,null,"Otros","",null,null,null,null,"811. ESTE SERVICIO/NIVEL EDUCATIVO, ¿PARTICIPÓ EN LOS SIMULACROS CONVOCADOS POR"]
[null,null,null,null,null,null,null,null,null,null,null,null,null,null,"MINEDU Y/O INDECI?"]
[null,null,"808. LA BRIGADA DE AUTOPROTECCIÓN ESCOLAR (BAPES), ¿CUENTA CON LA ASISTENCIA DE LA"]
[null,null,null,"OFICINA DE PARTICIPACIÓN CIUDADANA (OPC) DE LA COMISARÍA DE SU JURISDICCIÓN?",null,null,null,null,null,null,null,null,null,null,"Sí  ",null,null,null,"No  "]
[]
[null,null,null,"Sí",null,null,null,"No  "]
[null,null,null,null,null,null,null,null,null,null,null,null,null,null,null,null,"Complete la tabla"]
[]
[null,null,null,null,"¿Qué actividades desarrolló o tiene planificadas desarrollar?",null,null,null,null,null,null,null,null,null,null,null,null,"ITEMS",null,null,"Marcar con X"]
[null,null,null,null,"Marque con una “X”, una opción",null,null,null,null,null,null,null,null,null,null,null,"Primer Simulacro"]
[null,null,null,null,null,"Taller con los integrantes de las BAPES",null,null,null,null,null,null,null,null,null,null,"Segundo Simulacro"]
[null,null,null,null,null,"Actividades de sensibilización dirigidos a la comunidad educativa.",null,null,null,null,null,null,null,null,null,null,"Tercer Simulacro"]
[null,null,null,null,null,"Formulación de protocolos para la actuación ante riesgos identificados."]
[null,null,null,null,null,"Otras"]
[]
[]
[null,"ANOTACIONES COMPLEMENTARIAS QUE CONSIDERE NECESARIO AGREGAR (máximo 200 caracteres)"]
[]
[null,null,null,null,null,null,null,null,null,null,null,null,null,null,null,null,null,null,null,null,null,{"$f":"LEN(TRIM(D125))","v":0}]
[]
[]
[null,"DATOS DEL DIRECTOR(A) Y/O RESPONSABLE (S) DEL LLENADO DE LA CÉDULA"]
[]
[null,null,null,null,"NOMBRES Y APELLIDOS",null,null,null,"CARGO",null,null,"CORREO ELECTRÓNICO",null,null,null,null,null,null,"TELÉFONO"]
[]
[]
[]
[]
[]
[]
[]
[]
[]
[]
["DIRECTOR(A)"]
["SUB DIRECTOR(A)"]
["DOCENTE"]
["COORDINADOR(A)"]
["ASESOR"]
["ADMINISTRATIVO"]
["ASISTENTE"]
["AUXILIAR"]
["SECRETARIA(O)"]
["ESTADÍSTICO"]
["ESPECIALISTA"]
["BIBLIOTECARIO"]
["CARE"]
["COMANDANTE PNP"]
["CONTADOR"]
["DAIP"]
["DIGITADOR(A)"]
["GERENTE"]
["JEFE ACADÉMICO"]
["JEFE ADMINISTRATIVO"]
["JEFE DE AREA"]
["JEFE DE LABORATORIO"]
["JEFE DE PERSONAL"]
["JEFE DE SEDE"]
["JEFE UNIDAD"]
["OFICINISTA"]
["OPERADOR DE SISTEMAS"]
["PERSONAL DE SERVICIO"]
["PROGRAMADOR"]
["PROMOTOR(A)"]
["PSICOLOGO"]
["REGISTRADOR(A)"]
["REPRESENTANTE LEGAL"]
["SOPORTE TECNOLOGICO"]
["TÉCNICO ADMINISTRATIVO"]
["TESORERO(A)"]
["TRABAJADOR SOCIAL"]
["TUTOR"]
["OTROS"]

{"sheet":"Enviar","index":10,"n_rows":9,"n_cols":4,"rows_kept":9,"cut":false,"hidden":false,"merged":[[0,1,0,4],[1,1,1,4]]}
[null,"CENSO EDUCATIVO 2024"]
[null,"MATRÍCULA, DOCENTES Y MATERIALES EDUCATIVOS"]
[]
[]
[null,null,"Paso 1:","Realice el ENVÍO con su clave EOL."]
[]
[null,null,"Paso 2:","Una vez realizado el ENVÍO,  Revise su constancia de envio."]
[]
[null,null,"  ADVERTENCIA","ASEGÚRESE DE REGISTRAR TODA LA INFORMACIÓN DEL NIVEL INFORMANTE"]